{"text_format":"1","workbook":"xlsx","n_sheets":8,"sheets":["Общая информация","Ед. поставщик п.4 ч.1","Ед. поставщик п.5 ч.1","Ед.поставщик за искл. п.4,5 ч.1","Состоявшиеся аукционы","Несостоявшиеся аукционы","Иные конкурентные закупки","Настройки"],"not_rendered":{"charts":0,"images":0,"macros":1,"external_links":0,"defined_names":1,"comments":0,"pivot_tables":0},"unopened":[],"bounds":{"document_bytes":16777216,"sheet_cells":100000,"rows_first":2000,"rows_last":500,"rows_between":2000,"halvings":0,"cell_chars":16384,"cell_head_chars":4096},"cells_cut":0,"cells_raw":0,"read":"whole","date_system":"1900"}

{"sheet":"Общая информация","index":0,"n_rows":19,"n_cols":13,"rows_kept":19,"cut":false,"hidden":false,"merged":[[4,7,4,9],[4,12,4,13],[10,12,10,13],[10,9,10,11],[3,0,3,1],[3,4,3,6],[3,7,3,9],[3,12,3,13],[4,0,4,1],[7,0,7,2],[7,3,7,5],[7,6,7,8],[7,12,7,13],[7,9,7,11],[4,4,4,6],[9,0,9,2],[9,3,9,5],[9,6,9,8],[9,12,9,13],[9,9,9,11],[8,0,8,2],[8,3,8,5],[8,6,8,8],[8,12,8,13],[8,9,8,11],[12,9,12,11],[14,0,14,2],[14,3,14,5],[14,6,14,8],[14,12,14,13],[14,9,14,11],[12,0,12,2],[12,3,12,5],[12,6,12,8],[13,9,13,11],[13,12,13,13],[0,0,0,3],[0,4,0,13],[18,0,19,2],[18,3,19,6],[13,0,13,2],[13,3,13,5],[13,6,13,8],[11,12,11,13],[11,9,11,11],[10,0,10,2],[10,3,10,5],[10,6,10,8],[11,6,11,8],[11,0,11,2],[11,3,11,5],[12,12,12,13]]}
["Наименование организации:",null,null,null,"Муниципальное бюджетное общеобразовательное учреждение  средняя общеобразовательная школа № 13 имени Героя Советского Союза Г.К.Кулика муниципального образования Тимашевский район "]
[]
[]
["СГОЗ  (общий)",null,20376735.190000001,null,"п.4 (10% от СГОЗ или 2 000 000)",null,null,2000000,null,null,null,"п.5 (50% СГОЗ)",{"$f":"(C4*50)/100","v":10188367.595000001}]
["СГОЗ (остаток)",null,{"$f":"C4-G15+J15","v":8874026.5200000014},null,"п.4 (остаток)",null,null,{"$f":"H4-G12","v":1120472.3},null,null,null,"п.5 (остаток)",{"$f":"M4-G13","v":7399022.4750000006}]
[]
[]
["Способ определения поставщика (подрядчика, исполнителя)",null,null,"Начальная (максимальная) цена контракта",null,null,"Фактическая цена контракта",null,null,"Расторжение контракта по соглашению сторон",null,null,"Экономия "]
["Состоявшиеся аукционы",null,null,{"$f":"'Состоявшиеся аукционы'!G2","v":740880},null,null,{"$f":"'Состоявшиеся аукционы'!Q2","v":674200.8},null,null,{"$f":"'Состоявшиеся аукционы'!AB2","v":0},null,null,{"$f":"D9-G9","v":66679.199999999953}]
["Несостоявшиеся аукционы",null,null,{"$f":"'Несостоявшиеся аукционы'!G2","v":3314740},null,null,{"$f":"'Несостоявшиеся аукционы'!Q2","v":3314740},null,null,{"$f":"'Несостоявшиеся аукционы'!AB2","v":0},null,null,0]
["Иные конкурентные закупки",null,null,{"$f":"'Иные конкурентные закупки'!G2","v":0},null,null,{"$f":"'Иные конкурентные закупки'!Q2","v":0},null,null,{"$f":"'Иные конкурентные закупки'!AB2","v":0},null,null,0]
["Ед. поставщик п.4 ч.1 ",null,null,{"$f":"'Ед. поставщик п.4 ч.1'!H2","v":879527.7},null,null,{"$f":"D12","v":879527.7},null,null,{"$f":"'Ед. поставщик п.4 ч.1'!V2","v":0},null,null,0]
["Ед. поставщик п. 5 ч. 1",null,null,{"$f":"'Ед. поставщик п.5 ч.1'!H2","v":2789345.12},null,null,{"$f":"D13","v":2789345.12},null,null,{"$f":"'Ед. поставщик п.5 ч.1'!V2","v":0},null,null,0]
["Ед.поставщик за искл. п.4,5 ч.1",null,null,{"$f":"'Ед.поставщик за искл. п.4,5 ч.1'!G2","v":3844895.05},null,null,{"$f":"D14","v":3844895.05},null,null,{"$f":"'Ед.поставщик за искл. п.4,5 ч.1'!T2","v":0},null,null,0]
["Всего",null,null,{"$f":"SUM(D9:D14)","v":11569387.870000001},null,null,{"$f":"SUM(G9:G14)","v":11502708.67},null,null,{"$f":"SUM(J9:J14)","v":0},null,null,66679.200000001118]
[]
[]
[]
["Всего средств потрачено по заключенным контрактам",null,null,{"$f":"'Ед. поставщик п.4 ч.1'!P2+'Ед. поставщик п.5 ч.1'!P2+'Ед.поставщик за искл. п.4,5 ч.1'!N2+'Состоявшиеся аукционы'!V2+'Несостоявшиеся аукционы'!V2+'Иные конкурентные закупки'!V2","v":3842427.6}]

{"sheet":"Ед. поставщик п.4 ч.1","index":1,"n_rows":426,"n_cols":24,"rows_kept":426,"cut":false,"hidden":false,"merged":[[219,22,220,22],[219,3,220,3],[219,4,220,4],[219,5,220,5],[219,6,220,6],[219,7,220,7],[219,8,220,8],[219,9,220,9],[219,10,220,10],[219,11,220,11],[219,12,220,12],[72,0,74,0],[72,14,74,14],[72,20,74,20],[72,1,74,1],[72,21,74,21],[72,2,74,2],[72,22,74,22],[72,3,74,3],[72,4,74,4],[72,5,74,5],[72,6,74,6],[72,7,74,7],[72,8,74,8],[72,9,74,9],[72,10,74,10],[72,11,74,11],[72,12,74,12],[185,11,192,11],[193,3,207,3],[193,4,207,4],[193,5,207,5],[405,1,406,1],[405,21,406,21],[405,2,406,2],[405,22,406,22],[405,3,406,3],[405,4,406,4],[405,5,406,5],[405,6,406,6],[405,7,406,7],[405,8,406,8],[405,9,406,9],[405,10,406,10],[405,11,406,11],[405,12,406,12],[229,21,237,21],[229,2,237,2],[362,22,363,22],[400,22,401,22],[400,11,401,11],[400,12,401,12],[400,21,401,21],[299,9,301,9],[299,2,301,2],[307,9,308,9],[299,6,301,6],[296,2,297,2],[304,6,305,6],[304,7,305,7],[307,2,308,2],[304,4,305,4],[373,1,376,1],[373,2,376,2],[362,0,363,0],[362,14,363,14],[362,20,363,20],[362,1,363,1],[362,21,363,21],[362,2,363,2],[377,3,380,3],[377,4,380,4],[377,5,380,5],[377,6,380,6],[377,7,380,7],[373,20,376,20],[373,21,376,21],[364,8,369,8],[364,9,369,9],[364,10,369,10],[364,11,369,11],[364,12,369,12],[377,8,380,8],[377,9,380,9],[377,10,380,10],[377,11,380,11],[364,3,369,3],[364,4,369,4],[364,5,369,5],[364,6,369,6],[364,7,369,7],[373,3,376,3],[364,21,369,21],[364,2,369,2],[165,0,184,0],[165,1,184,1],[165,2,184,2],[111,2,129,2],[147,0,164,0],[147,14,164,14],[111,0,129,0],[193,1,207,1],[208,0,209,0],[208,1,209,1],[214,2,216,2],[314,0,319,0],[193,2,207,2],[208,3,209,3],[193,11,207,11],[15,8,33,8],[15,9,33,9],[15,10,33,10],[15,11,33,11],[15,12,33,12],[15,4,33,4],[15,5,33,5],[15,2,33,2],[165,3,184,3],[165,11,184,11],[165,14,184,14],[165,5,184,5],[165,6,184,6],[165,7,184,7],[165,8,184,8],[165,9,184,9],[165,10,184,10],[8,0,14,0],[8,14,14,14],[8,20,14,20],[8,1,14,1],[8,21,14,21],[8,2,14,2],[208,22,209,22],[185,20,192,20],[299,5,301,5],[279,9,283,9],[279,10,283,10],[291,4,295,4],[291,6,295,6],[314,14,319,14],[8,22,14,22],[8,12,14,12],[111,22,129,22],[111,7,129,7],[111,8,129,8],[111,9,129,9],[111,10,129,10],[111,11,129,11],[111,12,129,12],[229,22,237,22],[229,7,237,7],[229,8,237,8],[229,9,237,9],[229,10,237,10],[229,11,237,11],[229,12,237,12],[165,22,184,22],[165,4,184,4],[165,20,184,20],[165,21,184,21],[398,14,399,14],[398,20,399,20],[398,1,399,1],[398,21,399,21],[398,2,399,2],[398,22,399,22],[398,3,399,3],[398,4,399,4],[398,5,399,5],[398,6,399,6],[398,7,399,7],[398,8,399,8],[398,9,399,9],[398,10,399,10],[398,11,399,11],[398,12,399,12],[377,22,380,22],[214,22,216,22],[214,3,216,3],[214,4,216,4],[214,5,216,5],[214,6,216,6],[214,7,216,7],[214,8,216,8],[214,9,216,9],[214,10,216,10],[214,11,216,11],[214,12,216,12],[226,22,228,22],[226,3,228,3],[364,22,369,22],[377,20,380,20],[362,7,363,7],[362,8,363,8],[311,6,312,6],[279,4,283,4],[210,22,213,22],[210,3,213,3],[210,4,213,4],[210,5,213,5],[210,6,213,6],[210,7,213,7],[210,8,213,8],[210,9,213,9],[210,10,213,10],[210,11,213,11],[210,12,213,12],[210,14,213,14],[210,20,213,20],[314,7,319,7],[314,8,319,8],[336,6,338,6],[336,7,338,7],[336,8,338,8],[327,4,330,4],[327,5,330,5],[320,3,321,3],[377,21,380,21],[370,14,372,14],[370,20,372,20],[370,21,372,21],[364,14,369,14],[165,12,184,12],[130,11,146,11],[97,3,110,3],[97,4,110,4],[97,5,110,5],[97,6,110,6],[97,7,110,7],[97,8,110,8],[97,9,110,9],[111,4,129,4],[111,5,129,5],[111,6,129,6],[130,6,146,6],[130,7,146,7],[130,8,146,8],[130,9,146,9],[130,10,146,10],[147,5,164,5],[147,9,164,9],[147,3,164,3],[147,4,164,4],[400,0,401,0],[400,14,401,14],[400,20,401,20],[400,1,401,1],[304,0,305,0],[362,9,363,9],[320,7,321,7],[327,9,330,9],[351,5,352,5],[351,6,352,6],[351,7,352,7],[322,6,326,6],[332,9,335,9],[320,0,321,0],[362,3,363,3],[362,4,363,4],[362,5,363,5],[362,6,363,6],[400,3,401,3],[400,4,401,4],[400,5,401,5],[400,6,401,6],[400,7,401,7],[400,8,401,8],[400,9,401,9],[400,10,401,10],[370,0,372,0],[370,1,372,1],[370,2,372,2],[364,20,369,20],[364,1,369,1],[373,0,376,0],[208,14,209,14],[226,2,228,2],[214,0,216,0],[214,14,216,14],[214,20,216,20],[214,1,216,1],[307,11,308,11],[226,8,228,8],[210,2,213,2],[208,2,209,2],[229,3,237,3],[229,4,237,4],[229,5,237,5],[229,6,237,6],[238,3,243,3],[238,8,243,8],[238,9,243,9],[238,10,243,10],[208,11,209,11],[238,6,243,6],[296,7,297,7],[296,8,297,8],[296,11,297,11],[291,11,295,11],[288,20,289,20],[226,4,228,4],[226,5,228,5],[226,6,228,6],[226,7,228,7],[229,0,237,0],[229,1,237,1],[219,0,220,0],[336,0,338,0],[336,1,338,1],[336,2,338,2],[347,3,348,3],[347,4,348,4],[347,5,348,5],[347,6,348,6],[311,2,312,2],[311,3,312,3],[314,2,319,2],[314,3,319,3],[314,4,319,4],[314,5,319,5],[314,6,319,6],[320,2,321,2],[332,3,335,3],[345,4,346,4],[345,5,346,5],[336,3,338,3],[336,4,338,4],[336,5,338,5],[322,4,326,4],[322,5,326,5],[345,0,346,0],[345,1,346,1],[345,2,346,2],[332,1,335,1],[322,3,326,3],[327,6,330,6],[320,6,321,6],[208,21,209,21],[208,20,209,20],[208,12,209,12],[193,21,207,21],[226,11,228,11],[193,8,207,8],[185,9,192,9],[314,21,319,21],[311,21,312,21],[311,12,312,12],[332,21,335,21],[311,20,312,20],[307,12,308,12],[320,14,321,14],[314,20,319,20],[345,10,346,10],[345,11,346,11],[345,14,346,14],[345,12,346,12],[320,11,321,11],[336,11,338,11],[307,10,308,10],[327,11,330,11],[311,8,312,8],[311,9,312,9],[311,10,312,10],[332,8,335,8],[320,9,321,9],[320,10,321,10],[307,14,308,14],[332,10,335,10],[332,11,335,11],[147,21,164,21],[147,2,164,2],[75,0,96,0],[75,14,96,14],[75,20,96,20],[75,1,96,1],[75,21,96,21],[75,2,96,2],[97,12,110,12],[130,0,146,0],[130,14,146,14],[130,20,146,20],[130,1,146,1],[130,21,146,21],[97,0,110,0],[97,14,110,14],[97,20,110,20],[97,1,110,1],[97,21,110,21],[111,3,129,3],[147,1,164,1],[97,10,110,10],[130,2,146,2],[130,3,146,3],[130,4,146,4],[130,5,146,5],[97,11,110,11],[111,14,129,14],[111,20,129,20],[111,1,129,1],[97,2,110,2],[75,22,96,22],[50,22,71,22],[50,3,71,3],[50,4,71,4],[50,5,71,5],[50,6,71,6],[50,7,71,7],[50,8,71,8],[50,9,71,9],[50,10,71,10],[50,11,71,11],[50,12,71,12],[75,6,96,6],[75,7,96,7],[75,8,96,8],[75,9,96,9],[75,10,96,10],[75,11,96,11],[75,12,96,12],[50,21,71,21],[50,14,71,14],[75,3,96,3],[75,4,96,4],[75,5,96,5],[97,22,110,22],[272,14,276,14],[272,20,276,20],[272,21,276,21],[272,22,276,22],[272,4,276,4],[272,5,276,5],[272,6,276,6],[272,7,276,7],[272,8,276,8],[147,22,164,22],[147,12,164,12],[272,11,276,11],[272,10,276,10],[185,22,192,22],[185,12,192,12],[185,21,192,21],[269,9,270,9],[269,10,270,10],[269,11,270,11],[130,22,146,22],[130,12,146,12],[193,22,207,22],[111,21,129,21],[147,20,164,20],[185,14,192,14],[147,6,164,6],[147,7,164,7],[147,8,164,8],[147,11,164,11],[147,10,164,10],[210,21,213,21],[219,14,220,14],[219,20,220,20],[219,21,220,21],[214,21,216,21],[193,20,207,20],[291,5,295,5],[250,10,256,10],[296,6,297,6],[260,5,263,5],[267,11,268,11],[279,14,283,14],[250,8,256,8],[250,9,256,9],[244,11,249,11],[226,9,228,9],[226,10,228,10],[291,14,295,14],[244,14,249,14],[244,20,249,20],[267,20,268,20],[260,7,263,7],[279,8,283,8],[291,8,295,8],[244,21,249,21],[238,7,243,7],[229,14,237,14],[229,20,237,20],[296,14,297,14],[288,11,289,11],[193,9,207,9],[193,10,207,10],[226,21,228,21],[299,11,301,11],[238,14,243,14],[238,20,243,20],[299,21,301,21],[311,14,312,14],[307,21,308,21],[304,11,305,11],[307,7,308,7],[260,21,263,21],[291,7,295,7],[304,21,305,21],[311,22,312,22],[269,20,270,20],[265,7,266,7],[265,8,266,8],[288,22,289,22],[296,21,297,21],[288,21,289,21],[291,21,295,21],[299,22,301,22],[304,12,305,12],[299,12,301,12],[299,14,301,14],[299,20,301,20],[296,20,297,20],[304,14,305,14],[304,20,305,20],[307,22,308,22],[291,22,295,22],[291,12,295,12],[307,20,308,20],[311,7,312,7],[260,11,263,11],[260,12,263,12],[260,8,263,8],[260,9,263,9],[260,10,263,10],[260,14,263,14],[260,20,263,20],[269,8,270,8],[265,6,266,6],[265,12,266,12],[265,20,266,20],[265,9,266,9],[267,14,268,14],[260,6,263,6],[394,22,395,22],[394,3,395,3],[394,4,395,4],[394,20,395,20],[267,22,268,22],[279,22,283,22],[279,12,283,12],[269,12,270,12],[265,11,266,11],[265,10,266,10],[267,21,268,21],[269,21,270,21],[296,22,297,22],[345,22,346,22],[394,14,395,14],[288,7,289,7],[288,8,289,8],[296,12,297,12],[291,20,295,20],[304,22,305,22],[394,21,395,21],[327,21,330,21],[394,5,395,5],[394,6,395,6],[353,4,354,4],[394,11,395,11],[336,21,338,21],[296,4,297,4],[311,5,312,5],[304,5,305,5],[299,4,301,4],[311,11,312,11],[327,10,330,10],[336,20,338,20],[357,12,358,12],[357,14,358,14],[357,20,358,20],[347,7,348,7],[347,8,348,8],[347,9,348,9],[347,10,348,10],[320,4,321,4],[320,5,321,5],[322,14,326,14],[327,22,330,22],[322,20,326,20],[345,21,346,21],[322,21,326,21],[327,20,330,20],[347,22,348,22],[351,22,352,22],[327,14,330,14],[347,20,348,20],[332,14,335,14],[347,14,348,14],[347,21,348,21],[389,21,391,21],[389,22,391,22],[314,22,319,22],[314,9,319,9],[314,10,319,10],[314,11,319,11],[314,12,319,12],[320,20,321,20],[320,21,321,21],[327,12,330,12],[332,20,335,20],[332,22,335,22],[336,22,338,22],[332,12,335,12],[320,22,321,22],[320,12,321,12],[336,12,338,12],[336,14,338,14],[357,22,358,22],[322,22,326,22],[370,22,372,22],[387,20,388,20],[387,21,388,21],[387,22,388,22],[373,22,376,22],[345,20,346,20],[408,22,409,22],[408,3,409,3],[408,4,409,4],[408,5,409,5],[408,6,409,6],[408,7,409,7],[408,8,409,8],[408,9,409,9],[408,10,409,10],[408,11,409,11],[408,12,409,12],[408,21,409,21],[408,20,409,20],[408,14,409,14],[382,20,384,20],[382,21,384,21],[382,22,384,22],[382,11,384,11],[382,12,384,12],[382,6,384,6],[382,7,384,7],[382,8,384,8],[382,9,384,9],[382,10,384,10],[387,11,388,11],[387,12,388,12],[382,14,384,14],[389,20,391,20],[405,14,406,14],[405,20,406,20],[351,21,352,21],[353,21,354,21],[353,22,354,22],[357,21,358,21],[357,2,358,2],[357,3,358,3],[357,4,358,4],[357,5,358,5],[364,0,369,0],[357,1,358,1],[377,0,380,0],[373,5,376,5],[373,6,376,6],[373,7,376,7],[373,8,376,8],[373,9,376,9],[345,3,346,3],[353,5,354,5],[353,6,354,6],[353,7,354,7],[351,3,352,3],[351,4,352,4],[357,6,358,6],[357,7,358,7],[345,6,346,6],[345,9,346,9],[347,0,348,0],[347,1,348,1],[347,2,348,2],[377,1,380,1],[377,2,380,2],[370,3,372,3],[351,0,352,0],[394,0,395,0],[394,8,395,8],[394,9,395,9],[394,10,395,10],[353,3,354,3],[345,7,346,7],[394,2,395,2],[345,8,346,8],[385,0,386,0],[385,1,386,1],[385,2,386,2],[385,3,386,3],[385,4,386,4],[385,5,386,5],[385,6,386,6],[385,7,386,7],[385,8,386,8],[389,3,391,3],[389,9,391,9],[389,10,391,10],[389,4,391,4],[389,5,391,5],[357,8,358,8],[387,1,388,1],[389,6,391,6],[387,9,388,9],[387,10,388,10],[387,5,388,5],[387,6,388,6],[387,7,388,7],[382,1,384,1],[357,11,358,11],[362,10,363,10],[377,14,380,14],[373,14,376,14],[387,14,388,14],[362,11,363,11],[362,12,363,12],[387,8,388,8],[351,12,352,12],[389,14,391,14],[373,11,376,11],[394,12,395,12],[389,12,391,12],[353,8,354,8],[353,9,354,9],[353,10,354,10],[353,11,354,11],[377,12,380,12],[347,11,348,11],[370,6,372,6],[373,12,376,12],[373,10,376,10],[370,7,372,7],[370,8,372,8],[370,9,372,9],[370,10,372,10],[370,11,372,11],[370,12,372,12],[389,11,391,11],[332,2,335,2],[322,7,326,7],[322,2,326,2],[327,3,330,3],[322,11,326,11],[322,12,326,12],[327,8,330,8],[389,7,391,7],[389,8,391,8],[382,3,384,3],[382,4,384,4],[382,5,384,5],[370,4,372,4],[370,5,372,5],[373,4,376,4],[387,2,388,2],[387,3,388,3],[387,4,388,4],[353,12,354,12],[347,12,348,12],[357,9,358,9],[408,0,409,0],[389,0,391,0],[408,1,409,1],[394,7,395,7],[382,0,384,0],[400,2,401,2],[398,0,399,0],[405,0,406,0],[322,0,326,0],[408,2,409,2],[238,2,243,2],[299,0,301,0],[279,0,283,0],[291,0,295,0],[288,0,289,0],[307,0,308,0],[296,0,297,0],[311,0,312,0],[327,0,330,0],[327,1,330,1],[244,0,249,0],[244,1,249,1],[244,2,249,2],[332,0,335,0],[327,2,330,2],[267,0,268,0],[260,0,263,0],[272,0,276,0],[389,2,391,2],[387,0,388,0],[238,0,243,0],[327,7,330,7],[267,8,268,8],[267,9,268,9],[267,10,268,10],[296,5,297,5],[299,7,301,7],[304,8,305,8],[304,9,305,9],[311,4,312,4],[322,9,326,9],[322,10,326,10],[307,4,308,4],[288,2,289,2],[272,9,276,9],[269,5,270,5],[382,2,384,2],[336,9,338,9],[336,10,338,10],[357,10,358,10],[269,6,270,6],[304,10,305,10],[307,8,308,8],[304,2,305,2],[307,5,308,5],[307,6,308,6],[299,8,301,8],[2,0,2,4],[1,18,1,20],[1,13,1,14],[3,9,3,10],[3,12,3,13],[3,14,3,15],[1,10,1,12],[15,0,33,0],[15,14,33,14],[15,20,33,20],[15,1,33,1],[50,0,71,0],[50,2,71,2],[50,1,71,1],[34,0,49,0],[34,1,49,1],[34,2,49,2],[34,3,49,3],[34,4,49,4],[34,5,49,5],[15,3,33,3],[8,3,14,3],[8,4,14,4],[8,5,14,5],[8,6,14,6],[8,7,14,7],[8,8,14,8],[8,9,14,9],[8,10,14,10],[8,11,14,11],[15,6,33,6],[15,7,33,7],[34,22,49,22],[34,8,49,8],[34,9,49,9],[34,10,49,10],[34,11,49,11],[34,12,49,12],[34,14,49,14],[50,20,71,20],[15,22,33,22],[185,0,192,0],[193,0,207,0],[193,14,207,14],[208,4,209,4],[208,5,209,5],[208,6,209,6],[208,7,209,7],[208,8,209,8],[185,1,192,1],[185,2,192,2],[185,3,192,3],[185,4,192,4],[185,5,192,5],[185,6,192,6],[185,7,192,7],[15,21,33,21],[34,20,49,20],[34,21,49,21],[34,7,49,7],[34,6,49,6],[185,10,192,10],[185,8,192,8],[193,12,207,12],[250,3,256,3],[260,4,263,4],[269,0,270,0],[279,6,283,6],[279,1,283,1],[265,0,266,0],[269,4,270,4],[265,5,266,5],[269,7,270,7],[279,5,283,5],[279,7,283,7],[250,5,256,5],[250,6,256,6],[250,7,256,7],[267,4,268,4],[238,1,243,1],[267,5,268,5],[267,6,268,6],[265,4,266,4],[250,0,256,0],[250,1,256,1],[244,4,249,4],[244,5,249,5],[244,6,249,6],[244,7,249,7],[267,7,268,7],[210,0,213,0],[210,1,213,1],[193,6,207,6],[193,7,207,7],[219,1,220,1],[219,2,220,2],[226,12,228,12],[238,12,243,12],[417,10,418,10],[417,11,418,11],[417,12,418,12],[417,0,418,0],[417,14,418,14],[226,0,228,0],[226,14,228,14],[226,20,228,20],[226,1,228,1],[417,20,418,20],[417,1,418,1],[351,14,352,14],[351,20,352,20],[351,1,352,1],[351,2,352,2],[353,0,354,0],[353,14,354,14],[353,20,354,20],[353,1,354,1],[353,2,354,2],[351,8,352,8],[351,9,352,9],[351,10,352,10],[351,11,352,11],[238,22,243,22],[250,14,256,14],[250,20,256,20],[250,21,256,21],[250,2,256,2],[244,22,249,22],[238,11,243,11],[244,3,249,3],[421,0,422,0],[421,14,422,14],[421,20,422,20],[421,1,422,1],[421,21,422,21],[421,2,422,2],[421,22,422,22],[421,3,422,3],[421,4,422,4],[421,5,422,5],[421,6,422,6],[421,7,422,7],[421,8,422,8],[421,9,422,9],[421,10,422,10],[421,11,422,11],[421,12,422,12],[389,1,391,1],[357,0,358,0],[291,2,295,2],[299,10,301,10],[322,1,326,1],[320,8,321,8],[322,8,326,8],[244,8,249,8],[244,9,249,9],[244,10,249,10],[250,22,256,22],[250,11,256,11],[250,12,256,12],[238,21,243,21],[250,4,256,4],[417,21,418,21],[417,2,418,2],[417,22,418,22],[417,3,418,3],[417,4,418,4],[417,5,418,5],[244,12,249,12],[238,4,243,4],[238,5,243,5],[260,22,263,22],[265,21,266,21],[279,11,283,11],[279,21,283,21],[267,12,268,12],[272,12,276,12],[269,14,270,14],[265,14,266,14],[265,22,266,22],[279,20,283,20],[269,22,270,22],[417,6,418,6]],"merged_total":1003,"flags":["merged_cut"]}
[]
[null,null,null,null,null,null,"Сумма заключенных контрактов",{"$f":"SUM(H9:H9999)","v":879527.7},null,null,null,null,null,"Сумма средств выплаченных по контрактам",null,{"$f":"SUM(P9:P9999)","v":307375.60000000003},null,null,"Общая сумма расторжений по контрактам/договорам",null,null,{"$f":"SUM(V9:V9999)","v":0}]
[]
[]
[]
["№ п/п","Наименование муниципальной программы, национального или регионального проекта","Контракт заключен в электронном виде посредством                             АИС \"Портал поставщиков\"   (Да/Нет)","Код бюджетной классификации","№ договора/контракта","Дата заключения договора/контракта","Предмет договора/контракта","Цена договора/контракта","Остаток по контракту","ИНН поставщика (подрядчика, исполнителя) ","Поставщик (подрядчик, исполнитель)","СМП и СОНО                       (да/нет)","Сроки поставки товара (оказания услуги, выполнения работы), согласно договора/контракта; Предоставление документов на оплату Заказчику","Фактическая дата поставки товара (оказания услуги, выполнения работы)","Сроки оплаты согласно договора/контракта","Сумма согласно документа об исполнении контракта заказчиком","Фактическая дата оплаты","Изменение контракта (№, дата)","Изменение контракта (увеличение цены контракта в рублях)","Изменение контракта (уменьшение цены контракта в рублях)","Расторжение контракта (№, дата)","Сумма расторжения в рублях","Примечание"]
["1","2","3","4","5","6","7","8","9","10","11","12","13","14","15","16","17","18","19","20","21","22","23"]
[1,"Муниципальная программа \"Развитие образования\"",null,"902 0113 1310110490 244","№ 1","09.01.2020","Поставка бумаги для офисной техники",20000,{"$f":"H8-P8","v":0},"2353019514","ИП Котляров К.И.",null,"В течение 15 рабочих дней, со дня подписания сторонами контракта","2020-01-10","Не позднее 30 календарных дней с момента подписания акта приема-сдачи и документа на оплату",20000,"2020-01-10",null,null,null,null,null,"Пример"]
[1,"Муниципальная программа \"Развитие образования\"","Нет","925 0702 0000000000 247","1099/24","2024-12-28","Услуги по холодному водоснабжению",27564,{"$f":"IF(X9 = 1, H9 + SUM(S9:S15) - SUM(T9:T15) - SUM(P9:P15) - V9,0)","v":23758.68},"2369003044 ","МУП ЖКХ \"Универсал плюс\" Медведовского сельского поселения Тимашевского района",null,"С 01.01.2025 года по 31.12.2025 года ","2025-01-31","В срок до 10-го числа месяца, следующего за расчетным месяцем",2436.7399999999998,"2025-02-07",null,null,null,null,null,null,1]
[null,null,null,null,null,null,null,null,null,null,null,null,null,"2025-02-25",null,1368.58,"2025-03-07",null,null,null,null,null,null,1]
[null,null,null,null,null,null,null,null,null,null,null,null,null,null,null,null,null,null,null,null,null,null,null,1]
[null,null,null,null,null,null,null,null,null,null,null,null,null,null,null,null,null,null,null,null,null,null,null,1]
[null,null,null,null,null,null,null,null,null,null,null,null,null,null,null,null,null,null,null,null,null,null,null,1]
[null,null,null,null,null,null,null,null,null,null,null,null,null,null,null,null,null,null,null,null,null,null,null,1]
[null,null,null,null,null,null,null,null,null,null,null,null,null,null,null,null,null,null,null,null,null,null,null,1]
[2,"Муниципальная программа \"Развитие образования\"","Нет","925 0702 0000000000 244","20966/ТМ","2024-12-28","Услуги по обращению с твердыми коммунальными отходами ",20211.75,{"$f":"IF(X16 = 2, H16 + SUM(S16:S34) - SUM(T16:T34) - SUM(P16:P34) - V16,0)","v":12127.05},"2308131994","АО \"Мусороуборочная компания\"",null,"С 01 января 2025 года по 31 мая 2025 года ","2025-02-07","До 10 числа месяца, следующего за месяцем, в котором была оказана услуга",4042.35,"2025-02-07",null,null,null,null,null,null,2]
[null,null,null,null,null,null,null,null,null,null,null,null,null,"2025-03-03",null,4042.35,"2025-03-07",null,null,null,null,null,null,2]
[null,null,null,null,null,null,null,null,null,null,null,null,null,null,null,null,null,null,null,null,null,null,null,2]
[null,null,null,null,null,null,null,null,null,null,null,null,null,null,null,null,null,null,null,null,null,null,null,2]
[null,null,null,null,null,null,null,null,null,null,null,null,null,null,null,null,null,null,null,null,null,null,null,2]
[null,null,null,null,null,null,null,null,null,null,null,null,null,null,null,null,null,null,null,null,null,null,null,2]
[null,null,null,null,null,null,null,null,null,null,null,null,null,null,null,null,null,null,null,null,null,null,null,2]
[null,null,null,null,null,null,null,null,null,null,null,null,null,null,null,null,null,null,null,null,null,null,null,2]
[null,null,null,null,null,null,null,null,null,null,null,null,null,null,null,null,null,null,null,null,null,null,null,2]
[null,null,null,null,null,null,null,null,null,null,null,null,null,null,null,null,null,null,null,null,null,null,null,2]
[null,null,null,null,null,null,null,null,null,null,null,null,null,null,null,null,null,null,null,null,null,null,null,2]
[null,null,null,null,null,null,null,null,null,null,null,null,null,null,null,null,null,null,null,null,null,null,null,2]
[null,null,null,null,null,null,null,null,null,null,null,null,null,null,null,null,null,null,null,null,null,null,null,2]
[null,null,null,null,null,null,null,null,null,null,null,null,null,null,null,null,null,null,null,null,null,null,null,2]
[null,null,null,null,null,null,null,null,null,null,null,null,null,null,null,null,null,null,null,null,null,null,null,2]
[null,null,null,null,null,null,null,null,null,null,null,null,null,null,null,null,null,null,null,null,null,null,null,2]
[null,null,null,null,null,null,null,null,null,null,null,null,null,null,null,null,null,null,null,null,null,null,null,2]
[null,null,null,null,null,null,null,null,null,null,null,null,null,null,null,null,null,null,null,null,null,null,null,2]
[null,null,null,null,null,null,null,null,null,null,null,null,null,null,null,null,null,null,null,null,null,null,null,2]
[3,"Муниципальная программа \"Развитие образования\"","Нет","925 0702 0000000000 244",1,"2024-12-28","Услугу по предоставлению площадки для стоянки транспортного средства",72000,{"$f":"IF(X35 = 3, H35 + SUM(S35:S50) - SUM(T35:T50) - SUM(P35:P50) - V35,0)","v":54000},"2369008420","ООО \"Медведовские сады\"",null,"С 01.01.2025 года по 31.08.2025 года","2025-02-05","В течение 10 рабочих дней с даты подписания Заказчиком документа о приемке оказанных услуг",9000,"2025-02-13",null,null,null,null,null,null,3]
[null,null,null,null,null,null,null,null,null,null,null,null,null,"2025-02-28",null,9000,"2025-03-07",null,null,null,null,null,null,3]
[null,null,null,null,null,null,null,null,null,null,null,null,null,null,null,null,null,null,null,null,null,null,null,3]
[null,null,null,null,null,null,null,null,null,null,null,null,null,null,null,null,null,null,null,null,null,null,null,3]
[null,null,null,null,null,null,null,null,null,null,null,null,null,null,null,null,null,null,null,null,null,null,null,3]
[null,null,null,null,null,null,null,null,null,null,null,null,null,null,null,null,null,null,null,null,null,null,null,3]
[null,null,null,null,null,null,null,null,null,null,null,null,null,null,null,null,null,null,null,null,null,null,null,3]
[null,null,null,null,null,null,null,null,null,null,null,null,null,null,null,null,null,null,null,null,null,null,null,3]
[null,null,null,null,null,null,null,null,null,null,null,null,null,null,null,null,null,null,null,null,null,null,null,3]
[null,null,null,null,null,null,null,null,null,null,null,null,null,null,null,null,null,null,null,null,null,null,null,3]
[null,null,null,null,null,null,null,null,null,null,null,null,null,null,null,null,null,null,null,null,null,null,null,3]
[null,null,null,null,null,null,null,null,null,null,null,null,null,null,null,null,null,null,null,null,null,null,null,3]
[null,null,null,null,null,null,null,null,null,null,null,null,null,null,null,null,null,null,null,null,null,null,null,3]
[null,null,null,null,null,null,null,null,null,null,null,null,null,null,null,null,null,null,null,null,null,null,null,3]
[null,null,null,null,null,null,null,null,null,null,null,null,null,null,null,null,null,null,null,null,null,null,null,3]
[null,null,null,null,null,null,null,null,null,null,null,null,null,null,null,null,null,null,null,null,null,null,null,3]
[4,"Муниципальная программа \"Развитие образования\"","Нет","925 0702 0000000000 244",1,"2024-12-28","Услуги по ежедневному предрейсовому и послерейсовому медицинскому обслуживанию водителей",93100,{"$f":"IF(X51 = 5, H51 + SUM(S51:S72) - SUM(T51:T72) - SUM(P51:P72) - V51,0)","v":76950},"2353017637","ООО «Сервис Юг»",null,"С 01.01.2025 года по 31.08.2025 года","2025-02-05","В течение 10 рабочих дней с момента предоставления и подписания сторонами документов, подтверждающих факт выполнения Исполнителем своих обязательств и подписания Заказчиком\n",7220,"2025-02-13",null,null,null,null,null,null,5]
[null,null,null,null,null,null,null,null,null,null,null,null,null,"2025-02-28",null,8930,"2025-03-07",null,null,null,null,null,null,5]
[null,null,null,null,null,null,null,null,null,null,null,null,null,null,null,null,null,null,null,null,null,null,null,5]
[null,null,null,null,null,null,null,null,null,null,null,null,null,null,null,null,null,null,null,null,null,null,null,5]
[null,null,null,null,null,null,null,null,null,null,null,null,null,null,null,null,null,null,null,null,null,null,null,5]
[null,null,null,null,null,null,null,null,null,null,null,null,null,null,null,null,null,null,null,null,null,null,null,5]
[null,null,null,null,null,null,null,null,null,null,null,null,null,null,null,null,null,null,null,null,null,null,null,5]
[null,null,null,null,null,null,null,null,null,null,null,null,null,null,null,null,null,null,null,null,null,null,null,5]
[null,null,null,null,null,null,null,null,null,null,null,null,null,null,null,null,null,null,null,null,null,null,null,5]
[null,null,null,null,null,null,null,null,null,null,null,null,null,null,null,null,null,null,null,null,null,null,null,5]
[null,null,null,null,null,null,null,null,null,null,null,null,null,null,null,null,null,null,null,null,null,null,null,5]
[null,null,null,null,null,null,null,null,null,null,null,null,null,null,null,null,null,null,null,null,null,null,null,5]
[null,null,null,null,null,null,null,null,null,null,null,null,null,null,null,null,null,null,null,null,null,null,null,5]
[null,null,null,null,null,null,null,null,null,null,null,null,null,null,null,null,null,null,null,null,null,null,null,5]
[null,null,null,null,null,null,null,null,null,null,null,null,null,null,null,null,null,null,null,null,null,null,null,5]
[null,null,null,null,null,null,null,null,null,null,null,null,null,null,null,null,null,null,null,null,null,null,null,5]
[null,null,null,null,null,null,null,null,null,null,null,null,null,null,null,null,null,null,null,null,null,null,null,5]
[null,null,null,null,null,null,null,null,null,null,null,null,null,null,null,null,null,null,null,null,null,null,null,5]
[null,null,null,null,null,null,null,null,null,null,null,null,null,null,null,null,null,null,null,null,null,null,null,5]
[null,null,null,null,null,null,null,null,null,null,null,null,null,null,null,null,null,null,null,null,null,null,null,5]
[null,null,null,null,null,null,null,null,null,null,null,null,null,null,null,null,null,null,null,null,null,null,null,5]
[null,null,null,null,null,null,null,null,null,null,null,null,null,null,null,null,null,null,null,null,null,null,null,5]
[5,"Муниципальная программа \"Развитие образования\"","Нет","925 0702 0000000000 244",2,"2024-12-28","Услуги по ежедневному техническому предрейсовому и послерейсовому осмотру транспортного средства ",93100,{"$f":"IF(X73 = 6, H73 + SUM(S73:S75) - SUM(T73:T75) - SUM(P73:P75) - V73,0)","v":76950},"2353017637","ООО «Сервис Юг»",null,"С 01.01.2025 года по 31.08.2025 года","2025-02-05","В течение 10 рабочих дней с момента предоставления и подписания сторонами документов, подтверждающих факт выполнения Исполнителем своих обязательств и подписания Заказчиком\n",7000,"2025-02-13",null,null,null,null,null,null,6]
[null,null,null,null,null,null,null,null,null,null,null,null,null,"2025-02-05",null,220,"2025-02-13",null,null,null,null,null,null,6]
[null,null,null,null,null,null,null,null,null,null,null,null,null,"2025-02-28",null,8930,"2025-03-07",null,null,null,null,null,null,6]
[6,"Муниципальная программа \"Развитие образования\"","Нет","925 0702 0000000000 244","А-201","2024-12-28","Работа по техническому обслуживанию (ТО) автоматических установок пожарной сигнализации ",24000,{"$f":"IF(X76 = 7, H76 + SUM(S76:S97) - SUM(T76:T97) - SUM(P76:P97) - V76,0)","v":20000},"2353002302 ","ООО \"Сигнал\"",null,"С 01 января 2025 года по 31 декабря 2025 года","2025-01-31","В течение 10 (десяти) рабочих дней с даты подписания Сторонами акта сдачи-приемки выполненных работ",2000,"2025-02-13",null,null,null,null,null,null,7]
[null,null,null,null,null,null,null,null,null,null,null,null,null,"2025-02-28",null,2000,"2025-03-13",null,null,null,null,null,null,7]
[null,null,null,null,null,null,null,null,null,null,null,null,null,null,null,null,null,null,null,null,null,null,null,7]
[null,null,null,null,null,null,null,null,null,null,null,null,null,null,null,null,null,null,null,null,null,null,null,7]
[null,null,null,null,null,null,null,null,null,null,null,null,null,null,null,null,null,null,null,null,null,null,null,7]
[null,null,null,null,null,null,null,null,null,null,null,null,null,null,null,null,null,null,null,null,null,null,null,7]
[null,null,null,null,null,null,null,null,null,null,null,null,null,null,null,null,null,null,null,null,null,null,null,7]
[null,null,null,null,null,null,null,null,null,null,null,null,null,null,null,null,null,null,null,null,null,null,null,7]
[null,null,null,null,null,null,null,null,null,null,null,null,null,null,null,null,null,null,null,null,null,null,null,7]
[null,null,null,null,null,null,null,null,null,null,null,null,null,null,null,null,null,null,null,null,null,null,null,7]
[null,null,null,null,null,null,null,null,null,null,null,null,null,null,null,null,null,null,null,null,null,null,null,7]
[null,null,null,null,null,null,null,null,null,null,null,null,null,null,null,null,null,null,null,null,null,null,null,7]
[null,null,null,null,null,null,null,null,null,null,null,null,null,null,null,null,null,null,null,null,null,null,null,7]
[null,null,null,null,null,null,null,null,null,null,null,null,null,null,null,null,null,null,null,null,null,null,null,7]
[null,null,null,null,null,null,null,null,null,null,null,null,null,null,null,null,null,null,null,null,null,null,null,7]
[null,null,null,null,null,null,null,null,null,null,null,null,null,null,null,null,null,null,null,null,null,null,null,7]
[null,null,null,null,null,null,null,null,null,null,null,null,null,null,null,null,null,null,null,null,null,null,null,7]
[null,null,null,null,null,null,null,null,null,null,null,null,null,null,null,null,null,null,null,null,null,null,null,7]
[null,null,null,null,null,null,null,null,null,null,null,null,null,null,null,null,null,null,null,null,null,null,null,7]
[null,null,null,null,null,null,null,null,null,null,null,null,null,null,null,null,null,null,null,null,null,null,null,7]
[null,null,null,null,null,null,null,null,null,null,null,null,null,null,null,null,null,null,null,null,null,null,null,7]
[null,null,null,null,null,null,null,null,null,null,null,null,null,null,null,null,null,null,null,null,null,null,null,7]
[7,"Муниципальная программа \"Развитие образования\"","Нет","925 0702 0000000000 244","А-202","2024-12-28","Работы по техническому обслуживанию (ТО) объектовой станции системы пожарного мониторинга ПАК \"Стрелец-Мониторинг\"",36000,{"$f":"IF(X98 = 8, H98 + SUM(S98:S111) - SUM(T98:T111) - SUM(P98:P111) - V98,0)","v":30000},"2353002302 ","ООО \"Сигнал\"",null,"С 01.01.2025 года по 31.12.2025 года","2025-01-31","В течение 10 (десяти) рабочих дней с даты подписания Сторонами акта сдачи-приемки выполненных работ",3000,"2025-02-13",null,null,null,null,null,null,8]
[null,null,null,null,null,null,null,null,null,null,null,null,null,"2025-02-28",null,3000,"2025-03-13",null,null,null,null,null,null,8]
[null,null,null,null,null,null,null,null,null,null,null,null,null,null,null,null,null,null,null,null,null,null,null,8]
[null,null,null,null,null,null,null,null,null,null,null,null,null,null,null,null,null,null,null,null,null,null,null,8]
[null,null,null,null,null,null,null,null,null,null,null,null,null,null,null,null,null,null,null,null,null,null,null,8]
[null,null,null,null,null,null,null,null,null,null,null,null,null,null,null,null,null,null,null,null,null,null,null,8]
[null,null,null,null,null,null,null,null,null,null,null,null,null,null,null,null,null,null,null,null,null,null,null,8]
[null,null,null,null,null,null,null,null,null,null,null,null,null,null,null,null,null,null,null,null,null,null,null,8]
[null,null,null,null,null,null,null,null,null,null,null,null,null,null,null,null,null,null,null,null,null,null,null,8]
[null,null,null,null,null,null,null,null,null,null,null,null,null,null,null,null,null,null,null,null,null,null,null,8]
[null,null,null,null,null,null,null,null,null,null,null,null,null,null,null,null,null,null,null,null,null,null,null,8]
[null,null,null,null,null,null,null,null,null,null,null,null,null,null,null,null,null,null,null,null,null,null,null,8]
[null,null,null,null,null,null,null,null,null,null,null,null,null,null,null,null,null,null,null,null,null,null,null,8]
[null,null,null,null,null,null,null,null,null,null,null,null,null,null,null,null,null,null,null,null,null,null,null,8]
[8,"Муниципальная программа \"Развитие образования\"","Нет","925 0702 0000000000 244",34001042,"2024-12-28","Услуги по охране объекта, оборудованные  комплексом технических средств охраны с выводом на пульт централизованного наблюдения (далее - ПЦН) Охраны ",27331.200000000001,{"$f":"IF(X112 = 9, H112 + SUM(S112:S130) - SUM(T112:T130) - SUM(P112:P130) - V112,0)","v":22776}," 2310163739","ФГКУ \"УВО ВНГ России по Краснодарскому краю\"",null,"С 01 января 2025 года по 31 декабря 2025 года","2025-02-20","В срок, не превышающий 10 (десяти) рабочих дней с даты подписания Заказчиком документов о приемке оказанных услуг",2277.6,"2025-02-27",null,null,null,null,null,null,9]
[null,null,null,null,null,null,null,null,null,null,null,null,null,"2025-02-28",null,2277.6,"2025-03-13",null,null,null,null,null,null,9]
[null,null,null,null,null,null,null,null,null,null,null,null,null,null,null,null,null,null,null,null,null,null,null,9]
[null,null,null,null,null,null,null,null,null,null,null,null,null,null,null,null,null,null,null,null,null,null,null,9]
[null,null,null,null,null,null,null,null,null,null,null,null,null,null,null,null,null,null,null,null,null,null,null,9]
[null,null,null,null,null,null,null,null,null,null,null,null,null,null,null,null,null,null,null,null,null,null,null,9]
[null,null,null,null,null,null,null,null,null,null,null,null,null,null,null,null,null,null,null,null,null,null,null,9]
[null,null,null,null,null,null,null,null,null,null,null,null,null,null,null,null,null,null,null,null,null,null,null,9]
[null,null,null,null,null,null,null,null,null,null,null,null,null,null,null,null,null,null,null,null,null,null,null,9]
[null,null,null,null,null,null,null,null,null,null,null,null,null,null,null,null,null,null,null,null,null,null,null,9]
[null,null,null,null,null,null,null,null,null,null,null,null,null,null,null,null,null,null,null,null,null,null,null,9]
[null,null,null,null,null,null,null,null,null,null,null,null,null,null,null,null,null,null,null,null,null,null,null,9]
[null,null,null,null,null,null,null,null,null,null,null,null,null,null,null,null,null,null,null,null,null,null,null,9]
[null,null,null,null,null,null,null,null,null,null,null,null,null,null,null,null,null,null,null,null,null,null,null,9]
[null,null,null,null,null,null,null,null,null,null,null,null,null,null,null,null,null,null,null,null,null,null,null,9]
[null,null,null,null,null,null,null,null,null,null,null,null,null,null,null,null,null,null,null,null,null,null,null,9]
[null,null,null,null,null,null,null,null,null,null,null,null,null,null,null,null,null,null,null,null,null,null,null,9]
[null,null,null,null,null,null,null,null,null,null,null,null,null,null,null,null,null,null,null,null,null,null,null,9]
[null,null,null,null,null,null,null,null,null,null,null,null,null,null,null,null,null,null,null,null,null,null,null,9]
[9,"Муниципальная программа \"Развитие образования\"","Нет","925 0702 0000000000 244","ДГ-25/11","2024-12-28","Услуги по техническому сопровождению транспортных средств",14400,{"$f":"IF(X131 = 10, H131 + SUM(S131:S147) - SUM(T131:T147) - SUM(P131:P147) - V131,0)","v":14400},"2369000660","ООО \"КАНкорт\"",null,"С 01 января 2025 года по 31 декабря 2025 года включительно",null,"В течение 10 (десяти) рабочих дней с момента подписания Заказчиком акта выполненных работ",null,null,null,null,null,null,null,null,10]
[null,null,null,null,null,null,null,null,null,null,null,null,null,null,null,null,null,null,null,null,null,null,null,10]
[null,null,null,null,null,null,null,null,null,null,null,null,null,null,null,null,null,null,null,null,null,null,null,10]
[null,null,null,null,null,null,null,null,null,null,null,null,null,null,null,null,null,null,null,null,null,null,null,10]
[null,null,null,null,null,null,null,null,null,null,null,null,null,null,null,null,null,null,null,null,null,null,null,10]
[null,null,null,null,null,null,null,null,null,null,null,null,null,null,null,null,null,null,null,null,null,null,null,10]
[null,null,null,null,null,null,null,null,null,null,null,null,null,null,null,null,null,null,null,null,null,null,null,10]
[null,null,null,null,null,null,null,null,null,null,null,null,null,null,null,null,null,null,null,null,null,null,null,10]
[null,null,null,null,null,null,null,null,null,null,null,null,null,null,null,null,null,null,null,null,null,null,null,10]
[null,null,null,null,null,null,null,null,null,null,null,null,null,null,null,null,null,null,null,null,null,null,null,10]
[null,null,null,null,null,null,null,null,null,null,null,null,null,null,null,null,null,null,null,null,null,null,null,10]
[null,null,null,null,null,null,null,null,null,null,null,null,null,null,null,null,null,null,null,null,null,null,null,10]
[null,null,null,null,null,null,null,null,null,null,null,null,null,null,null,null,null,null,null,null,null,null,null,10]
[null,null,null,null,null,null,null,null,null,null,null,null,null,null,null,null,null,null,null,null,null,null,null,10]
[null,null,null,null,null,null,null,null,null,null,null,null,null,null,null,null,null,null,null,null,null,null,null,10]
[null,null,null,null,null,null,null,null,null,null,null,null,null,null,null,null,null,null,null,null,null,null,null,10]
[null,null,null,null,null,null,null,null,null,null,null,null,null,null,null,null,null,null,null,null,null,null,null,10]
[10,"Муниципальная программа \"Развитие образования\"","Нет","925 0702 0000000000 244","13/25","2024-12-28","Систематическая дератизация (борьба с грызунами и  контрольное наблюдение за их наличием в помещениях)",28600,{"$f":"IF(X148 = 12, H148 + SUM(S148:S165) - SUM(T148:T165) - SUM(P148:P165) - V148,0)","v":28600},"2353018870 ","ООО \"Дезинфекция\" ",null,"С 01.01.2025 года по 31.12.2025 года",null,"В течение 10 рабочих дней после подписания документов",null,null,null,null,null,null,null,null,12]
[null,null,null,null,null,null,null,null,null,null,null,null,null,null,null,null,null,null,null,null,null,null,null,12]
[null,null,null,null,null,null,null,null,null,null,null,null,null,null,null,null,null,null,null,null,null,null,null,12]
[null,null,null,null,null,null,null,null,null,null,null,null,null,null,null,null,null,null,null,null,null,null,null,12]
[null,null,null,null,null,null,null,null,null,null,null,null,null,null,null,null,null,null,null,null,null,null,null,12]
[null,null,null,null,null,null,null,null,null,null,null,null,null,null,null,null,null,null,null,null,null,null,null,12]
[null,null,null,null,null,null,null,null,null,null,null,null,null,null,null,null,null,null,null,null,null,null,null,12]
[null,null,null,null,null,null,null,null,null,null,null,null,null,null,null,null,null,null,null,null,null,null,null,12]
[null,null,null,null,null,null,null,null,null,null,null,null,null,null,null,null,null,null,null,null,null,null,null,12]
[null,null,null,null,null,null,null,null,null,null,null,null,null,null,null,null,null,null,null,null,null,null,null,12]
[null,null,null,null,null,null,null,null,null,null,null,null,null,null,null,null,null,null,null,null,null,null,null,12]
[null,null,null,null,null,null,null,null,null,null,null,null,null,null,null,null,null,null,null,null,null,null,null,12]
[null,null,null,null,null,null,null,null,null,null,null,null,null,null,null,null,null,null,null,null,null,null,null,12]
[null,null,null,null,null,null,null,null,null,null,null,null,null,null,null,null,null,null,null,null,null,null,null,12]
[null,null,null,null,null,null,null,null,null,null,null,null,null,null,null,null,null,null,null,null,null,null,null,12]
[null,null,null,null,null,null,null,null,null,null,null,null,null,null,null,null,null,null,null,null,null,null,null,12]
[null,null,null,null,null,null,null,null,null,null,null,null,null,null,null,null,null,null,null,null,null,null,null,12]
[null,null,null,null,null,null,null,null,null,null,null,null,null,null,null,null,null,null,null,null,null,null,null,12]
[11,"Государственная программа Краснодарского края \"Развитие образования\"","Нет","925 0702 0000000000 244",153,"2024-12-28","Оказание услуг связи",28140.34,{"$f":"IF(X166 = 13, H166 + SUM(S166:S185) - SUM(T166:T185) - SUM(P166:P185) - V166,0)","v":23004.27},"7707049388","ПАО \"Ростелеком\"",null,"С 01 января 2025 года по 31 декабря 2025 года","2025-02-03","Не позднее 10 (десяти) рабочих дней с даты подписания документов о приемке оказанных услуг",2541.7800000000002,"2025-02-13",null,null,null,null,null,null,13]
[null,null,null,null,null,null,null,null,null,null,null,null,null,"2025-02-03",null,44.45,"2025-02-13",null,null,null,null,null,null,13]
[null,null,null,null,null,null,null,null,null,null,null,null,null,"2025-03-04",null,2464.88,"2025-03-17",null,null,null,null,null,null,13]
[null,null,null,null,null,null,null,null,null,null,null,null,null,"2025-03-04",null,84.96,"2025-03-17",null,null,null,null,null,null,13]
[null,null,null,null,null,null,null,null,null,null,null,null,null,null,null,null,null,null,null,null,null,null,null,13]
[null,null,null,null,null,null,null,null,null,null,null,null,null,null,null,null,null,null,null,null,null,null,null,13]
[null,null,null,null,null,null,null,null,null,null,null,null,null,null,null,null,null,null,null,null,null,null,null,13]
[null,null,null,null,null,null,null,null,null,null,null,null,null,null,null,null,null,null,null,null,null,null,null,13]
[null,null,null,null,null,null,null,null,null,null,null,null,null,null,null,null,null,null,null,null,null,null,null,13]
[null,null,null,null,null,null,null,null,null,null,null,null,null,null,null,null,null,null,null,null,null,null,null,13]
[null,null,null,null,null,null,null,null,null,null,null,null,null,null,null,null,null,null,null,null,null,null,null,13]
[null,null,null,null,null,null,null,null,null,null,null,null,null,null,null,null,null,null,null,null,null,null,null,13]
[null,null,null,null,null,null,null,null,null,null,null,null,null,null,null,null,null,null,null,null,null,null,null,13]
[null,null,null,null,null,null,null,null,null,null,null,null,null,null,null,null,null,null,null,null,null,null,null,13]
[null,null,null,null,null,null,null,null,null,null,null,null,null,null,null,null,null,null,null,null,null,null,null,13]
[null,null,null,null,null,null,null,null,null,null,null,null,null,null,null,null,null,null,null,null,null,null,null,13]
[null,null,null,null,null,null,null,null,null,null,null,null,null,null,null,null,null,null,null,null,null,null,null,13]
[null,null,null,null,null,null,null,null,null,null,null,null,null,null,null,null,null,null,null,null,null,null,null,13]
[null,null,null,null,null,null,null,null,null,null,null,null,null,null,null,null,null,null,null,null,null,null,null,13]
[null,null,null,null,null,null,null,null,null,null,null,null,null,null,null,null,null,null,null,null,null,null,null,13]
[12,"Муниципальная программа \"Развитие образования\"","Нет","925 0702 0000000000 244","13","2024-12-28","Плановые и оперативные работы по сервисному (техническому) обслуживанию установок узла учета тепловой энергии",11900,{"$f":"IF(X186 = 14, H186 + SUM(S186:S193) - SUM(T186:T193) - SUM(P186:P193) - V186,0)","v":8500},"235301271520","Индивидуальный предприниматель Дудкин Антон Сергеевич",null,"С 01.01.2025 года по 31.12.2025 года","2025-01-24","В течение 10 (десяти) рабочих дней с момента подписания Заказчиком Акта сдачи-приемки выполненных услуг и выставления счета Исполнителем",1700,"2025-02-05",null,null,null,null,null,null,14]
[null,null,null,null,null,null,null,null,null,null,null,null,null,"2025-02-25",null,1700,"2025-03-03",null,null,null,null,null,null,14]
[null,null,null,null,null,null,null,null,null,null,null,null,null,null,null,null,null,null,null,null,null,null,null,14]
[null,null,null,null,null,null,null,null,null,null,null,null,null,null,null,null,null,null,null,null,null,null,null,14]
[null,null,null,null,null,null,null,null,null,null,null,null,null,null,null,null,null,null,null,null,null,null,null,14]
[null,null,null,null,null,null,null,null,null,null,null,null,null,null,null,null,null,null,null,null,null,null,null,14]
[null,null,null,null,null,null,null,null,null,null,null,null,null,null,null,null,null,null,null,null,null,null,null,14]
[null,null,null,null,null,null,null,null,null,null,null,null,null,null,null,null,null,null,null,null,null,null,null,14]
[13,"Муниципальная программа \"Развитие образования\"","Нет","925 0702 0000000000 244","2/2025","2025-01-20","Изготовление информационно рекламной конструкции",3990,{"$f":"IF(X194 = 15, H194 + SUM(S194:S208) - SUM(T194:T208) - SUM(P194:P208) - V194,0)","v":0},"233905675063","Индивидуальный предприниматель Мироненко Надежда Ивановна",null,"14 календарных дней с даты подписания договора","2025-01-20","Не позднее 10  рабочих дней с момента подписания Заказчиком документов о приемке ",3990,"2025-01-27",null,null,null,null,null,null,15]
[null,null,null,null,null,null,null,null,null,null,null,null,null,null,null,null,null,null,null,null,null,null,null,15]
[null,null,null,null,null,null,null,null,null,null,null,null,null,null,null,null,null,null,null,null,null,null,null,15]
[null,null,null,null,null,null,null,null,null,null,null,null,null,null,null,null,null,null,null,null,null,null,null,15]
[null,null,null,null,null,null,null,null,null,null,null,null,null,null,null,null,null,null,null,null,null,null,null,15]
[null,null,null,null,null,null,null,null,null,null,null,null,null,null,null,null,null,null,null,null,null,null,null,15]
[null,null,null,null,null,null,null,null,null,null,null,null,null,null,null,null,null,null,null,null,null,null,null,15]
[null,null,null,null,null,null,null,null,null,null,null,null,null,null,null,null,null,null,null,null,null,null,null,15]
[null,null,null,null,null,null,null,null,null,null,null,null,null,null,null,null,null,null,null,null,null,null,null,15]
[null,null,null,null,null,null,null,null,null,null,null,null,null,null,null,null,null,null,null,null,null,null,null,15]
[null,null,null,null,null,null,null,null,null,null,null,null,null,null,null,null,null,null,null,null,null,null,null,15]
[null,null,null,null,null,null,null,null,null,null,null,null,null,null,null,null,null,null,null,null,null,null,null,15]
[null,null,null,null,null,null,null,null,null,null,null,null,null,null,null,null,null,null,null,null,null,null,null,15]
[null,null,null,null,null,null,null,null,null,null,null,null,null,null,null,null,null,null,null,null,null,null,null,15]
[null,null,null,null,null,null,null,null,null,null,null,null,null,null,null,null,null,null,null,null,null,null,null,15]
[14,"Муниципальная программа \"Развитие образования\"","Нет","925 0702 0000000000 244","1","2025-01-21","Услуги по техническому обслуживанию и ремонту прочих автотранспортных средств",38450,{"$f":"IF(X209 = 96, H209 + SUM(S209:S210) - SUM(T209:T210) - SUM(P209:P210) - V209,0)","v":0},"235303483777","Индивидуальный предприниматель Аполонов Алексей Аркадьевич",null,"21.01.2025","2025-01-21","В течение 10 рабочих дней с даты подписания Заказчиком акта сдачи-приемки оказанных услуг",38450,"2025-01-30",null,null,null,null,null,null,96]
[null,null,null,null,null,null,null,null,null,null,null,null,null,null,null,null,null,null,null,null,null,null,null,96]
[15,"Муниципальная программа \"Развитие образования\"","Нет","925 0702 0000000000 244","024/2025-КРД","2025-01-21","Гарнитура игровая Defender Warhead G-160, для компьютера и игровых консолей, накладные, проводные, черный / синий",2370,{"$f":"IF(X211 = 97, H211 + SUM(S211:S214) - SUM(T211:T214) - SUM(P211:P214) - V211,0)","v":0},"7718979307","ООО \"Ситилинк\"",null,"В течение 25 (двадцати пяти) рабочих дней с момента подписания контракта","2025-02-12","В течение 10 (десяти) рабочих дней с момента приема-передачи товара ",2370,"2025-02-17",null,null,null,null,null,null,97]
[null,null,null,null,null,null,null,null,null,null,null,null,null,null,null,null,null,null,null,null,null,null,null,97]
[null,null,null,null,null,null,null,null,null,null,null,null,null,null,null,null,null,null,null,null,null,null,null,97]
[null,null,null,null,null,null,null,null,null,null,null,null,null,null,null,null,null,null,null,null,null,null,null,97]
[16,"Муниципальная программа \"Развитие образования\"","Нет","925 0702 0000000000 247","37/25","2025-01-21","Водоотведение",28232,{"$f":"IF(X215 = 98, H215 + SUM(S215:S217) - SUM(T215:T217) - SUM(P215:P217) - V215,0)","v":24366.260000000002},"2369003044 ","МУП ЖКХ \"Универсал плюс\" Медведовского сельского поселения Тимашевского района",null,"С 01.01.2025 года по 31.12.2025 года ","2025-01-31","В срок до 10-го числа месяца, следующего за расчетным месяцем",2475.4299999999998,"2025-02-13",null,null,null,null,null,null,98]
[null,null,null,null,null,null,null,null,null,null,null,null,null,"2025-02-25",null,1390.31,"2025-03-13",null,null,null,null,null,null,98]
[null,null,null,null,null,null,null,null,null,null,null,null,null,null,null,null,null,null,null,null,null,null,null,98]
[17,"Муниципальная программа \"Развитие образования\"","Нет","925 0702 0000000000 244",12,"2025-01-23","Канцтовары",1946,{"$f":"IF(X218 = 99, H218 + SUM(S218:S218) - SUM(T218:T218) - SUM(P218:P218) - V218,0)","v":0},"235304188742","Индивидуальный предприниматель Кушнаренко Людмила Васильевна",null,"В течение пяти дней с момента заключения договора","2025-01-23","Не позднее 10 рабочих дней с момента передачи товара",1946,"2025-01-27",null,null,null,null,null,null,99]
[18,"Муниципальная программа \"Развитие образования\"","Нет","925 0702 0000000000 244","КС2/2353015260/25","2025-01-29","Научно- технические услуги по предоставлению, развитию и технической поддержке корпоративных сервисов РКС ОО КК",9144,{"$f":"IF(X219 = 100, H219 + SUM(S219:S219) - SUM(T219:T219) - SUM(P219:P219) - V219,0)","v":9144},"2312038420","ФГБОУ ВО «КубГУ»",null,"С 1 января 2025 года по 31 декабря 2025 года",null,"В течение 10 (десяти) рабочих дней с момента подписания обеими сторонами акта оказанных услуг и предоставления счета на оплату",null,null,null,null,null,null,null,null,100]
[19,"Муниципальная программа \"Развитие образования\"","Нет","925 0702 0000000000 244",13,"2025-01-29","Услуги по техническому обслуживанию автоматических установок тревожной сигнализации",18000,{"$f":"IF(X220 = 101, H220 + SUM(S220:S221) - SUM(T220:T221) - SUM(P220:P221) - V220,0)","v":15000},"235300904000","Индивидуальный предприниматель Войтенко Евгений Николаевич",null," С «01» января 2025 года по «31» декабря 2025 года","2025-01-31","Не позднее 10 рабочих дней с момента подписания Заказчиком документа о приемке услуг",1500,"2025-02-13",null,null,null,null,null,null,101]
[null,null,null,null,null,null,null,null,null,null,null,null,null,"2025-02-28",null,1500,"2025-03-13",null,null,null,null,null,null,101]
[20,"Муниципальная программа \"Развитие образования\"","Нет","925 0702 0000000000 244",2,"2025-01-30","Поставка ремня приводного клинового 2120",700,{"$f":"IF(X222 = 102, H222 + SUM(S222:S222) - SUM(T222:T222) - SUM(P222:P222) - V222,0)","v":0},"235303483777","Индивидуальный предприниматель Аполонов Алексей Аркадьевич",null,"В срок в течении 5 (пяти) календарных дней со дня заключения контракта","2025-01-30","Не позднее 10 рабочих дней с даты подписания Заказчиком документов о приемке",700,"2025-02-10",null,null,null,null,null,null,102]
[21,"Муниципальная программа \"Развитие образования\"","Нет","925 0702 0000000000 244",14,"2025-02-05","Изготовление и поставка знамя с древко",14850,{"$f":"IF(X223 = 103, H223 + SUM(S223:S223) - SUM(T223:T223) - SUM(P223:P223) - V223,0)","v":0},"235307504481","Индивидуальный предприниматель Устименко Федор Евгеньевич",null,"15 рабочих дней после подписания договора","2025-02-13","В течение 10 рабочих дней с даты подписания Заказчиком документов: счета, товарной накладной",14850,"2025-02-19",null,null,null,null,null,null,103]
[22,"Государственная программа Краснодарского края \"Развитие образования\"","Нет","925 0702 0000000000 244","23-12035","2025-02-10","Изготовление и поставка полиграфической, в том числе защищенной от подделок и строгого учета продукции ",38351.599999999999,{"$f":"IF(X224 = 104, H224 + SUM(S224:S224) - SUM(T224:T224) - SUM(P224:P224) - V224,0)","v":0},"7706526550 ","Общество с ограниченной ответственностью \"СБМ\"",null,"В течение 40 (Сорока) календарных дней после получения Поставщиком подписанного Контракта от Заказчика","2025-02-20","В течение 10 (Десяти) рабочих дней с момента получения Продукции",38351.599999999999,"2025-02-26",null,null,null,null,null,null,104]
[23,"Муниципальная программа \"Развитие образования\"","Нет","925 0702 0000000000 244","IТ000626554","2025-02-13","Право использования программ для ЭВМ Dr.Web Desktop Security Suite, Dr.Web Server Security Suite, Dr.Web Mobile Security Suite (Комплект для школ), 12 мес, продление, рабочие станции (50)",12937.2,{"$f":"IF(X225 = 105, H225 + SUM(S225:S225) - SUM(T225:T225) - SUM(P225:P225) - V225,0)","v":0},"7736542069","ООО \"СофтЛайн Интернет Трейд\"",null,"В течение 5 (пяти) рабочих дней с даты получения уведомления от Поставщика","2025-02-14","В течение 10 (десяти) рабочих дней с момента подписания Сторонами универсального передаточного документа",12937.2,"2025-02-19",null,null,null,null,null,null,105]
[24,"Муниципальная программа \"Развитие образования\"","Нет","925 0702 0000000000 244","80-ТО","2025-02-13","Проверка технического состояния транспортного средства",6800,{"$f":"IF(X226 = 106, H226 + SUM(S226:S226) - SUM(T226:T226) - SUM(P226:P226) - V226,0)","v":0},"235305769122 ","Индивидуальный предприниматель Барма Иван Николаевич",null,"Не ранее чем через 5 рабочих дней со дня поступления предварительной заявки Заказчика","2025-02-13","В течении 10 (десяти) рабочих дней на основании акта выполненных работ",6800,"2025-02-20",null,null,null,null,null,null,106]
[25,"Муниципальная программа \"Развитие образования\"","Нет","925 0702 0000000000 244","45-1/25","2025-02-13","Услуги по проведению предварительных и периодических медицинских осмотров (обследований) работников",13174,{"$f":"IF(X227 = 107, H227 + SUM(S227:S229) - SUM(T227:T229) - SUM(P227:P229) - V227,0)","v":13174},"2353006498","ГБУЗ «Тимашевская ЦРБ» МЗ КК",null,"25.03.2025г., 26.03.2025г.",null,"В течение 7 рабочих дней с даты подписания обеими сторонами Акта об оказании услуг",null,null,null,null,null,null,null,null,107]
[null,null,null,null,null,null,null,null,null,null,null,null,null,null,null,null,null,null,null,null,null,null,null,107]
[null,null,null,null,null,null,null,null,null,null,null,null,null,null,null,null,null,null,null,null,null,null,null,107]
[26,"Муниципальная программа \"Развитие образования\"","Нет","925 0702 0000000000 244","1802/2025","2025-02-18","Перчатки многоразовые латексные \"Для деликатной уборки\", размер M (средний), вес 26 г, KOMFI, DGL017 и чистящее средство порошок с хлором 500 г, ПЕМОКСОЛЬ-М \"Лимон\", универсальное, туба",2269.77,{"$f":"IF(X230 = 108, H230 + SUM(S230:S238) - SUM(T230:T238) - SUM(P230:P238) - V230,0)","v":0},"233003348389 ","Индивидуальный предприниматель Тарануха Андрей Владимирович",null,"Не более 5 (пяти) календарных дней со дня согласования заявки","2025-02-20","В течение 10 (рабочих) дней с даты подписания Покупателем документов о приемке",2269.77,"2025-02-21",null,null,null,null,null,null,108]
[null,null,null,null,null,null,null,null,null,null,null,null,null,null,null,null,null,null,null,null,null,null,null,108]
[null,null,null,null,null,null,null,null,null,null,null,null,null,null,null,null,null,null,null,null,null,null,null,108]
[null,null,null,null,null,null,null,null,null,null,null,null,null,null,null,null,null,null,null,null,null,null,null,108]
[null,null,null,null,null,null,null,null,null,null,null,null,null,null,null,null,null,null,null,null,null,null,null,108]
[null,null,null,null,null,null,null,null,null,null,null,null,null,null,null,null,null,null,null,null,null,null,null,108]
[null,null,null,null,null,null,null,null,null,null,null,null,null,null,null,null,null,null,null,null,null,null,null,108]
[null,null,null,null,null,null,null,null,null,null,null,null,null,null,null,null,null,null,null,null,null,null,null,108]
[null,null,null,null,null,null,null,null,null,null,null,null,null,null,null,null,null,null,null,null,null,null,null,108]
[27,"Муниципальная программа \"Развитие образования\"","Нет","925 0702 0000000000 244",1,"2025-02-19","Фотобумагаа, сетевой фильтр и рубанок металлический ",7510,{"$f":"IF(X239 = 109, H239 + SUM(S239:S244) - SUM(T239:T244) - SUM(P239:P244) - V239,0)","v":0},"1658056156","ООО «КОМУС-РАЗВИТИЕ»",null,"В течение 30 календарных дней с даты заключения Контракта","2025-02-26","Не более 10 (десяти) рабочих дней с даты подписания Заказчиком документа о приемке",3980,"2025-03-05",null,null,null,null,null,null,109]
[null,null,null,null,null,null,null,null,null,null,null,null,null,"2025-03-07",null,3530,"2025-03-12",null,null,null,null,null,null,109]
[null,null,null,null,null,null,null,null,null,null,null,null,null,null,null,null,null,null,null,null,null,null,null,109]
[null,null,null,null,null,null,null,null,null,null,null,null,null,null,null,null,null,null,null,null,null,null,null,109]
[null,null,null,null,null,null,null,null,null,null,null,null,null,null,null,null,null,null,null,null,null,null,null,109]
[null,null,null,null,null,null,null,null,null,null,null,null,null,null,null,null,null,null,null,null,null,null,null,109]
[28,"Муниципальная программа \"Развитие образования\"","Нет","925 0702 0000000000 244",2,"2025-02-24","Катушка пластик",6880,{"$f":"IF(X245 = 110, H245 + SUM(S245:S250) - SUM(T245:T250) - SUM(P245:P250) - V245,0)","v":200},"1658056156","ООО «КОМУС-РАЗВИТИЕ»",null,"В течение 30 календарных дней с даты заключения Контракта","2025-03-19","Не более 10 (десяти) рабочих дней с даты подписания Заказчиком документа о приемке",6680,"2025-03-28",null,null,null,null,null,null,110]
[null,null,null,null,null,null,null,null,null,null,null,null,null,null,null,null,null,null,null,null,null,null,null,110]
[null,null,null,null,null,null,null,null,null,null,null,null,null,null,null,null,null,null,null,null,null,null,null,110]
[null,null,null,null,null,null,null,null,null,null,null,null,null,null,null,null,null,null,null,null,null,null,null,110]
[null,null,null,null,null,null,null,null,null,null,null,null,null,null,null,null,null,null,null,null,null,null,null,110]
[null,null,null,null,null,null,null,null,null,null,null,null,null,null,null,null,null,null,null,null,null,null,null,110]
[29,"Муниципальная программа \"Развитие образования\"","Нет","925 0702 0000000000 244","210012508348-022025","2025-02-26","Услуги по идентификации АСН в ГАИС \"ЭРА-ГЛОНАСС\" и обеспечению передачи в Ространснадзор информации, поступающей от АСН в ГАИС \"ЭРА-ГЛОНАСС\"",7020,{"$f":"IF(X251 = 111, H251 + SUM(S251:S257) - SUM(T251:T257) - SUM(P251:P257) - V251,0)","v":6435},"7703383783","АО \"ГЛОНАСС\"",null,"С 01.01.2025г. по 31.12.2025г.","2025-03-13","В течение 7 (семи) рабочих дней с даты подписания им Акта или УПД за истекший расчетный период",585,"2025-03-13",null,null,null,null,null,null,111]
[null,null,null,null,null,null,null,null,null,null,null,null,null,null,null,null,null,null,null,null,null,null,null,111]
[null,null,null,null,null,null,null,null,null,null,null,null,null,null,null,null,null,null,null,null,null,null,null,111]
[null,null,null,null,null,null,null,null,null,null,null,null,null,null,null,null,null,null,null,null,null,null,null,111]
[null,null,null,null,null,null,null,null,null,null,null,null,null,null,null,null,null,null,null,null,null,null,null,111]
[null,null,null,null,null,null,null,null,null,null,null,null,null,null,null,null,null,null,null,null,null,null,null,111]
[null,null,null,null,null,null,null,null,null,null,null,null,null,null,null,null,null,null,null,null,null,null,null,111]
[30,"Государственная программа Краснодарского края \"Развитие образования\"","Нет","925 0702 0000000000 244","13/26.02","2026-02-26","Книга «Гибель империи. Российский урок.» Митрополит Тихон (Шевкунов)",5250,{"$f":"IF(X258 = 112, H258 + SUM(S258:S258) - SUM(T258:T258) - SUM(P258:P258) - V258,0)","v":0},"7728499444 ","ООО \"Вольный странник\"",null,"С момента подписания контракта в течении 20 раб. дней","2025-03-21","Не позднее 10 рабочих дней с даты подписания Заказчиком документа о приемке товара",5250,"2025-03-28",null,null,null,null,null,null,112]
[31,"Муниципальная программа \"Развитие образования\"","Нет","925 0702 0000000000 244","3","2025-03-04","Бумага туалетная",1797,{"$f":"IF(X259 = 113, H259 + SUM(S259:S259) - SUM(T259:T259) - SUM(P259:P259) - V259,0)","v":0},"1658056156 ","ООО \"КОМУС-РАЗВИТИЕ\"",null,"В течение 30 календарных дней с даты заключения Контракта","2025-03-19","Не более 10 (десяти) рабочих дней с даты подписания Заказчиком документа о приемке",1797,"2025-03-28",null,null,null,null,null,null,113]
[32,"Муниципальная программа \"Развитие образования\"","Да","925 0702 0000000000 244","2025.073304","2025-03-10","Поставка бумаги для офисной техники",22500,{"$f":"IF(X260 = 114, H260 + SUM(S260:S260) - SUM(T260:T260) - SUM(P260:P260) - V260,0)","v":0},"380102686500 ","Индивидуальный предприниматель Старыгин Евгений Геннадьевич",null,"В течении -15 (пятнадцати) календарных дней со дня заключения контракта","2025-03-12","Не позднее 10 рабочих дней с даты подписания Заказчиком документов о приемке",22500,"2025-03-13",null,null,null,null,null,null,114]
[33,"Муниципальная программа \"Развитие образования\"","Нет","925 0702 0000000000 244","102/2025-КРД","2025-03-11","55\" Телевизор HAIER Smart TV M1, 4K Ultra HD, черный, СМАРТ ТВ, Android TV",35900,{"$f":"IF(X261 = 115, H261 + SUM(S261:S264) - SUM(T261:T264) - SUM(P261:P264) - V261,0)","v":0},"7718979307 ","ООО \"Ситилинк\"",null,"В течение 15 (пятнадцати) рабочих дней с момента подписания контракта","2025-03-19","10 (десять)  рабочих дней с момента приемки-передачи Товара",35900,"2025-03-20",null,null,null,null,null,null,115]
[null,null,null,null,null,null,null,null,null,null,null,null,null,null,null,null,null,null,null,null,null,null,null,115]
[null,null,null,null,null,null,null,null,null,null,null,null,null,null,null,null,null,null,null,null,null,null,null,115]
[null,null,null,null,null,null,null,null,null,null,null,null,null,null,null,null,null,null,null,null,null,null,null,115]
[34,"Муниципальная программа \"Развитие образования\"","Нет","925 0702 0000000000 244","2","2025-03-11","Поставка колонок и флешек",10667,{"$f":"IF(X265 = 116, H265 + SUM(S265:S265) - SUM(T265:T265) - SUM(P265:P265) - V265,0)","v":0},"236900329354 ","Индивидуальный предприниматель Татаренко Илья Михайлович",null,"В течении 15 (пятнадцати) календарных дней со дня заключения контракта","2025-03-11","Не позднее 10 рабочих дней с даты подписания Заказчиком документов о приемке",10667,"2025-03-20",null,null,null,null,null,null,116]
[35,"Муниципальная программа \"Развитие образования\"","Нет","925 0702 0000000000 244","3","2025-03-13","Поставка клавиатуры и кабеля",1675,{"$f":"IF(X266 = 117, H266 + SUM(S266:S267) - SUM(T266:T267) - SUM(P266:P267) - V266,0)","v":0},"236900329354 ","Индивидуальный предприниматель Татаренко Илья Михайлович",null,"В течении 15 (пятнадцати) календарных дней со дня заключения контракта","2025-03-25","Не позднее 10 рабочих дней с даты подписания Заказчиком документов о приемке",1675,"2025-03-28",null,null,null,null,null,null,117]
[null,null,null,null,null,null,null,null,null,null,null,null,null,null,null,null,null,null,null,null,null,null,null,117]
[36,"Муниципальная программа \"Развитие образования\"","Нет","925 0702 0000000000 244","МСК009756","2025-03-17","Автомойка РЕСАНТА МР-200БП",21790,{"$f":"IF(X268 = 118, H268 + SUM(S268:S269) - SUM(T268:T269) - SUM(P268:P269) - V268,0)","v":21790},"6319060894","ООО \"Энтузиаст-С\"",null,"18 календарных дней с момента подписания договора",null,"В течении 10-ти рабочих дней с момента подписания ПОКУПАТЕЛЕМ документов о приемке.",null,null,null,null,null,null,null,null,118]
[null,null,null,null,null,null,null,null,null,null,null,null,null,null,null,null,null,null,null,null,null,null,null,118]
[37,"Государственная программа Краснодарского края \"Развитие образования\"","Нет","925 0702 0000000000 244","23-12528","2025-03-20","Изготовление и поставка полиграфической, в том числе защищенной от подделок и строгого учета продукции ",1377.5,{"$f":"IF(X270 = 119, H270 + SUM(S270:S271) - SUM(T270:T271) - SUM(P270:P271) - V270,0)","v":1377.5},"7706526550 ","Общество с ограниченной ответственностью \"СБМ\"",null,"В течение 40 (Сорока) календарных дней после получения Поставщиком подписанного Контракта от Заказчика",null,"В течение 10 (Десяти) рабочих дней с момента получения Продукции",null,null,null,null,null,null,null,null,119]
[null,null,null,null,null,null,null,null,null,null,null,null,null,null,null,null,null,null,null,null,null,null,null,119]
[38,"Муниципальная программа \"Развитие образования\"","Нет","925 0702 0000000000 244","114","2025-03-21","Платные медицинские услуги (проведение -Психиатрического освидетельствования)",48960,{"$f":"IF(X272 = 120, H272 + SUM(S272:S272) - SUM(T272:T272) - SUM(P272:P272) - V272,0)","v":48960},"2353006498","ГБУЗ «Тимашевская ЦРБ» МЗ КК ",null,"В течении 30 календарных дней с момента заключения договора",null,"В течение 10 (десяти) рабочих дней с даты подписания обеими сторонами Акта об оказании услуг",null,null,null,null,null,null,null,null,120]
[39,"Муниципальная программа \"Развитие образования\"","Нет","925 0702 0000000000 244","4","2025-03-26","Услуги по техническому обслуживанию и ремонту прочих автотранспортных средств",28600,{"$f":"IF(X273 = 121, H273 + SUM(S273:S277) - SUM(T273:T277) - SUM(P273:P277) - V273,0)","v":28600},"235303483777","Индивидуальный предприниматель Аполонов Алексей Аркадьевич ",null,"2025-03-26",null,"В течение 10 рабочих дней с даты подписания Заказчиком акта сдачи-приемки оказанных услуг",null,null,null,null,null,null,null,null,121]
[null,null,null,null,null,null,null,null,null,null,null,null,null,null,null,null,null,null,null,null,null,null,null,121]
[null,null,null,null,null,null,null,null,null,null,null,null,null,null,null,null,null,null,null,null,null,null,null,121]
[null,null,null,null,null,null,null,null,null,null,null,null,null,null,null,null,null,null,null,null,null,null,null,121]
[null,null,null,null,null,null,null,null,null,null,null,null,null,null,null,null,null,null,null,null,null,null,null,121]
[40,"Муниципальная программа \"Развитие образования\"","Нет","925 0702 0000000000 244","298","2025-03-26","Выполнение работ (услуг); санитароно-эпидемиологическая экспертиза программ, методик, режимов обучения в образовательных учреждениях",12039.34,{"$f":"IF(X278 = 123, H278 + SUM(S278:S278) - SUM(T278:T278) - SUM(P278:P278) - V278,0)","v":12039.34},"2308105200","ФБУЗ \"Центр гигиены и эпидемиологии в Краснодарском крае\"",null,"30 рабочих дней с даты предоставления Заказчиком сведений и документов, необходимых для исполнения поручения Исполнителем",null,"В течение 10 рабочих дней с даты подписания акта сдачи-приемки выполненных работ (окаханных услуг) Сторонами",null,null,null,null,null,null,null,null,123]
[41,null,null,null,null,null,null,null,{"$f":"IF(X279 = 124, H279 + SUM(S279:S279) - SUM(T279:T279) - SUM(P279:P279) - V279,0)","v":0},null,null,null,null,null,null,null,null,null,null,null,null,null,null,124]
[42,null,null,null,null,null,null,null,{"$f":"IF(X280 = 125, H280 + SUM(S280:S284) - SUM(T280:T284) - SUM(P280:P284) - V280,0)","v":0},null,null,null,null,null,null,null,null,null,null,null,null,null,null,125]
[null,null,null,null,null,null,null,null,null,null,null,null,null,null,null,null,null,null,null,null,null,null,null,125]
[null,null,null,null,null,null,null,null,null,null,null,null,null,null,null,null,null,null,null,null,null,null,null,125]
[null,null,null,null,null,null,null,null,null,null,null,null,null,null,null,null,null,null,null,null,null,null,null,125]
[null,null,null,null,null,null,null,null,null,null,null,null,null,null,null,null,null,null,null,null,null,null,null,125]
[43,null,null,null,null,null,null,null,{"$f":"IF(X285 = 126, H285 + SUM(S285:S285) - SUM(T285:T285) - SUM(P285:P285) - V285,0)","v":0},null,null,null,null,null,null,null,null,null,null,null,null,null,null,126]
[44,null,null,null,null,null,null,null,{"$f":"IF(X286 = 127, H286 + SUM(S286:S286) - SUM(T286:T286) - SUM(P286:P286) - V286,0)","v":0},null,null,null,null,null,null,null,null,null,null,null,null,null,null,127]
[45,null,null,null,null,null,null,null,{"$f":"IF(X287 = 128, H287 + SUM(S287:S287) - SUM(T287:T287) - SUM(P287:P287) - V287,0)","v":0},null,null,null,null,null,null,null,null,null,null,null,null,null,null,128]
[46,null,null,null,null,null,null,null,{"$f":"IF(X288 = 129, H288 + SUM(S288:S288) - SUM(T288:T288) - SUM(P288:P288) - V288,0)","v":0},null,null,null,null,null,null,null,null,null,null,null,null,null,null,129]
[47,null,null,null,null,null,null,null,{"$f":"IF(X289 = 130, H289 + SUM(S289:S290) - SUM(T289:T290) - SUM(P289:P290) - V289,0)","v":0},null,null,null,null,null,null,null,null,null,null,null,null,null,null,130]
[null,null,null,null,null,null,null,null,null,null,null,null,null,null,null,null,null,null,null,null,null,null,null,130]
[48,null,null,null,null,null,null,null,{"$f":"IF(X291 = 131, H291 + SUM(S291:S291) - SUM(T291:T291) - SUM(P291:P291) - V291,0)","v":0},null,null,null,null,null,null,null,null,null,null,null,null,null,null,131]
[49,null,null,null,null,null,null,null,{"$f":"IF(X292 = 132, H292 + SUM(S292:S296) - SUM(T292:T296) - SUM(P292:P296) - V292,0)","v":0},null,null,null,null,null,null,null,null,null,null,null,null,null,null,132]
[null,null,null,null,null,null,null,null,null,null,null,null,null,null,null,null,null,null,null,null,null,null,null,132]
[null,null,null,null,null,null,null,null,null,null,null,null,null,null,null,null,null,null,null,null,null,null,null,132]
[null,null,null,null,null,null,null,null,null,null,null,null,null,null,null,null,null,null,null,null,null,null,null,132]
[null,null,null,null,null,null,null,null,null,null,null,null,null,null,null,null,null,null,null,null,null,null,null,132]
[50,null,null,null,null,null,null,null,{"$f":"IF(X297 = 133, H297 + SUM(S297:S298) - SUM(T297:T298) - SUM(P297:P298) - V297,0)","v":0},null,null,null,null,null,null,null,null,null,null,null,null,null,null,133]
[null,null,null,null,null,null,null,null,null,null,null,null,null,null,null,null,null,null,null,null,null,null,null,133]
[51,null,null,null,null,null,null,null,{"$f":"IF(X299 = 134, H299 + SUM(S299:S299) - SUM(T299:T299) - SUM(P299:P299) - V299,0)","v":0},null,null,null,null,null,null,null,null,null,null,null,null,null,null,134]
[52,null,null,null,null,null,null,null,{"$f":"IF(X300 = 135, H300 + SUM(S300:S302) - SUM(T300:T302) - SUM(P300:P302) - V300,0)","v":0},null,null,null,null,null,null,null,null,null,null,null,null,null,null,135]
[null,null,null,null,null,null,null,null,null,null,null,null,null,null,null,null,null,null,null,null,null,null,null,135]
[null,null,null,null,null,null,null,null,null,null,null,null,null,null,null,null,null,null,null,null,null,null,null,135]
[53,null,null,null,null,null,null,null,{"$f":"IF(X303 = 136, H303 + SUM(S303:S303) - SUM(T303:T303) - SUM(P303:P303) - V303,0)","v":0},null,null,null,null,null,null,null,null,null,null,null,null,null,null,136]
[54,null,null,null,null,null,null,null,{"$f":"IF(X304 = 137, H304 + SUM(S304:S304) - SUM(T304:T304) - SUM(P304:P304) - V304,0)","v":0},null,null,null,null,null,null,null,null,null,null,null,null,null,null,137]
[55,null,null,null,null,null,null,null,{"$f":"IF(X305 = 138, H305 + SUM(S305:S306) - SUM(T305:T306) - SUM(P305:P306) - V305,0)","v":0},null,null,null,null,null,null,null,null,null,null,null,null,null,null,138]
[null,null,null,null,null,null,null,null,null,null,null,null,null,null,null,null,null,null,null,null,null,null,null,138]
[56,null,null,null,null,null,null,null,{"$f":"IF(X307 = 139, H307 + SUM(S307:S307) - SUM(T307:T307) - SUM(P307:P307) - V307,0)","v":0},null,null,null,null,null,null,null,null,null,null,null,null,null,null,139]
[57,null,null,null,null,null,null,null,{"$f":"IF(X308 = 141, H308 + SUM(S308:S309) - SUM(T308:T309) - SUM(P308:P309) - V308,0)","v":0},null,null,null,null,null,null,null,null,null,null,null,null,null,null,141]
[null,null,null,null,null,null,null,null,null,null,null,null,null,null,null,null,null,null,null,null,null,null,null,141]
[58,null,null,null,null,null,null,null,{"$f":"IF(X310 = 142, H310 + SUM(S310:S310) - SUM(T310:T310) - SUM(P310:P310) - V310,0)","v":0},null,null,null,null,null,null,null,null,null,null,null,null,null,null,142]
[59,null,null,null,null,null,null,null,{"$f":"IF(X311 = 143, H311 + SUM(S311:S311) - SUM(T311:T311) - SUM(P311:P311) - V311,0)","v":0},null,null,null,null,null,null,null,null,null,null,null,null,null,null,143]
[60,null,null,null,null,null,null,null,{"$f":"IF(X312 = 144, H312 + SUM(S312:S313) - SUM(T312:T313) - SUM(P312:P313) - V312,0)","v":0},null,null,null,null,null,null,null,null,null,null,null,null,null,null,144]
[null,null,null,null,null,null,null,null,null,null,null,null,null,null,null,null,null,null,null,null,null,null,null,144]
[61,null,null,null,null,null,null,null,{"$f":"IF(X314 = 145, H314 + SUM(S314:S314) - SUM(T314:T314) - SUM(P314:P314) - V314,0)","v":0},null,null,null,null,null,null,null,null,null,null,null,null,null,null,145]
[62,null,null,null,null,null,null,null,{"$f":"IF(X315 = 146, H315 + SUM(S315:S320) - SUM(T315:T320) - SUM(P315:P320) - V315,0)","v":0},null,null,null,null,null,null,null,null,null,null,null,null,null,null,146]
[null,null,null,null,null,null,null,null,null,null,null,null,null,null,null,null,null,null,null,null,null,null,null,146]
[null,null,null,null,null,null,null,null,null,null,null,null,null,null,null,null,null,null,null,null,null,null,null,146]
[null,null,null,null,null,null,null,null,null,null,null,null,null,null,null,null,null,null,null,null,null,null,null,146]
[null,null,null,null,null,null,null,null,null,null,null,null,null,null,null,null,null,null,null,null,null,null,null,146]
[null,null,null,null,null,null,null,null,null,null,null,null,null,null,null,null,null,null,null,null,null,null,null,146]
[63,null,null,null,null,null,null,null,{"$f":"IF(X321 = 147, H321 + SUM(S321:S322) - SUM(T321:T322) - SUM(P321:P322) - V321,0)","v":0},null,null,null,null,null,null,null,null,null,null,null,null,null,null,147]
[null,null,null,null,null,null,null,null,null,null,null,null,null,null,null,null,null,null,null,null,null,null,null,147]
[64,null,null,null,null,null,null,null,{"$f":"IF(X323 = 148, H323 + SUM(S323:S327) - SUM(T323:T327) - SUM(P323:P327) - V323,0)","v":0},null,null,null,null,null,null,null,null,null,null,null,null,null,null,148]
[null,null,null,null,null,null,null,null,null,null,null,null,null,null,null,null,null,null,null,null,null,null,null,148]
[null,null,null,null,null,null,null,null,null,null,null,null,null,null,null,null,null,null,null,null,null,null,null,148]
[null,null,null,null,null,null,null,null,null,null,null,null,null,null,null,null,null,null,null,null,null,null,null,148]
[null,null,null,null,null,null,null,null,null,null,null,null,null,null,null,null,null,null,null,null,null,null,null,148]
[65,null,null,null,null,null,null,null,{"$f":"IF(X328 = 149, H328 + SUM(S328:S331) - SUM(T328:T331) - SUM(P328:P331) - V328,0)","v":0},null,null,null,null,null,null,null,null,null,null,null,null,null,null,149]
[null,null,null,null,null,null,null,null,null,null,null,null,null,null,null,null,null,null,null,null,null,null,null,149]
[null,null,null,null,null,null,null,null,null,null,null,null,null,null,null,null,null,null,null,null,null,null,null,149]
[null,null,null,null,null,null,null,null,null,null,null,null,null,null,null,null,null,null,null,null,null,null,null,149]
[66,null,null,null,null,null,null,null,{"$f":"IF(X332 = 150, H332 + SUM(S332:S332) - SUM(T332:T332) - SUM(P332:P332) - V332,0)","v":0},null,null,null,null,null,null,null,null,null,null,null,null,null,null,150]
[67,null,null,null,null,null,null,null,{"$f":"IF(X333 = 151, H333 + SUM(S333:S336) - SUM(T333:T336) - SUM(P333:P336) - V333,0)","v":0},null,null,null,null,null,null,null,null,null,null,null,null,null,null,151]
[null,null,null,null,null,null,null,null,null,null,null,null,null,null,null,null,null,null,null,null,null,null,null,151]
[null,null,null,null,null,null,null,null,null,null,null,null,null,null,null,null,null,null,null,null,null,null,null,151]
[null,null,null,null,null,null,null,null,null,null,null,null,null,null,null,null,null,null,null,null,null,null,null,151]
[68,null,null,null,null,null,null,null,{"$f":"IF(X337 = 152, H337 + SUM(S337:S339) - SUM(T337:T339) - SUM(P337:P339) - V337,0)","v":0},null,null,null,null,null,null,null,null,null,null,null,null,null,null,152]
[null,null,null,null,null,null,null,null,null,null,null,null,null,null,null,null,null,null,null,null,null,null,null,152]
[null,null,null,null,null,null,null,null,null,null,null,null,null,null,null,null,null,null,null,null,null,null,null,152]
[69,null,null,null,null,null,null,null,{"$f":"IF(X340 = 153, H340 + SUM(S340:S340) - SUM(T340:T340) - SUM(P340:P340) - V340,0)","v":0},null,null,null,null,null,null,null,null,null,null,null,null,null,null,153]
[70,null,null,null,null,null,null,null,{"$f":"IF(X341 = 154, H341 + SUM(S341:S341) - SUM(T341:T341) - SUM(P341:P341) - V341,0)","v":0},null,null,null,null,null,null,null,null,null,null,null,null,null,null,154]
[71,null,null,null,null,null,null,null,{"$f":"IF(X342 = 155, H342 + SUM(S342:S342) - SUM(T342:T342) - SUM(P342:P342) - V342,0)","v":0},null,null,null,null,null,null,null,null,null,null,null,null,null,null,155]
[72,null,null,null,null,null,null,null,{"$f":"IF(X343 = 156, H343 + SUM(S343:S343) - SUM(T343:T343) - SUM(P343:P343) - V343,0)","v":0},null,null,null,null,null,null,null,null,null,null,null,null,null,null,156]
[73,null,null,null,null,null,null,null,{"$f":"IF(X344 = 157, H344 + SUM(S344:S344) - SUM(T344:T344) - SUM(P344:P344) - V344,0)","v":0},null,null,null,null,null,null,null,null,null,null,null,null,null,null,157]
[74,null,null,null,null,null,null,null,{"$f":"IF(X345 = 158, H345 + SUM(S345:S345) - SUM(T345:T345) - SUM(P345:P345) - V345,0)","v":0},null,null,null,null,null,null,null,null,null,null,null,null,null,null,158]
[75,null,null,null,null,null,null,null,{"$f":"IF(X346 = 159, H346 + SUM(S346:S347) - SUM(T346:T347) - SUM(P346:P347) - V346,0)","v":0},null,null,null,null,null,null,null,null,null,null,null,null,null,null,159]
[null,null,null,null,null,null,null,null,null,null,null,null,null,null,null,null,null,null,null,null,null,null,null,159]
[76,null,null,null,null,null,null,null,{"$f":"IF(X348 = 160, H348 + SUM(S348:S349) - SUM(T348:T349) - SUM(P348:P349) - V348,0)","v":0},null,null,null,null,null,null,null,null,null,null,null,null,null,null,160]
[null,null,null,null,null,null,null,null,null,null,null,null,null,null,null,null,null,null,null,null,null,null,null,160]
[77,null,null,null,null,null,null,null,{"$f":"IF(X350 = 161, H350 + SUM(S350:S350) - SUM(T350:T350) - SUM(P350:P350) - V350,0)","v":0},null,null,null,null,null,null,null,null,null,null,null,null,null,null,161]
[78,null,null,null,null,null,null,null,{"$f":"IF(X351 = 162, H351 + SUM(S351:S351) - SUM(T351:T351) - SUM(P351:P351) - V351,0)","v":0},null,null,null,null,null,null,null,null,null,null,null,null,null,null,162]
[79,null,null,null,null,null,null,null,{"$f":"IF(X352 = 163, H352 + SUM(S352:S353) - SUM(T352:T353) - SUM(P352:P353) - V352,0)","v":0},null,null,null,null,null,null,null,null,null,null,null,null,null,null,163]
[null,null,null,null,null,null,null,null,null,null,null,null,null,null,null,null,null,null,null,null,null,null,null,163]
[80,null,null,null,null,null,null,null,{"$f":"IF(X354 = 164, H354 + SUM(S354:S355) - SUM(T354:T355) - SUM(P354:P355) - V354,0)","v":0},null,null,null,null,null,null,null,null,null,null,null,null,null,null,164]
[null,null,null,null,null,null,null,null,null,null,null,null,null,null,null,null,null,null,null,null,null,null,null,164]
[81,null,null,null,null,null,null,null,{"$f":"IF(X356 = 165, H356 + SUM(S356:S356) - SUM(T356:T356) - SUM(P356:P356) - V356,0)","v":0},null,null,null,null,null,null,null,null,null,null,null,null,null,null,165]
[82,null,null,null,null,null,null,null,{"$f":"IF(X357 = 166, H357 + SUM(S357:S357) - SUM(T357:T357) - SUM(P357:P357) - V357,0)","v":0},null,null,null,null,null,null,null,null,null,null,null,null,null,null,166]
[83,null,null,null,null,null,null,null,{"$f":"IF(X358 = 167, H358 + SUM(S358:S359) - SUM(T358:T359) - SUM(P358:P359) - V358,0)","v":0},null,null,null,null,null,null,null,null,null,null,null,null,null,null,167]
[null,null,null,null,null,null,null,null,null,null,null,null,null,null,null,null,null,null,null,null,null,null,null,167]
[84,null,null,null,null,null,null,null,{"$f":"IF(X360 = 168, H360 + SUM(S360:S360) - SUM(T360:T360) - SUM(P360:P360) - V360,0)","v":0},null,null,null,null,null,null,null,null,null,null,null,null,null,null,168]
[85,null,null,null,null,null,null,null,{"$f":"IF(X361 = 169, H361 + SUM(S361:S361) - SUM(T361:T361) - SUM(P361:P361) - V361,0)","v":0},null,null,null,null,null,null,null,null,null,null,null,null,null,null,169]
[86,null,null,null,null,null,null,null,{"$f":"IF(X362 = 170, H362 + SUM(S362:S362) - SUM(T362:T362) - SUM(P362:P362) - V362,0)","v":0},null,null,null,null,null,null,null,null,null,null,null,null,null,null,170]
[87,null,null,null,null,null,null,null,{"$f":"IF(X363 = 171, H363 + SUM(S363:S364) - SUM(T363:T364) - SUM(P363:P364) - V363,0)","v":0},null,null,null,null,null,null,null,null,null,null,null,null,null,null,171]
[null,null,null,null,null,null,null,null,null,null,null,null,null,null,null,null,null,null,null,null,null,null,null,171]
[88,null,null,null,null,null,null,null,{"$f":"IF(X365 = 172, H365 + SUM(S365:S370) - SUM(T365:T370) - SUM(P365:P370) - V365,0)","v":0},null,null,null,null,null,null,null,null,null,null,null,null,null,null,172]
[null,null,null,null,null,null,null,null,null,null,null,null,null,null,null,null,null,null,null,null,null,null,null,172]
[null,null,null,null,null,null,null,null,null,null,null,null,null,null,null,null,null,null,null,null,null,null,null,172]
[null,null,null,null,null,null,null,null,null,null,null,null,null,null,null,null,null,null,null,null,null,null,null,172]
[null,null,null,null,null,null,null,null,null,null,null,null,null,null,null,null,null,null,null,null,null,null,null,172]
[null,null,null,null,null,null,null,null,null,null,null,null,null,null,null,null,null,null,null,null,null,null,null,172]
[89,null,null,null,null,null,null,null,{"$f":"IF(X371 = 173, H371 + SUM(S371:S373) - SUM(T371:T373) - SUM(P371:P373) - V371,0)","v":0},null,null,null,null,null,null,null,null,null,null,null,null,null,null,173]
[null,null,null,null,null,null,null,null,null,null,null,null,null,null,null,null,null,null,null,null,null,null,null,173]
[null,null,null,null,null,null,null,null,null,null,null,null,null,null,null,null,null,null,null,null,null,null,null,173]
[90,null,null,null,null,null,null,null,{"$f":"IF(X374 = 174, H374 + SUM(S374:S377) - SUM(T374:T377) - SUM(P374:P377) - V374,0)","v":0},null,null,null,null,null,null,null,null,null,null,null,null,null,null,174]
[null,null,null,null,null,null,null,null,null,null,null,null,null,null,null,null,null,null,null,null,null,null,null,174]
[null,null,null,null,null,null,null,null,null,null,null,null,null,null,null,null,null,null,null,null,null,null,null,174]
[null,null,null,null,null,null,null,null,null,null,null,null,null,null,null,null,null,null,null,null,null,null,null,174]
[91,null,null,null,null,null,null,null,{"$f":"IF(X378 = 175, H378 + SUM(S378:S381) - SUM(T378:T381) - SUM(P378:P381) - V378,0)","v":0},null,null,null,null,null,null,null,null,null,null,null,null,null,null,175]
[null,null,null,null,null,null,null,null,null,null,null,null,null,null,null,null,null,null,null,null,null,null,null,175]
[null,null,null,null,null,null,null,null,null,null,null,null,null,null,null,null,null,null,null,null,null,null,null,175]
[null,null,null,null,null,null,null,null,null,null,null,null,null,null,null,null,null,null,null,null,null,null,null,175]
[92,null,null,null,null,null,null,null,{"$f":"IF(X382 = 176, H382 + SUM(S382:S382) - SUM(T382:T382) - SUM(P382:P382) - V382,0)","v":0},null,null,null,null,null,null,null,null,null,null,null,null,null,null,176]
[93,null,null,null,null,null,null,null,{"$f":"IF(X383 = 177, H383 + SUM(S383:S385) - SUM(T383:T385) - SUM(P383:P385) - V383,0)","v":0},null,null,null,null,null,null,null,null,null,null,null,null,null,null,177]
[null,null,null,null,null,null,null,null,null,null,null,null,null,null,null,null,null,null,null,null,null,null,null,177]
[null,null,null,null,null,null,null,null,null,null,null,null,null,null,null,null,null,null,null,null,null,null,null,177]
[94,null,null,null,null,null,null,null,{"$f":"IF(X386 = 178, H386 + SUM(S386:S387) - SUM(T386:T387) - SUM(P386:P387) - V386,0)","v":0},null,null,null,null,null,null,null,null,null,null,null,null,null,null,178]
[]
[95,null,null,null,null,null,null,null,{"$f":"IF(X388 = 179, H388 + SUM(S388:S389) - SUM(T388:T389) - SUM(P388:P389) - V388,0)","v":0},null,null,null,null,null,null,null,null,null,null,null,null,null,null,179]
[null,null,null,null,null,null,null,null,null,null,null,null,null,null,null,null,null,null,null,null,null,null,null,179]
[96,null,null,null,null,null,null,null,{"$f":"IF(X390 = 180, H390 + SUM(S390:S392) - SUM(T390:T392) - SUM(P390:P392) - V390,0)","v":0},null,null,null,null,null,null,null,null,null,null,null,null,null,null,180]
[null,null,null,null,null,null,null,null,null,null,null,null,null,null,null,null,null,null,null,null,null,null,null,180]
[null,null,null,null,null,null,null,null,null,null,null,null,null,null,null,null,null,null,null,null,null,null,null,180]
[97,null,null,null,null,null,null,null,{"$f":"IF(X393 = 181, H393 + SUM(S393:S393) - SUM(T393:T393) - SUM(P393:P393) - V393,0)","v":0},null,null,null,null,null,null,null,null,null,null,null,null,null,null,181]
[98,null,null,null,null,null,null,null,{"$f":"IF(X394 = 182, H394 + SUM(S394:S394) - SUM(T394:T394) - SUM(P394:P394) - V394,0)","v":0},null,null,null,null,null,null,null,null,null,null,null,null,null,null,182]
[99,null,null,null,null,null,null,null,{"$f":"IF(X395 = 183, H395 + SUM(S395:S396) - SUM(T395:T396) - SUM(P395:P396) - V395,0)","v":0},null,null,null,null,null,null,null,null,null,null,null,null,null,null,183]
[null,null,null,null,null,null,null,null,null,null,null,null,null,null,null,null,null,null,null,null,null,null,null,183]
[100,null,null,null,null,null,null,null,{"$f":"IF(X397 = 184, H397 + SUM(S397:S397) - SUM(T397:T397) - SUM(P397:P397) - V397,0)","v":0},null,null,null,null,null,null,null,null,null,null,null,null,null,null,184]
[101,null,null,null,null,null,null,null,{"$f":"IF(X398 = 185, H398 + SUM(S398:S398) - SUM(T398:T398) - SUM(P398:P398) - V398,0)","v":0},null,null,null,null,null,null,null,null,null,null,null,null,null,null,185]
[102,null,null,null,null,null,null,null,{"$f":"IF(X399 = 186, H399 + SUM(S399:S400) - SUM(T399:T400) - SUM(P399:P400) - V399,0)","v":0},null,null,null,null,null,null,null,null,null,null,null,null,null,null,186]
[null,null,null,null,null,null,null,null,null,null,null,null,null,null,null,null,null,null,null,null,null,null,null,186]
[103,null,null,null,null,null,null,null,{"$f":"IF(X401 = 187, H401 + SUM(S401:S402) - SUM(T401:T402) - SUM(P401:P402) - V401,0)","v":0},null,null,null,null,null,null,null,null,null,null,null,null,null,null,187]
[null,null,null,null,null,null,null,null,null,null,null,null,null,null,null,null,null,null,null,null,null,null,null,187]
[104,null,null,null,null,null,null,null,{"$f":"IF(X403 = 188, H403 + SUM(S403:S403) - SUM(T403:T403) - SUM(P403:P403) - V403,0)","v":0},null,null,null,null,null,null,null,null,null,null,null,null,null,null,188]
[105,null,null,null,null,null,null,null,{"$f":"IF(X404 = 189, H404 + SUM(S404:S404) - SUM(T404:T404) - SUM(P404:P404) - V404,0)","v":0},null,null,null,null,null,null,null,null,null,null,null,null,null,null,189]
[106,null,null,null,null,null,null,null,{"$f":"IF(X405 = 190, H405 + SUM(S405:S405) - SUM(T405:T405) - SUM(P405:P405) - V405,0)","v":0},null,null,null,null,null,null,null,null,null,null,null,null,null,null,190]
[107,null,null,null,null,null,null,null,{"$f":"IF(X406 = 191, H406 + SUM(S406:S407) - SUM(T406:T407) - SUM(P406:P407) - V406,0)","v":0},null,null,null,null,null,null,null,null,null,null,null,null,null,null,191]
[null,null,null,null,null,null,null,null,null,null,null,null,null,null,null,null,null,null,null,null,null,null,null,191]
[108,null,null,null,null,null,null,null,{"$f":"IF(X408 = 192, H408 + SUM(S408:S408) - SUM(T408:T408) - SUM(P408:P408) - V408,0)","v":0},null,null,null,null,null,null,null,null,null,null,null,null,null,null,192]
[109,null,null,null,null,null,null,null,{"$f":"IF(X409 = 193, H409 + SUM(S409:S410) - SUM(T409:T410) - SUM(P409:P410) - V409,0)","v":0},null,null,null,null,null,null,null,null,null,null,null,null,null,null,193]
[null,null,null,null,null,null,null,null,null,null,null,null,null,null,null,null,null,null,null,null,null,null,null,193]
[110,null,null,null,null,null,null,null,{"$f":"IF(X411 = 194, H411 + SUM(S411:S411) - SUM(T411:T411) - SUM(P411:P411) - V411,0)","v":0},null,null,null,null,null,null,null,null,null,null,null,null,null,null,194]
[111,null,null,null,null,null,null,null,{"$f":"IF(X412 = 195, H412 + SUM(S412:S412) - SUM(T412:T412) - SUM(P412:P412) - V412,0)","v":0},null,null,null,null,null,null,null,null,null,null,null,null,null,null,195]
[112,null,null,null,null,null,null,null,{"$f":"IF(X413 = 196, H413 + SUM(S413:S413) - SUM(T413:T413) - SUM(P413:P413) - V413,0)","v":0},null,null,null,null,null,null,null,null,null,null,null,null,null,null,196]
[113,null,null,null,null,null,null,null,{"$f":"IF(X414 = 197, H414 + SUM(S414:S414) - SUM(T414:T414) - SUM(P414:P414) - V414,0)","v":0},null,null,null,null,null,null,null,null,null,null,null,null,null,null,197]
[114,null,null,null,null,null,null,null,{"$f":"IF(X415 = 198, H415 + SUM(S415:S415) - SUM(T415:T415) - SUM(P415:P415) - V415,0)","v":0},null,null,null,null,null,null,null,null,null,null,null,null,null,null,198]
[115,null,null,null,null,null,null,null,{"$f":"IF(X416 = 199, H416 + SUM(S416:S416) - SUM(T416:T416) - SUM(P416:P416) - V416,0)","v":0},null,null,null,null,null,null,null,null,null,null,null,null,null,null,199]
[116,null,null,null,null,null,null,null,{"$f":"IF(X417 = 200, H417 + SUM(S417:S417) - SUM(T417:T417) - SUM(P417:P417) - V417,0)","v":0},null,null,null,null,null,null,null,null,null,null,null,null,null,null,200]
[117,null,null,null,null,null,null,null,{"$f":"IF(X418 = 201, H418 + SUM(S418:S419) - SUM(T418:T419) - SUM(P418:P419) - V418,0)","v":0},null,null,null,null,null,null,null,null,null,null,null,null,null,null,201]
[null,null,null,null,null,null,null,null,null,null,null,null,null,null,null,null,null,null,null,null,null,null,null,201]
[118,null,null,null,null,null,null,null,{"$f":"IF(X420 = 202, H420 + SUM(S420:S420) - SUM(T420:T420) - SUM(P420:P420) - V420,0)","v":0},null,null,null,null,null,null,null,null,null,null,null,null,null,null,202]
[119,null,null,null,null,null,null,null,{"$f":"IF(X421 = 203, H421 + SUM(S421:S421) - SUM(T421:T421) - SUM(P421:P421) - V421,0)","v":0},null,null,null,null,null,null,null,null,null,null,null,null,null,null,203]
[120,null,null,null,null,null,null,null,{"$f":"IF(X422 = 204, H422 + SUM(S422:S423) - SUM(T422:T423) - SUM(P422:P423) - V422,0)","v":0},null,null,null,null,null,null,null,null,null,null,null,null,null,null,204]
[null,null,null,null,null,null,null,null,null,null,null,null,null,null,null,null,null,null,null,null,null,null,null,204]
[121,null,null,null,null,null,null,null,{"$f":"IF(X424 = 205, H424 + SUM(S424:S424) - SUM(T424:T424) - SUM(P424:P424) - V424,0)","v":0},null,null,null,null,null,null,null,null,null,null,null,null,null,null,205]
[122,null,null,null,null,null,null,null,{"$f":"IF(X425 = 206, H425 + SUM(S425:S425) - SUM(T425:T425) - SUM(P425:P425) - V425,0)","v":0},null,null,null,null,null,null,null,null,null,null,null,null,null,null,206]
[null,null,null,null,null,null,null,null,null,null,null,null,null,null,null,null,null,null,null,null,null,null,null,207]

{"sheet":"Ед. поставщик п.5 ч.1","index":2,"n_rows":317,"n_cols":24,"rows_kept":317,"cut":false,"hidden":false,"merged":[[63,0,74,0],[63,14,74,14],[63,20,74,20],[63,1,74,1],[63,21,74,21],[63,2,74,2],[63,22,74,22],[63,3,74,3],[63,4,74,4],[63,5,74,5],[63,6,74,6],[63,7,74,7],[63,8,74,8],[63,9,74,9],[63,10,74,10],[63,11,74,11],[63,12,74,12],[12,9,23,9],[12,10,23,10],[12,11,23,11],[12,12,23,12],[12,14,23,14],[12,20,23,20],[12,21,23,21],[12,2,23,2],[12,22,23,22],[12,3,23,3],[12,4,23,4],[12,5,23,5],[12,6,23,6],[12,7,23,7],[12,8,23,8],[206,21,216,21],[206,2,216,2],[206,22,216,22],[206,3,216,3],[206,4,216,4],[206,5,216,5],[206,6,216,6],[206,7,216,7],[206,8,216,8],[206,9,216,9],[206,10,216,10],[206,11,216,11],[206,12,216,12],[193,22,194,22],[193,3,194,3],[193,4,194,4],[193,5,194,5],[193,6,194,6],[193,7,194,7],[193,8,194,8],[193,9,194,9],[193,10,194,10],[193,11,194,11],[193,12,194,12],[195,22,205,22],[195,3,205,3],[195,4,205,4],[195,5,205,5],[195,6,205,6],[195,7,205,7],[195,8,205,8],[195,9,205,9],[195,10,205,10],[195,11,205,11],[195,12,205,12],[195,21,205,21],[195,2,205,2],[193,0,194,0],[193,14,194,14],[193,20,194,20],[193,1,194,1],[193,21,194,21],[193,2,194,2],[148,21,176,21],[148,2,176,2],[148,22,176,22],[148,3,176,3],[148,4,176,4],[148,5,176,5],[148,6,176,6],[148,7,176,7],[148,8,176,8],[148,9,176,9],[148,10,176,10],[148,11,176,11],[148,12,176,12],[40,1,62,1],[75,4,80,4],[75,5,80,5],[75,6,80,6],[75,7,80,7],[75,8,80,8],[75,14,80,14],[81,10,85,10],[81,11,85,11],[40,2,62,2],[75,10,80,10],[75,3,80,3],[40,8,62,8],[40,9,62,9],[40,10,62,10],[40,11,62,11],[81,14,85,14],[81,8,85,8],[81,9,85,9],[86,5,91,5],[86,6,91,6],[81,0,85,0],[81,1,85,1],[86,3,91,3],[86,8,91,8],[86,4,91,4],[24,1,39,1],[24,21,39,21],[24,2,39,2],[24,5,39,5],[24,6,39,6],[24,7,39,7],[24,8,39,8],[24,3,39,3],[24,4,39,4],[24,11,39,11],[24,12,39,12],[24,9,39,9],[24,10,39,10],[243,0,246,0],[243,14,246,14],[243,1,246,1],[243,2,246,2],[253,0,259,0],[253,14,259,14],[247,3,252,3],[247,0,252,0],[247,1,252,1],[253,1,259,1],[253,8,259,8],[247,4,252,4],[247,5,252,5],[247,6,252,6],[247,7,252,7],[247,8,252,8],[247,9,252,9],[243,12,246,12],[243,11,246,11],[302,0,307,0],[302,14,307,14],[302,20,307,20],[302,1,307,1],[290,0,301,0],[290,14,301,14],[290,20,301,20],[290,1,301,1],[267,0,274,0],[267,1,274,1],[267,2,274,2],[280,2,282,2],[286,0,289,0],[286,14,289,14],[286,20,289,20],[286,1,289,1],[280,3,282,3],[280,4,282,4],[280,5,282,5],[280,6,282,6],[283,2,285,2],[283,3,285,3],[283,4,285,4],[283,5,285,5],[302,21,307,21],[302,2,307,2],[302,22,307,22],[302,3,307,3],[302,4,307,4],[302,5,307,5],[302,6,307,6],[302,7,307,7],[302,8,307,8],[302,9,307,9],[302,10,307,10],[302,11,307,11],[302,12,307,12],[290,21,301,21],[290,2,301,2],[290,22,301,22],[290,3,301,3],[290,4,301,4],[290,5,301,5],[290,6,301,6],[290,7,301,7],[290,8,301,8],[290,9,301,9],[290,10,301,10],[290,11,301,11],[290,12,301,12],[260,11,265,11],[260,12,265,12],[260,14,265,14],[260,20,265,20],[260,21,265,21],[260,0,265,0],[260,1,265,1],[260,2,265,2],[283,22,285,22],[275,0,279,0],[275,14,279,14],[275,20,279,20],[275,1,279,1],[275,21,279,21],[275,2,279,2],[275,22,279,22],[280,0,282,0],[280,14,282,14],[280,20,282,20],[280,1,282,1],[283,6,285,6],[283,7,285,7],[283,8,285,8],[283,9,285,9],[283,0,285,0],[283,14,285,14],[283,20,285,20],[283,1,285,1],[286,2,289,2],[280,7,282,7],[280,8,282,8],[280,9,282,9],[280,10,282,10],[280,11,282,11],[280,21,282,21],[283,21,285,21],[275,3,279,3],[275,4,279,4],[275,5,279,5],[275,6,279,6],[275,7,279,7],[275,8,279,8],[275,9,279,9],[275,10,279,10],[275,11,279,11],[275,12,279,12],[283,10,285,10],[283,11,285,11],[283,12,285,12],[267,22,274,22],[267,3,274,3],[267,4,274,4],[267,5,274,5],[267,6,274,6],[267,7,274,7],[267,8,274,8],[267,11,274,11],[86,7,91,7],[267,12,274,12],[267,14,274,14],[267,20,274,20],[267,21,274,21],[267,9,274,9],[267,10,274,10],[260,22,265,22],[260,3,265,3],[260,4,265,4],[260,5,265,5],[260,6,265,6],[260,7,265,7],[260,8,265,8],[260,9,265,9],[260,10,265,10],[286,22,289,22],[286,3,289,3],[286,4,289,4],[286,5,289,5],[286,6,289,6],[286,7,289,7],[286,8,289,8],[286,9,289,9],[286,10,289,10],[286,11,289,11],[286,12,289,12],[286,21,289,21],[134,0,142,0],[134,1,142,1],[134,2,142,2],[118,0,133,0],[75,0,80,0],[75,1,80,1],[75,2,80,2],[112,0,117,0],[118,1,133,1],[118,2,133,2],[92,0,111,0],[92,1,111,1],[92,2,111,2],[86,2,91,2],[112,1,117,1],[86,0,91,0],[86,1,91,1],[118,3,133,3],[118,4,133,4],[118,5,133,5],[118,6,133,6],[118,7,133,7],[40,3,62,3],[40,4,62,4],[40,5,62,5],[40,6,62,6],[40,7,62,7],[81,3,85,3],[81,4,85,4],[81,5,85,5],[81,6,85,6],[81,7,85,7],[112,6,117,6],[112,7,117,7],[92,3,111,3],[92,4,111,4],[92,5,111,5],[92,6,111,6],[92,7,111,7],[112,3,117,3],[112,4,117,4],[81,20,85,20],[112,20,117,20],[118,14,133,14],[118,20,133,20],[40,12,62,12],[86,14,91,14],[112,14,117,14],[75,9,80,9],[86,10,91,10],[112,12,117,12],[112,11,117,11],[86,11,91,11],[86,12,91,12],[92,9,111,9],[92,10,111,10],[92,11,111,11],[92,12,111,12],[92,14,111,14],[92,20,111,20],[118,9,133,9],[118,10,133,10],[118,11,133,11],[118,12,133,12],[8,0,11,0],[8,1,11,1],[8,2,11,2],[8,3,11,3],[8,4,11,4],[8,5,11,5],[8,6,11,6],[12,0,23,0],[12,1,23,1],[24,0,39,0],[40,0,62,0],[180,1,188,1],[143,21,147,21],[143,2,147,2],[177,7,179,7],[177,8,179,8],[177,9,179,9],[177,10,179,10],[177,11,179,11],[177,12,179,12],[177,21,179,21],[81,21,85,21],[81,2,85,2],[112,2,117,2],[177,3,179,3],[177,4,179,4],[177,5,179,5],[177,6,179,6],[81,12,85,12],[143,0,147,0],[143,1,147,1],[177,0,179,0],[177,1,179,1],[237,0,242,0],[237,14,242,14],[237,20,242,20],[237,1,242,1],[228,2,229,2],[217,0,227,0],[217,2,227,2],[217,1,227,1],[143,22,147,22],[143,3,147,3],[143,4,147,4],[143,5,147,5],[143,6,147,6],[143,7,147,7],[143,8,147,8],[143,9,147,9],[143,10,147,10],[143,14,147,14],[143,20,147,20],[143,11,147,11],[143,12,147,12],[148,14,176,14],[148,20,176,20],[148,1,176,1],[177,14,179,14],[177,20,179,20],[230,0,233,0],[230,1,233,1],[234,0,236,0],[234,1,236,1],[228,0,229,0],[189,0,190,0],[180,0,188,0],[177,2,179,2],[230,2,233,2],[234,2,236,2],[206,0,216,0],[206,14,216,14],[206,20,216,20],[206,1,216,1],[195,0,205,0],[195,14,205,14],[195,20,205,20],[195,1,205,1],[148,0,176,0],[228,1,229,1],[237,21,242,21],[253,11,259,11],[253,10,259,10],[253,12,259,12],[253,20,259,20],[253,21,259,21],[253,2,259,2],[253,3,259,3],[253,4,259,4],[253,5,259,5],[247,12,252,12],[247,14,252,14],[247,20,252,20],[247,21,252,21],[247,2,252,2],[237,7,242,7],[243,5,246,5],[243,6,246,6],[243,7,246,7],[243,8,246,8],[243,9,246,9],[243,10,246,10],[280,22,282,22],[280,12,282,12],[217,20,227,20],[217,21,227,21],[230,22,233,22],[230,3,233,3],[230,8,233,8],[230,9,233,9],[230,10,233,10],[230,11,233,11],[230,12,233,12],[230,14,233,14],[230,20,233,20],[230,21,233,21],[228,21,229,21],[228,3,229,3],[228,8,229,8],[217,3,227,3],[217,8,227,8],[243,3,246,3],[243,4,246,4],[228,20,229,20],[243,20,246,20],[243,21,246,21],[75,22,80,22],[75,11,80,11],[75,21,80,21],[75,20,80,20],[75,12,80,12],[1,18,1,20],[8,20,11,20],[8,22,11,22],[8,21,11,21],[40,14,62,14],[40,20,62,20],[24,22,39,22],[40,21,62,21],[40,22,62,22],[24,14,39,14],[24,20,39,20],[1,5,1,6],[1,13,1,14],[8,9,11,9],[8,10,11,10],[8,11,11,11],[8,12,11,12],[8,7,11,7],[8,8,11,8],[8,14,11,14],[189,22,190,22],[189,4,190,4],[189,5,190,5],[189,6,190,6],[189,7,190,7],[189,8,190,8],[189,9,190,9],[189,10,190,10],[189,11,190,11],[189,12,190,12],[189,14,190,14],[189,20,190,20],[189,21,190,21],[228,22,229,22],[217,22,227,22],[253,6,259,6],[253,7,259,7],[234,22,236,22],[237,2,242,2],[237,8,242,8],[237,9,242,9],[237,10,242,10],[237,11,242,11],[234,14,236,14],[247,22,252,22],[253,22,259,22],[234,20,236,20],[234,21,236,21],[234,3,236,3],[234,8,236,8],[237,22,242,22],[237,3,242,3],[247,10,252,10],[247,11,252,11],[253,9,259,9],[237,12,242,12],[243,22,246,22],[134,5,142,5],[134,6,142,6],[134,7,142,7],[134,8,142,8],[134,22,142,22],[134,9,142,9],[134,10,142,10],[86,22,91,22],[86,21,91,21],[112,22,117,22],[118,21,133,21],[112,9,117,9],[86,9,91,9],[86,20,91,20],[112,10,117,10],[118,22,133,22],[92,22,111,22],[92,8,111,8],[92,21,111,21],[118,8,133,8],[112,21,117,21],[112,8,117,8],[112,5,117,5],[177,22,179,22],[81,22,85,22],[134,11,142,11],[134,14,142,14],[134,20,142,20],[134,21,142,21],[134,12,142,12],[180,21,188,21],[180,2,188,2],[180,22,188,22],[180,3,188,3],[180,4,188,4],[180,5,188,5],[180,6,188,6],[180,7,188,7],[180,8,188,8],[180,9,188,9],[180,10,188,10],[180,11,188,11],[180,12,188,12],[180,14,188,14],[180,20,188,20],[134,3,142,3],[134,4,142,4]]}
[]
[null,null,null,null,null,"Сумма заключенных контрактов",null,{"$f":"SUM(H9:H9999)","v":2789345.12},null,null,null,null,null,"Сумма средств выплаченных по контрактам",null,{"$f":"SUM(P9:P9999)","v":1100413.92},null,null,"Общая сумма расторжений по контрактам/договорам",null,null,{"$f":"SUM(V9:V9999)","v":0}]
[]
[]
[]
["№ п/п","Наименование муниципальной программы, национального или регионального проекта","Контракт заключен в электронном виде посредством                             АИС \"Портал поставщиков\"   (Да/Нет)","Код бюджетной классификации","№ договора/контракта","Дата заключения договора/контракта","Предмет договора/контракта","Цена договора/контракта","Остаток по контракту","ИНН поставщика (подрядчика, исполнителя) ","Поставщик (подрядчик, исполнитель)","СМП и СОНО                       (Да/Нет)","Сроки поставки товара (оказания услуги, выполнения работы), согласно контракта; Предоставление документов на оплату Закзчику","Фактическая дата поставки товара (оказания услуги, выполнения работы) и (или) предоставление документов на оплату и подписание документов о приемке","Сроки оплаты согласно договора/контракта","Сумма согласно документа об исполнении контракта заказчиком","Фактическая дата оплаты","Изменение контракта (№, дата)","Изменение контракта (увеличение цены контракта в рублях)","Изменение контракта (уменьшение цены контракта в рублях)","Расторжение контракта (№, дата)","Сумма расторжения","Примечание"]
["1","2","3","4","5","6","7","8","9","10","11","12","13","14","15","16","17","18","19","20","21","22","23"]
["1","Муниципальная программа \"Развитие образования\"",null,"902 0113 1310110490 244","№ 1","2020-01-09","Поставка бумаги для офисной техники",20000,0,2353019514,"ИП Котляров К.И.",null,"В течение 15 рабочих дней, со дня подписания сторонами контракта","2020-01-10","Не позднее 30 календарных дней с момента подписания Заказчиком и Подрядчиком акта приема-сдачи и предоставленного Подрядчиком документа на оплату",20000,"2020-01-10",null,null,null,null,null,"Пример"]
[1,"Муниципальная программа \"Развитие образования\"","Да","925 0702 0000000000 244","2024.463859 ","2024-12-20","Поставка бензина АИ-92 и дизельного топлива с использованием пластиковых карт в течение января-марта 2025 года для муниципальных нужд МБОУ СОШ № 13 муниципального образования Тимашевский район",550800,{"$f":"IF(X9 = 1, H9 + SUM(S9:S12) - SUM(T9:T12) - SUM(P9:P12) - V9,0)","v":279480},2311299612,"ООО \"КТК\"",null,"С 01 января 2025 г. по 31 марта 2025 г.","2025-02-05","В срок, не превышающий 10 рабочих дней с даты подписания покупателем отчетных документов",121754,"2025-02-10",null,null,null,null,null,null,1]
[null,null,null,null,null,null,null,null,null,null,null,null,null,"2025-03-05",null,149566,"2025-03-07",null,null,null,null,null,null,1]
[null,null,null,null,null,null,null,null,null,null,null,null,null,null,null,null,null,null,null,null,null,null,null,1]
[null,null,null,null,null,null,null,null,null,null,null,null,null,null,null,null,null,null,null,null,null,null,null,1]
[2,"Муниципальная программа \"Развитие образования\"","Нет","925 0702 0000000000 244","13","2024-12-28","Услуги по организации питания детей",594480,{"$f":"IF(X13 = 2, H13 + SUM(S13:S24) - SUM(T13:T24) - SUM(P13:P24) - V13,0)","v":388534.2},2353020735,"ООО \"Тимашевское ПРТ Райпо\"",null,"С момента заключения контракта, но не ранее 09 января 2025 г. по 30 апреля 2025 г., ежедневно в соответствии с графиком работы образовательной организации, по заявке Заказчика (кроме выходных, каникулярных и праздничных дней)","2025-02-12","В течение 10 (десяти) рабочих дней после подписания документа о приемке ",22311,"2025-02-14",null,null,null,null,null,null,2]
[null,null,null,null,null,null,null,null,null,null,null,null,null,"2025-02-12",null,6664.8,"2025-02-14",null,null,null,null,null,null,2]
[null,null,null,null,null,null,null,null,null,null,null,null,null,"2025-02-12",null,2240,"2025-02-14",null,null,null,null,null,null,2]
[null,null,null,null,null,null,null,null,null,null,null,null,null,"2025-02-12",null,18900,"2025-02-14",null,null,null,null,null,null,2]
[null,null,null,null,null,null,null,null,null,null,null,null,null,"2025-02-12",null,30874.639999999999,"2025-02-14",null,null,null,null,null,null,2]
[null,null,null,null,null,null,null,null,null,null,null,null,null,"2025-02-12",null,25261.360000000001,"2025-02-14",null,null,null,null,null,null,2]
[null,null,null,null,null,null,null,null,null,null,null,null,null,"2025-03-10",null,19791,"2025-03-14",null,null,null,null,null,null,2]
[null,null,null,null,null,null,null,null,null,null,null,null,null,"2025-03-10",null,5413.2,"2025-03-14",null,null,null,null,null,null,2]
[null,null,null,null,null,null,null,null,null,null,null,null,null,"2025-03-10",null,1820,"2025-03-14",null,null,null,null,null,null,2]
[null,null,null,null,null,null,null,null,null,null,null,null,null,"2025-03-10",null,18305,"2025-03-20",null,null,null,null,null,null,2]
[null,null,null,null,null,null,null,null,null,null,null,null,null,"2025-03-10",null,29900.49,"2025-03-20",null,null,null,null,null,null,2]
[null,null,null,null,null,null,null,null,null,null,null,null,null,"2025-03-10",null,24464.31,"2025-03-20",null,null,null,null,null,null,2]
[3,"Муниципальная программа \"Развитие образования\"","Нет","925 0702 0000000000 244","13/1","2024-12-28","Услуги по организации питания детей",530530,{"$f":"IF(X25 = 3, H25 + SUM(S25:S40) - SUM(T25:T40) - SUM(P25:P40) - V25,0)","v":209440},2353020735,"ООО \"Тимашевское ПРТ Райпо\"",null,"С момента заключения контракта, но не ранее 09 января 2025 г. по 31 марта 2025 г., ежедневно в соответствии с графиком работы образовательной организации, по заявке Заказчика (кроме выходных, каникулярных и праздничных дней)","2025-02-12","В течение 10 (десяти) рабочих дней после подписания документа о приемке ",174944,"2025-02-14",null,null,null,null,null,null,3]
[null,null,null,null,null,null,null,null,null,null,null,null,null,"2025-03-10",null,146146,"2025-03-14",null,null,null,null,null,null,3]
[null,null,null,null,null,null,null,null,null,null,null,null,null,null,null,null,null,null,null,null,null,null,null,3]
[null,null,null,null,null,null,null,null,null,null,null,null,null,null,null,null,null,null,null,null,null,null,null,3]
[null,null,null,null,null,null,null,null,null,null,null,null,null,null,null,null,null,null,null,null,null,null,null,3]
[null,null,null,null,null,null,null,null,null,null,null,null,null,null,null,null,null,null,null,null,null,null,null,3]
[null,null,null,null,null,null,null,null,null,null,null,null,null,null,null,null,null,null,null,null,null,null,null,3]
[null,null,null,null,null,null,null,null,null,null,null,null,null,null,null,null,null,null,null,null,null,null,null,3]
[null,null,null,null,null,null,null,null,null,null,null,null,null,null,null,null,null,null,null,null,null,null,null,3]
[null,null,null,null,null,null,null,null,null,null,null,null,null,null,null,null,null,null,null,null,null,null,null,3]
[null,null,null,null,null,null,null,null,null,null,null,null,null,null,null,null,null,null,null,null,null,null,null,3]
[null,null,null,null,null,null,null,null,null,null,null,null,null,null,null,null,null,null,null,null,null,null,null,3]
[null,null,null,null,null,null,null,null,null,null,null,null,null,null,null,null,null,null,null,null,null,null,null,3]
[null,null,null,null,null,null,null,null,null,null,null,null,null,null,null,null,null,null,null,null,null,null,null,3]
[null,null,null,null,null,null,null,null,null,null,null,null,null,null,null,null,null,null,null,null,null,null,null,3]
[null,null,null,null,null,null,null,null,null,null,null,null,null,null,null,null,null,null,null,null,null,null,null,3]
[4,"Муниципальная программа \"Развитие образования\"","Нет","925 0702 0000000000 244","13/2","2025-01-21","Услуги по организации питания детей",81312,{"$f":"IF(X41 = 4, H41 + SUM(S41:S63) - SUM(T41:T63) - SUM(P41:P63) - V41,0)","v":61138},2353020735,"ООО \"Тимашевское ПРТ Райпо\"",null,"С момента заключения контракта, но не ранее 09 января 2025 г. по 23 мая 2025 г., ежедневно в соответствии с графиком работы образовательной организации, по заявке Заказчика (кроме выходных, каникулярных и праздничных дней)","2025-02-12","В течение 10 (десяти) рабочих дней после подписания документа о приемке ",9486.4,"2025-02-14",null,null,null,null,null,null,4]
[null,null,null,null,null,null,null,null,null,null,null,null,null,"2025-02-12",null,2371.6,"2025-02-14",null,null,null,null,null,null,4]
[null,null,null,null,null,null,null,null,null,null,null,null,null,"2025-03-10",null,6652.8,"2025-03-14",null,null,null,null,null,null,4]
[null,null,null,null,null,null,null,null,null,null,null,null,null,"2025-03-10",null,1663.2,"2025-03-14",null,null,null,null,null,null,4]
[null,null,null,null,null,null,null,null,null,null,null,null,null,null,null,null,null,null,null,null,null,null,null,4]
[null,null,null,null,null,null,null,null,null,null,null,null,null,null,null,null,null,null,null,null,null,null,null,4]
[null,null,null,null,null,null,null,null,null,null,null,null,null,null,null,null,null,null,null,null,null,null,null,4]
[null,null,null,null,null,null,null,null,null,null,null,null,null,null,null,null,null,null,null,null,null,null,null,4]
[null,null,null,null,null,null,null,null,null,null,null,null,null,null,null,null,null,null,null,null,null,null,null,4]
[null,null,null,null,null,null,null,null,null,null,null,null,null,null,null,null,null,null,null,null,null,null,null,4]
[null,null,null,null,null,null,null,null,null,null,null,null,null,null,null,null,null,null,null,null,null,null,null,4]
[null,null,null,null,null,null,null,null,null,null,null,null,null,null,null,null,null,null,null,null,null,null,null,4]
[null,null,null,null,null,null,null,null,null,null,null,null,null,null,null,null,null,null,null,null,null,null,null,4]
[null,null,null,null,null,null,null,null,null,null,null,null,null,null,null,null,null,null,null,null,null,null,null,4]
[null,null,null,null,null,null,null,null,null,null,null,null,null,null,null,null,null,null,null,null,null,null,null,4]
[null,null,null,null,null,null,null,null,null,null,null,null,null,null,null,null,null,null,null,null,null,null,null,4]
[null,null,null,null,null,null,null,null,null,null,null,null,null,null,null,null,null,null,null,null,null,null,null,4]
[null,null,null,null,null,null,null,null,null,null,null,null,null,null,null,null,null,null,null,null,null,null,null,4]
[null,null,null,null,null,null,null,null,null,null,null,null,null,null,null,null,null,null,null,null,null,null,null,4]
[null,null,null,null,null,null,null,null,null,null,null,null,null,null,null,null,null,null,null,null,null,null,null,4]
[null,null,null,null,null,null,null,null,null,null,null,null,null,null,null,null,null,null,null,null,null,null,null,4]
[null,null,null,null,null,null,null,null,null,null,null,null,null,null,null,null,null,null,null,null,null,null,null,4]
[null,null,null,null,null,null,null,null,null,null,null,null,null,null,null,null,null,null,null,null,null,null,null,4]
[5,"Муниципальная программа \"Развитие образования\"","Нет","925 0702 0000000000 244","3","2025-02-12","Услуги по техническому обслуживанию и ремонту прочих автотранспортных средств",79904.12,{"$f":"IF(X64 = 5, H64 + SUM(S64:S75) - SUM(T64:T75) - SUM(P64:P75) - V64,0)","v":0},235303483777,"Индивидуальный предприниматель Аполонов Алексей Аркадьевич",null,"12.02.2025г.","2025-02-12","В течение 10 рабочих дней с даты подписания Заказчиком акта сдачи-приемки оказанных услуг",79904.12,"2025-02-19",null,null,null,null,null,null,5]
[null,null,null,null,null,null,null,null,null,null,null,null,null,null,null,null,null,null,null,null,null,null,null,5]
[null,null,null,null,null,null,null,null,null,null,null,null,null,null,null,null,null,null,null,null,null,null,null,5]
[null,null,null,null,null,null,null,null,null,null,null,null,null,null,null,null,null,null,null,null,null,null,null,5]
[null,null,null,null,null,null,null,null,null,null,null,null,null,null,null,null,null,null,null,null,null,null,null,5]
[null,null,null,null,null,null,null,null,null,null,null,null,null,null,null,null,null,null,null,null,null,null,null,5]
[null,null,null,null,null,null,null,null,null,null,null,null,null,null,null,null,null,null,null,null,null,null,null,5]
[null,null,null,null,null,null,null,null,null,null,null,null,null,null,null,null,null,null,null,null,null,null,null,5]
[null,null,null,null,null,null,null,null,null,null,null,null,null,null,null,null,null,null,null,null,null,null,null,5]
[null,null,null,null,null,null,null,null,null,null,null,null,null,null,null,null,null,null,null,null,null,null,null,5]
[null,null,null,null,null,null,null,null,null,null,null,null,null,null,null,null,null,null,null,null,null,null,null,5]
[null,null,null,null,null,null,null,null,null,null,null,null,null,null,null,null,null,null,null,null,null,null,null,5]
[6,"Государственная программа Краснодарского края \"Развитие образования\"","Нет","925 0702 0000000000 244","45/25","2025-02-13","Услуги по проведению предварительных и периодических медицинских осмотров (обследований) работников",170199,{"$f":"IF(X76 = 7, H76 + SUM(S76:S81) - SUM(T76:T81) - SUM(P76:P81) - V76,0)","v":170199},2353006498,"ГБУЗ «Тимашевская ЦРБ» МЗ КК",null,"25.03.2025г., 26.03.2025г.",null,"В течение 7 рабочих дней с даты подписания обеими сторонами Акта об оказании услуг",null,null,null,null,null,null,null,null,7]
[null,null,null,null,null,null,null,null,null,null,null,null,null,null,null,null,null,null,null,null,null,null,null,7]
[null,null,null,null,null,null,null,null,null,null,null,null,null,null,null,null,null,null,null,null,null,null,null,7]
[null,null,null,null,null,null,null,null,null,null,null,null,null,null,null,null,null,null,null,null,null,null,null,7]
[null,null,null,null,null,null,null,null,null,null,null,null,null,null,null,null,null,null,null,null,null,null,null,7]
[null,null,null,null,null,null,null,null,null,null,null,null,null,null,null,null,null,null,null,null,null,null,null,7]
[7,"Государственная программа Краснодарского края \"Развитие образования\"","Нет","925 0702 0000000000 244","1","2025-03-04","Поставка МФУ",140000,{"$f":"IF(X82 = 24, H82 + SUM(S82:S86) - SUM(T82:T86) - SUM(P82:P86) - V82,0)","v":0},236900329354,"Индивидуальный предприниматель Татаренко Илья Михайлович",null,"В течении 15 (пятнадцати) календарных дней со дня заключения контракта","2025-03-04","Не позднее 10 рабочих дней с даты подписания Заказчиком документов о приемке",140000,"2025-03-12",null,null,null,null,null,null,24]
[null,null,null,null,null,null,null,null,null,null,null,null,null,null,null,null,null,null,null,null,null,null,null,24]
[null,null,null,null,null,null,null,null,null,null,null,null,null,null,null,null,null,null,null,null,null,null,null,24]
[null,null,null,null,null,null,null,null,null,null,null,null,null,null,null,null,null,null,null,null,null,null,null,24]
[null,null,null,null,null,null,null,null,null,null,null,null,null,null,null,null,null,null,null,null,null,null,null,24]
[8,"Государственная программа Краснодарского края \"Развитие образования\"","Нет","925 0702 0000000000 244","096/2025-КРД","2025-03-10","Ноутбук OSIO BaseLine B150i-009b 15.6\", 2024, IPS, Intel N200 1ГГц, 4-ядерный, 8ГБ DDR4, 512ГБ SSD, Intel UHD Graphics, без операционной системы, черный",61980,{"$f":"IF(X87 = 25, H87 + SUM(S87:S92) - SUM(T87:T92) - SUM(P87:P92) - V87,0)","v":0},7718979307,"ООО \"Ситилинк\"",null,"В течении 15 (пятнадцати) рабочих дней с момента подписания контракта","2025-03-17","10 (десять) рабочих дней с момента приема-передачи товара",61980,"2025-03-20",null,null,null,null,null,null,25]
[null,null,null,null,null,null,null,null,null,null,null,null,null,null,null,null,null,null,null,null,null,null,null,25]
[null,null,null,null,null,null,null,null,null,null,null,null,null,null,null,null,null,null,null,null,null,null,null,25]
[null,null,null,null,null,null,null,null,null,null,null,null,null,null,null,null,null,null,null,null,null,null,null,25]
[null,null,null,null,null,null,null,null,null,null,null,null,null,null,null,null,null,null,null,null,null,null,null,25]
[null,null,null,null,null,null,null,null,null,null,null,null,null,null,null,null,null,null,null,null,null,null,null,25]
[9,"Муниципальная программа \"Развитие образования\"","Да","925 0702 0000000000 244","2025.100397","2025-03-28","Поставка бензина АИ-92 и дизельного топлива с использованием пластиковых карт в течение апреля-июля 2024 года для муниципальных нужд МБОУ СОШ № 13 муниципального образования Тимашевский район",580140,{"$f":"IF(X93 = 26, H93 + SUM(S93:S112) - SUM(T93:T112) - SUM(P93:P112) - V93,0)","v":580140},2311299612,"ООО \"КТК\"",null,"С 01 апреля 2025 г. по 31 июля 2025 г.",null,"В срок, не превышающий 10 рабочих дней с даты подписания покупателем отчетных документов",null,null,null,null,null,null,null,null,26]
[null,null,null,null,null,null,null,null,null,null,null,null,null,null,null,null,null,null,null,null,null,null,null,26]
[null,null,null,null,null,null,null,null,null,null,null,null,null,null,null,null,null,null,null,null,null,null,null,26]
[null,null,null,null,null,null,null,null,null,null,null,null,null,null,null,null,null,null,null,null,null,null,null,26]
[null,null,null,null,null,null,null,null,null,null,null,null,null,null,null,null,null,null,null,null,null,null,null,26]
[null,null,null,null,null,null,null,null,null,null,null,null,null,null,null,null,null,null,null,null,null,null,null,26]
[null,null,null,null,null,null,null,null,null,null,null,null,null,null,null,null,null,null,null,null,null,null,null,26]
[null,null,null,null,null,null,null,null,null,null,null,null,null,null,null,null,null,null,null,null,null,null,null,26]
[null,null,null,null,null,null,null,null,null,null,null,null,null,null,null,null,null,null,null,null,null,null,null,26]
[null,null,null,null,null,null,null,null,null,null,null,null,null,null,null,null,null,null,null,null,null,null,null,26]
[null,null,null,null,null,null,null,null,null,null,null,null,null,null,null,null,null,null,null,null,null,null,null,26]
[null,null,null,null,null,null,null,null,null,null,null,null,null,null,null,null,null,null,null,null,null,null,null,26]
[null,null,null,null,null,null,null,null,null,null,null,null,null,null,null,null,null,null,null,null,null,null,null,26]
[null,null,null,null,null,null,null,null,null,null,null,null,null,null,null,null,null,null,null,null,null,null,null,26]
[null,null,null,null,null,null,null,null,null,null,null,null,null,null,null,null,null,null,null,null,null,null,null,26]
[null,null,null,null,null,null,null,null,null,null,null,null,null,null,null,null,null,null,null,null,null,null,null,26]
[null,null,null,null,null,null,null,null,null,null,null,null,null,null,null,null,null,null,null,null,null,null,null,26]
[null,null,null,null,null,null,null,null,null,null,null,null,null,null,null,null,null,null,null,null,null,null,null,26]
[null,null,null,null,null,null,null,null,null,null,null,null,null,null,null,null,null,null,null,null,null,null,null,26]
[null,null,null,null,null,null,null,null,null,null,null,null,null,null,null,null,null,null,null,null,null,null,null,26]
[10,null,null,null,null,null,null,null,{"$f":"IF(X113 = 27, H113 + SUM(S113:S118) - SUM(T113:T118) - SUM(P113:P118) - V113,0)","v":0},null,null,null,null,null,null,null,null,null,null,null,null,null,null,27]
[null,null,null,null,null,null,null,null,null,null,null,null,null,null,null,null,null,null,null,null,null,null,null,27]
[null,null,null,null,null,null,null,null,null,null,null,null,null,null,null,null,null,null,null,null,null,null,null,27]
[null,null,null,null,null,null,null,null,null,null,null,null,null,null,null,null,null,null,null,null,null,null,null,27]
[null,null,null,null,null,null,null,null,null,null,null,null,null,null,null,null,null,null,null,null,null,null,null,27]
[null,null,null,null,null,null,null,null,null,null,null,null,null,null,null,null,null,null,null,null,null,null,null,27]
[11,null,null,null,null,null,null,null,{"$f":"IF(X119 = 28, H119 + SUM(S119:S134) - SUM(T119:T134) - SUM(P119:P134) - V119,0)","v":0},null,null,null,null,null,null,null,null,null,null,null,null,null,null,28]
[null,null,null,null,null,null,null,null,null,null,null,null,null,null,null,null,null,null,null,null,null,null,null,28]
[null,null,null,null,null,null,null,null,null,null,null,null,null,null,null,null,null,null,null,null,null,null,null,28]
[null,null,null,null,null,null,null,null,null,null,null,null,null,null,null,null,null,null,null,null,null,null,null,28]
[null,null,null,null,null,null,null,null,null,null,null,null,null,null,null,null,null,null,null,null,null,null,null,28]
[null,null,null,null,null,null,null,null,null,null,null,null,null,null,null,null,null,null,null,null,null,null,null,28]
[null,null,null,null,null,null,null,null,null,null,null,null,null,null,null,null,null,null,null,null,null,null,null,28]
[null,null,null,null,null,null,null,null,null,null,null,null,null,null,null,null,null,null,null,null,null,null,null,28]
[null,null,null,null,null,null,null,null,null,null,null,null,null,null,null,null,null,null,null,null,null,null,null,28]
[null,null,null,null,null,null,null,null,null,null,null,null,null,null,null,null,null,null,null,null,null,null,null,28]
[null,null,null,null,null,null,null,null,null,null,null,null,null,null,null,null,null,null,null,null,null,null,null,28]
[null,null,null,null,null,null,null,null,null,null,null,null,null,null,null,null,null,null,null,null,null,null,null,28]
[null,null,null,null,null,null,null,null,null,null,null,null,null,null,null,null,null,null,null,null,null,null,null,28]
[null,null,null,null,null,null,null,null,null,null,null,null,null,null,null,null,null,null,null,null,null,null,null,28]
[null,null,null,null,null,null,null,null,null,null,null,null,null,null,null,null,null,null,null,null,null,null,null,28]
[null,null,null,null,null,null,null,null,null,null,null,null,null,null,null,null,null,null,null,null,null,null,null,28]
[12,null,null,null,null,null,null,null,{"$f":"IF(X135 = 29, H135 + SUM(S135:S143) - SUM(T135:T143) - SUM(P135:P143) - V135,0)","v":0},null,null,null,null,null,null,null,null,null,null,null,null,null,null,29]
[null,null,null,null,null,null,null,null,null,null,null,null,null,null,null,null,null,null,null,null,null,null,null,29]
[null,null,null,null,null,null,null,null,null,null,null,null,null,null,null,null,null,null,null,null,null,null,null,29]
[null,null,null,null,null,null,null,null,null,null,null,null,null,null,null,null,null,null,null,null,null,null,null,29]
[null,null,null,null,null,null,null,null,null,null,null,null,null,null,null,null,null,null,null,null,null,null,null,29]
[null,null,null,null,null,null,null,null,null,null,null,null,null,null,null,null,null,null,null,null,null,null,null,29]
[null,null,null,null,null,null,null,null,null,null,null,null,null,null,null,null,null,null,null,null,null,null,null,29]
[null,null,null,null,null,null,null,null,null,null,null,null,null,null,null,null,null,null,null,null,null,null,null,29]
[null,null,null,null,null,null,null,null,null,null,null,null,null,null,null,null,null,null,null,null,null,null,null,29]
[13,null,null,null,null,null,null,null,{"$f":"IF(X144 = 30, H144 + SUM(S144:S148) - SUM(T144:T148) - SUM(P144:P148) - V144,0)","v":0},null,null,null,null,null,null,null,null,null,null,null,null,null,null,30]
[null,null,null,null,null,null,null,null,null,null,null,null,null,null,null,null,null,null,null,null,null,null,null,30]
[null,null,null,null,null,null,null,null,null,null,null,null,null,null,null,null,null,null,null,null,null,null,null,30]
[null,null,null,null,null,null,null,null,null,null,null,null,null,null,null,null,null,null,null,null,null,null,null,30]
[null,null,null,null,null,null,null,null,null,null,null,null,null,null,null,null,null,null,null,null,null,null,null,30]
[14,null,null,null,null,null,null,null,{"$f":"IF(X149 = 31, H149 + SUM(S149:S177) - SUM(T149:T177) - SUM(P149:P177) - V149,0)","v":0},null,null,null,null,null,null,null,null,null,null,null,null,null,null,31]
[null,null,null,null,null,null,null,null,null,null,null,null,null,null,null,null,null,null,null,null,null,null,null,31]
[null,null,null,null,null,null,null,null,null,null,null,null,null,null,null,null,null,null,null,null,null,null,null,31]
[null,null,null,null,null,null,null,null,null,null,null,null,null,null,null,null,null,null,null,null,null,null,null,31]
[null,null,null,null,null,null,null,null,null,null,null,null,null,null,null,null,null,null,null,null,null,null,null,31]
[null,null,null,null,null,null,null,null,null,null,null,null,null,null,null,null,null,null,null,null,null,null,null,31]
[null,null,null,null,null,null,null,null,null,null,null,null,null,null,null,null,null,null,null,null,null,null,null,31]
[null,null,null,null,null,null,null,null,null,null,null,null,null,null,null,null,null,null,null,null,null,null,null,31]
[null,null,null,null,null,null,null,null,null,null,null,null,null,null,null,null,null,null,null,null,null,null,null,31]
[null,null,null,null,null,null,null,null,null,null,null,null,null,null,null,null,null,null,null,null,null,null,null,31]
[null,null,null,null,null,null,null,null,null,null,null,null,null,null,null,null,null,null,null,null,null,null,null,31]
[null,null,null,null,null,null,null,null,null,null,null,null,null,null,null,null,null,null,null,null,null,null,null,31]
[null,null,null,null,null,null,null,null,null,null,null,null,null,null,null,null,null,null,null,null,null,null,null,31]
[null,null,null,null,null,null,null,null,null,null,null,null,null,null,null,null,null,null,null,null,null,null,null,31]
[null,null,null,null,null,null,null,null,null,null,null,null,null,null,null,null,null,null,null,null,null,null,null,31]
[null,null,null,null,null,null,null,null,null,null,null,null,null,null,null,null,null,null,null,null,null,null,null,31]
[null,null,null,null,null,null,null,null,null,null,null,null,null,null,null,null,null,null,null,null,null,null,null,31]
[null,null,null,null,null,null,null,null,null,null,null,null,null,null,null,null,null,null,null,null,null,null,null,31]
[null,null,null,null,null,null,null,null,null,null,null,null,null,null,null,null,null,null,null,null,null,null,null,31]
[null,null,null,null,null,null,null,null,null,null,null,null,null,null,null,null,null,null,null,null,null,null,null,31]
[null,null,null,null,null,null,null,null,null,null,null,null,null,null,null,null,null,null,null,null,null,null,null,31]
[null,null,null,null,null,null,null,null,null,null,null,null,null,null,null,null,null,null,null,null,null,null,null,31]
[null,null,null,null,null,null,null,null,null,null,null,null,null,null,null,null,null,null,null,null,null,null,null,31]
[null,null,null,null,null,null,null,null,null,null,null,null,null,null,null,null,null,null,null,null,null,null,null,31]
[null,null,null,null,null,null,null,null,null,null,null,null,null,null,null,null,null,null,null,null,null,null,null,31]
[null,null,null,null,null,null,null,null,null,null,null,null,null,null,null,null,null,null,null,null,null,null,null,31]
[null,null,null,null,null,null,null,null,null,null,null,null,null,null,null,null,null,null,null,null,null,null,null,31]
[null,null,null,null,null,null,null,null,null,null,null,null,null,null,null,null,null,null,null,null,null,null,null,31]
[null,null,null,null,null,null,null,null,null,null,null,null,null,null,null,null,null,null,null,null,null,null,null,31]
[15,null,null,null,null,null,null,null,{"$f":"IF(X178 = 32, H178 + SUM(S178:S180) - SUM(T178:T180) - SUM(P178:P180) - V178,0)","v":0},null,null,null,null,null,null,null,null,null,null,null,null,null,null,32]
[null,null,null,null,null,null,null,null,null,null,null,null,null,null,null,null,null,null,null,null,null,null,null,32]
[null,null,null,null,null,null,null,null,null,null,null,null,null,null,null,null,null,null,null,null,null,null,null,32]
[16,null,null,null,null,null,null,null,{"$f":"IF(X181 = 33, H181 + SUM(S181:S189) - SUM(T181:T189) - SUM(P181:P189) - V181,0)","v":0},null,null,null,null,null,null,null,null,null,null,null,null,null,null,33]
[null,null,null,null,null,null,null,null,null,null,null,null,null,null,null,null,null,null,null,null,null,null,null,33]
[null,null,null,null,null,null,null,null,null,null,null,null,null,null,null,null,null,null,null,null,null,null,null,33]
[null,null,null,null,null,null,null,null,null,null,null,null,null,null,null,null,null,null,null,null,null,null,null,33]
[null,null,null,null,null,null,null,null,null,null,null,null,null,null,null,null,null,null,null,null,null,null,null,33]
[null,null,null,null,null,null,null,null,null,null,null,null,null,null,null,null,null,null,null,null,null,null,null,33]
[null,null,null,null,null,null,null,null,null,null,null,null,null,null,null,null,null,null,null,null,null,null,null,33]
[null,null,null,null,null,null,null,null,null,null,null,null,null,null,null,null,null,null,null,null,null,null,null,33]
[null,null,null,null,null,null,null,null,null,null,null,null,null,null,null,null,null,null,null,null,null,null,null,33]
[17,null,null,null,null,null,null,null,{"$f":"IF(X190 = 34, H190 + SUM(S190:S191) - SUM(T190:T191) - SUM(P190:P191) - V190,0)","v":0},null,null,null,null,null,null,null,null,null,null,null,null,null,null,34]
[null,null,null,null,null,null,null,null,null,null,null,null,null,null,null,null,null,null,null,null,null,null,null,34]
[18,null,null,null,null,null,null,null,{"$f":"IF(X192 = 35, H192 + SUM(S192:S192) - SUM(T192:T192) - SUM(P192:P192) - V192,0)","v":0},null,null,null,null,null,null,null,null,null,null,null,null,null,null,35]
[19,null,null,null,null,null,null,null,{"$f":"IF(X193 = 36, H193 + SUM(S193:S193) - SUM(T193:T193) - SUM(P193:P193) - V193,0)","v":0},null,null,null,null,null,null,null,null,null,null,null,null,null,null,36]
[20,null,null,null,null,null,null,null,{"$f":"IF(X194 = 37, H194 + SUM(S194:S195) - SUM(T194:T195) - SUM(P194:P195) - V194,0)","v":0},null,null,null,null,null,null,null,null,null,null,null,null,null,null,37]
[null,null,null,null,null,null,null,null,null,null,null,null,null,null,null,null,null,null,null,null,null,null,null,37]
[21,null,null,null,null,null,null,null,{"$f":"IF(X196 = 38, H196 + SUM(S196:S206) - SUM(T196:T206) - SUM(P196:P206) - V196,0)","v":0},null,null,null,null,null,null,null,null,null,null,null,null,null,null,38]
[null,null,null,null,null,null,null,null,null,null,null,null,null,null,null,null,null,null,null,null,null,null,null,38]
[null,null,null,null,null,null,null,null,null,null,null,null,null,null,null,null,null,null,null,null,null,null,null,38]
[null,null,null,null,null,null,null,null,null,null,null,null,null,null,null,null,null,null,null,null,null,null,null,38]
[null,null,null,null,null,null,null,null,null,null,null,null,null,null,null,null,null,null,null,null,null,null,null,38]
[null,null,null,null,null,null,null,null,null,null,null,null,null,null,null,null,null,null,null,null,null,null,null,38]
[null,null,null,null,null,null,null,null,null,null,null,null,null,null,null,null,null,null,null,null,null,null,null,38]
[null,null,null,null,null,null,null,null,null,null,null,null,null,null,null,null,null,null,null,null,null,null,null,38]
[null,null,null,null,null,null,null,null,null,null,null,null,null,null,null,null,null,null,null,null,null,null,null,38]
[null,null,null,null,null,null,null,null,null,null,null,null,null,null,null,null,null,null,null,null,null,null,null,38]
[null,null,null,null,null,null,null,null,null,null,null,null,null,null,null,null,null,null,null,null,null,null,null,38]
[22,null,null,null,null,null,null,null,{"$f":"IF(X207 = 39, H207 + SUM(S207:S217) - SUM(T207:T217) - SUM(P207:P217) - V207,0)","v":0},null,null,null,null,null,null,null,null,null,null,null,null,null,null,39]
[null,null,null,null,null,null,null,null,null,null,null,null,null,null,null,null,null,null,null,null,null,null,null,39]
[null,null,null,null,null,null,null,null,null,null,null,null,null,null,null,null,null,null,null,null,null,null,null,39]
[null,null,null,null,null,null,null,null,null,null,null,null,null,null,null,null,null,null,null,null,null,null,null,39]
[null,null,null,null,null,null,null,null,null,null,null,null,null,null,null,null,null,null,null,null,null,null,null,39]
[null,null,null,null,null,null,null,null,null,null,null,null,null,null,null,null,null,null,null,null,null,null,null,39]
[null,null,null,null,null,null,null,null,null,null,null,null,null,null,null,null,null,null,null,null,null,null,null,39]
[null,null,null,null,null,null,null,null,null,null,null,null,null,null,null,null,null,null,null,null,null,null,null,39]
[null,null,null,null,null,null,null,null,null,null,null,null,null,null,null,null,null,null,null,null,null,null,null,39]
[null,null,null,null,null,null,null,null,null,null,null,null,null,null,null,null,null,null,null,null,null,null,null,39]
[null,null,null,null,null,null,null,null,null,null,null,null,null,null,null,null,null,null,null,null,null,null,null,39]
[23,null,null,null,null,null,null,null,{"$f":"IF(X218 = 40, H218 + SUM(S218:S228) - SUM(T218:T228) - SUM(P218:P228) - V218,0)","v":0},null,null,null,null,null,null,null,null,null,null,null,null,null,null,40]
[null,null,null,null,null,null,null,null,null,null,null,null,null,null,null,null,null,null,null,null,null,null,null,40]
[null,null,null,null,null,null,null,null,null,null,null,null,null,null,null,null,null,null,null,null,null,null,null,40]
[null,null,null,null,null,null,null,null,null,null,null,null,null,null,null,null,null,null,null,null,null,null,null,40]
[null,null,null,null,null,null,null,null,null,null,null,null,null,null,null,null,null,null,null,null,null,null,null,40]
[null,null,null,null,null,null,null,null,null,null,null,null,null,null,null,null,null,null,null,null,null,null,null,40]
[null,null,null,null,null,null,null,null,null,null,null,null,null,null,null,null,null,null,null,null,null,null,null,40]
[null,null,null,null,null,null,null,null,null,null,null,null,null,null,null,null,null,null,null,null,null,null,null,40]
[null,null,null,null,null,null,null,null,null,null,null,null,null,null,null,null,null,null,null,null,null,null,null,40]
[null,null,null,null,null,null,null,null,null,null,null,null,null,null,null,null,null,null,null,null,null,null,null,40]
[null,null,null,null,null,null,null,null,null,null,null,null,null,null,null,null,null,null,null,null,null,null,null,40]
[24,null,null,null,null,null,null,null,{"$f":"IF(X229 = 41, H229 + SUM(S229:S230) - SUM(T229:T230) - SUM(P229:P230) - V229,0)","v":0},null,null,null,null,null,null,null,null,null,null,null,null,null,null,41]
[null,null,null,null,null,null,null,null,null,null,null,null,null,null,null,null,null,null,null,null,null,null,null,41]
[25,null,null,null,null,null,null,null,{"$f":"IF(X231 = 42, H231 + SUM(S231:S234) - SUM(T231:T234) - SUM(P231:P234) - V231,0)","v":0},null,null,null,null,null,null,null,null,null,null,null,null,null,null,42]
[null,null,null,null,null,null,null,null,null,null,null,null,null,null,null,null,null,null,null,null,null,null,null,42]
[null,null,null,null,null,null,null,null,null,null,null,null,null,null,null,null,null,null,null,null,null,null,null,42]
[null,null,null,null,null,null,null,null,null,null,null,null,null,null,null,null,null,null,null,null,null,null,null,42]
[26,null,null,null,null,null,null,null,{"$f":"IF(X235 = 43, H235 + SUM(S235:S237) - SUM(T235:T237) - SUM(P235:P237) - V235,0)","v":0},null,null,null,null,null,null,null,null,null,null,null,null,null,null,43]
[null,null,null,null,null,null,null,null,null,null,null,null,null,null,null,null,null,null,null,null,null,null,null,43]
[null,null,null,null,null,null,null,null,null,null,null,null,null,null,null,null,null,null,null,null,null,null,null,43]
[27,null,null,null,null,null,null,null,{"$f":"IF(X238 = 44, H238 + SUM(S238:S243) - SUM(T238:T243) - SUM(P238:P243) - V238,0)","v":0},null,null,null,null,null,null,null,null,null,null,null,null,null,null,44]
[null,null,null,null,null,null,null,null,null,null,null,null,null,null,null,null,null,null,null,null,null,null,null,44]
[null,null,null,null,null,null,null,null,null,null,null,null,null,null,null,null,null,null,null,null,null,null,null,44]
[null,null,null,null,null,null,null,null,null,null,null,null,null,null,null,null,null,null,null,null,null,null,null,44]
[null,null,null,null,null,null,null,null,null,null,null,null,null,null,null,null,null,null,null,null,null,null,null,44]
[null,null,null,null,null,null,null,null,null,null,null,null,null,null,null,null,null,null,null,null,null,null,null,44]
[28,null,null,null,null,null,null,null,{"$f":"IF(X244 = 45, H244 + SUM(S244:S247) - SUM(T244:T247) - SUM(P244:P247) - V244,0)","v":0},null,null,null,null,null,null,null,null,null,null,null,null,null,null,45]
[null,null,null,null,null,null,null,null,null,null,null,null,null,null,null,null,null,null,null,null,null,null,null,45]
[null,null,null,null,null,null,null,null,null,null,null,null,null,null,null,null,null,null,null,null,null,null,null,45]
[null,null,null,null,null,null,null,null,null,null,null,null,null,null,null,null,null,null,null,null,null,null,null,45]
[29,null,null,null,null,null,null,null,{"$f":"IF(X248 = 46, H248 + SUM(S248:S253) - SUM(T248:T253) - SUM(P248:P253) - V248,0)","v":0},null,null,null,null,null,null,null,null,null,null,null,null,null,null,46]
[null,null,null,null,null,null,null,null,null,null,null,null,null,null,null,null,null,null,null,null,null,null,null,46]
[null,null,null,null,null,null,null,null,null,null,null,null,null,null,null,null,null,null,null,null,null,null,null,46]
[null,null,null,null,null,null,null,null,null,null,null,null,null,null,null,null,null,null,null,null,null,null,null,46]
[null,null,null,null,null,null,null,null,null,null,null,null,null,null,null,null,null,null,null,null,null,null,null,46]
[null,null,null,null,null,null,null,null,null,null,null,null,null,null,null,null,null,null,null,null,null,null,null,46]
[30,null,null,null,null,null,null,null,{"$f":"IF(X254 = 47, H254 + SUM(S254:S260) - SUM(T254:T260) - SUM(P254:P260) - V254,0)","v":0},null,null,null,null,null,null,null,null,null,null,null,null,null,null,47]
[null,null,null,null,null,null,null,null,null,null,null,null,null,null,null,null,null,null,null,null,null,null,null,47]
[null,null,null,null,null,null,null,null,null,null,null,null,null,null,null,null,null,null,null,null,null,null,null,47]
[null,null,null,null,null,null,null,null,null,null,null,null,null,null,null,null,null,null,null,null,null,null,null,47]
[null,null,null,null,null,null,null,null,null,null,null,null,null,null,null,null,null,null,null,null,null,null,null,47]
[null,null,null,null,null,null,null,null,null,null,null,null,null,null,null,null,null,null,null,null,null,null,null,47]
[null,null,null,null,null,null,null,null,null,null,null,null,null,null,null,null,null,null,null,null,null,null,null,47]
[31,null,null,null,null,null,null,null,{"$f":"IF(X261 = 48, H261 + SUM(S261:S266) - SUM(T261:T266) - SUM(P261:P266) - V261,0)","v":0},null,null,null,null,null,null,null,null,null,null,null,null,null,null,48]
[null,null,null,null,null,null,null,null,null,null,null,null,null,null,null,null,null,null,null,null,null,null,null,48]
[null,null,null,null,null,null,null,null,null,null,null,null,null,null,null,null,null,null,null,null,null,null,null,48]
[null,null,null,null,null,null,null,null,null,null,null,null,null,null,null,null,null,null,null,null,null,null,null,48]
[null,null,null,null,null,null,null,null,null,null,null,null,null,null,null,null,null,null,null,null,null,null,null,48]
[null,null,null,null,null,null,null,null,null,null,null,null,null,null,null,null,null,null,null,null,null,null,null,48]
[32,null,null,null,null,null,null,null,{"$f":"IF(X267 = 49, H267 + SUM(S267:S267) - SUM(T267:T267) - SUM(P267:P267) - V267,0)","v":0},null,null,null,null,null,null,null,null,null,null,null,null,null,null,49]
[33,null,null,null,null,null,null,null,{"$f":"IF(X268 = 50, H268 + SUM(S268:S275) - SUM(T268:T275) - SUM(P268:P275) - V268,0)","v":0},null,null,null,null,null,null,null,null,null,null,null,null,null,null,50]
[null,null,null,null,null,null,null,null,null,null,null,null,null,null,null,null,null,null,null,null,null,null,null,50]
[null,null,null,null,null,null,null,null,null,null,null,null,null,null,null,null,null,null,null,null,null,null,null,50]
[null,null,null,null,null,null,null,null,null,null,null,null,null,null,null,null,null,null,null,null,null,null,null,50]
[null,null,null,null,null,null,null,null,null,null,null,null,null,null,null,null,null,null,null,null,null,null,null,50]
[null,null,null,null,null,null,null,null,null,null,null,null,null,null,null,null,null,null,null,null,null,null,null,50]
[null,null,null,null,null,null,null,null,null,null,null,null,null,null,null,null,null,null,null,null,null,null,null,50]
[null,null,null,null,null,null,null,null,null,null,null,null,null,null,null,null,null,null,null,null,null,null,null,50]
[34,null,null,null,null,null,null,null,{"$f":"IF(X276 = 51, H276 + SUM(S276:S280) - SUM(T276:T280) - SUM(P276:P280) - V276,0)","v":0},null,null,null,null,null,null,null,null,null,null,null,null,null,null,51]
[null,null,null,null,null,null,null,null,null,null,null,null,null,null,null,null,null,null,null,null,null,null,null,51]
[null,null,null,null,null,null,null,null,null,null,null,null,null,null,null,null,null,null,null,null,null,null,null,51]
[null,null,null,null,null,null,null,null,null,null,null,null,null,null,null,null,null,null,null,null,null,null,null,51]
[null,null,null,null,null,null,null,null,null,null,null,null,null,null,null,null,null,null,null,null,null,null,null,51]
[35,null,null,null,null,null,null,null,{"$f":"IF(X281 = 52, H281 + SUM(S281:S283) - SUM(T281:T283) - SUM(P281:P283) - V281,0)","v":0},null,null,null,null,null,null,null,null,null,null,null,null,null,null,52]
[null,null,null,null,null,null,null,null,null,null,null,null,null,null,null,null,null,null,null,null,null,null,null,52]
[null,null,null,null,null,null,null,null,null,null,null,null,null,null,null,null,null,null,null,null,null,null,null,52]
[36,null,null,null,null,null,null,null,{"$f":"IF(X284 = 53, H284 + SUM(S284:S286) - SUM(T284:T286) - SUM(P284:P286) - V284,0)","v":0},null,null,null,null,null,null,null,null,null,null,null,null,null,null,53]
[null,null,null,null,null,null,null,null,null,null,null,null,null,null,null,null,null,null,null,null,null,null,null,53]
[null,null,null,null,null,null,null,null,null,null,null,null,null,null,null,null,null,null,null,null,null,null,null,53]
[37,null,null,null,null,null,null,null,{"$f":"IF(X287 = 54, H287 + SUM(S287:S290) - SUM(T287:T290) - SUM(P287:P290) - V287,0)","v":0},null,null,null,null,null,null,null,null,null,null,null,null,null,null,54]
[null,null,null,null,null,null,null,null,null,null,null,null,null,null,null,null,null,null,null,null,null,null,null,54]
[null,null,null,null,null,null,null,null,null,null,null,null,null,null,null,null,null,null,null,null,null,null,null,54]
[null,null,null,null,null,null,null,null,null,null,null,null,null,null,null,null,null,null,null,null,null,null,null,54]
[38,null,null,null,null,null,null,null,{"$f":"IF(X291 = 55, H291 + SUM(S291:S302) - SUM(T291:T302) - SUM(P291:P302) - V291,0)","v":0},null,null,null,null,null,null,null,null,null,null,null,null,null,null,55]
[null,null,null,null,null,null,null,null,null,null,null,null,null,null,null,null,null,null,null,null,null,null,null,55]
[null,null,null,null,null,null,null,null,null,null,null,null,null,null,null,null,null,null,null,null,null,null,null,55]
[null,null,null,null,null,null,null,null,null,null,null,null,null,null,null,null,null,null,null,null,null,null,null,55]
[null,null,null,null,null,null,null,null,null,null,null,null,null,null,null,null,null,null,null,null,null,null,null,55]
[null,null,null,null,null,null,null,null,null,null,null,null,null,null,null,null,null,null,null,null,null,null,null,55]
[null,null,null,null,null,null,null,null,null,null,null,null,null,null,null,null,null,null,null,null,null,null,null,55]
[null,null,null,null,null,null,null,null,null,null,null,null,null,null,null,null,null,null,null,null,null,null,null,55]
[null,null,null,null,null,null,null,null,null,null,null,null,null,null,null,null,null,null,null,null,null,null,null,55]
[null,null,null,null,null,null,null,null,null,null,null,null,null,null,null,null,null,null,null,null,null,null,null,55]
[null,null,null,null,null,null,null,null,null,null,null,null,null,null,null,null,null,null,null,null,null,null,null,55]
[null,null,null,null,null,null,null,null,null,null,null,null,null,null,null,null,null,null,null,null,null,null,null,55]
[39,null,null,null,null,null,null,null,{"$f":"IF(X303 = 56, H303 + SUM(S303:S308) - SUM(T303:T308) - SUM(P303:P308) - V303,0)","v":0},null,null,null,null,null,null,null,null,null,null,null,null,null,null,56]
[null,null,null,null,null,null,null,null,null,null,null,null,null,null,null,null,null,null,null,null,null,null,null,56]
[null,null,null,null,null,null,null,null,null,null,null,null,null,null,null,null,null,null,null,null,null,null,null,56]
[null,null,null,null,null,null,null,null,null,null,null,null,null,null,null,null,null,null,null,null,null,null,null,56]
[null,null,null,null,null,null,null,null,null,null,null,null,null,null,null,null,null,null,null,null,null,null,null,56]
[null,null,null,null,null,null,null,null,null,null,null,null,null,null,null,null,null,null,null,null,null,null,null,56]
[40,null,null,null,null,null,null,null,{"$f":"IF(X309 = 57, H309 + SUM(S309:S309) - SUM(T309:T309) - SUM(P309:P309) - V309,0)","v":0},null,null,null,null,null,null,null,null,null,null,null,null,null,null,57]
[41,null,null,null,null,null,null,null,{"$f":"IF(X310 = 58, H310 + SUM(S310:S310) - SUM(T310:T310) - SUM(P310:P310) - V310,0)","v":0},null,null,null,null,null,null,null,null,null,null,null,null,null,null,58]
[42,null,null,null,null,null,null,null,{"$f":"IF(X311 = 59, H311 + SUM(S311:S311) - SUM(T311:T311) - SUM(P311:P311) - V311,0)","v":0},null,null,null,null,null,null,null,null,null,null,null,null,null,null,59]
[43,null,null,null,null,null,null,null,{"$f":"IF(X312 = 60, H312 + SUM(S312:S312) - SUM(T312:T312) - SUM(P312:P312) - V312,0)","v":0},null,null,null,null,null,null,null,null,null,null,null,null,null,null,60]
[44,null,null,null,null,null,null,null,{"$f":"IF(X313 = 61, H313 + SUM(S313:S313) - SUM(T313:T313) - SUM(P313:P313) - V313,0)","v":0},null,null,null,null,null,null,null,null,null,null,null,null,null,null,61]
[45,null,null,null,null,null,null,null,{"$f":"IF(X314 = 62, H314 + SUM(S314:S314) - SUM(T314:T314) - SUM(P314:P314) - V314,0)","v":0},null,null,null,null,null,null,null,null,null,null,null,null,null,null,62]
[46,null,null,null,null,null,null,null,{"$f":"IF(X315 = 63, H315 + SUM(S315:S315) - SUM(T315:T315) - SUM(P315:P315) - V315,0)","v":0},null,null,null,null,null,null,null,null,null,null,null,null,null,null,63]
[47,null,null,null,null,null,null,null,{"$f":"IF(X316 = 64, H316 + SUM(S316:S316) - SUM(T316:T316) - SUM(P316:P316) - V316,0)","v":0},null,null,null,null,null,null,null,null,null,null,null,null,null,null,64]
[null,null,null,null,null,null,null,null,null,null,null,null,null,null,null,null,null,null,null,null,null,null,null,65]

{"sheet":"Ед.поставщик за искл. п.4,5 ч.1","index":3,"n_rows":110,"n_cols":22,"rows_kept":110,"cut":false,"hidden":false,"merged":[[104,0,107,0],[104,1,107,1],[104,2,107,2],[101,0,103,0],[101,1,103,1],[101,2,103,2],[104,9,107,9],[101,6,103,6],[101,7,103,7],[104,3,107,3],[104,4,107,4],[104,5,107,5],[104,6,107,6],[104,7,107,7],[104,8,107,8],[101,3,103,3],[101,4,103,4],[101,5,103,5],[101,8,103,8],[101,9,103,9],[95,20,100,20],[95,12,100,12],[101,20,103,20],[104,20,107,20],[101,18,103,18],[101,19,103,19],[101,12,103,12],[104,10,107,10],[104,12,107,12],[104,18,107,18],[104,19,107,19],[95,19,100,19],[101,10,103,10],[39,0,94,0],[1,16,1,18],[1,4,1,5],[1,11,1,12],[95,18,100,18],[95,9,100,9],[95,10,100,10],[95,4,100,4],[95,5,100,5],[95,6,100,6],[95,7,100,7],[95,1,100,1],[95,0,100,0],[95,2,100,2],[95,3,100,3],[95,8,100,8],[8,0,38,0],[8,12,38,12],[39,20,94,20],[39,3,94,3],[39,4,94,4],[39,5,94,5],[39,6,94,6],[39,7,94,7],[39,8,94,8],[39,9,94,9],[39,10,94,10],[39,12,94,12],[39,18,94,18],[39,1,94,1],[39,19,94,19],[39,2,94,2],[8,18,38,18],[8,1,38,1],[8,19,38,19],[8,2,38,2],[8,20,38,20],[8,3,38,3],[8,4,38,4],[8,5,38,5],[8,6,38,6],[8,7,38,7],[8,8,38,8],[8,9,38,9],[8,10,38,10]]}
[]
[null,null,null,null,"Сумма заключенных контрактов",null,{"$f":"SUM(G9:G10002)","v":3844895.05},null,null,null,null,"Сумма средств выплаченных по контрактам",null,{"$f":"SUM(N9:N10002)","v":659449.8600000001},null,null,"Общая сумма расторжений по контрактам/договорам",null,null,{"$f":"SUM(T9:T10002)","v":0}]
[]
[]
[]
["№ п/п","№ в реестре контрактов ","Код бюджетной классификации","№ контракта","Дата заключения","Предмет договора/контракта","Цена контракта (Объем финансового обеспечения подлежащий к оплате в текущем фин. году)","Остаток по контракту","ИНН поставщика (подрядчика, исполнителя) ","Поставщик (подрядчик, исполнитель)","Сроки поставки товара (оказания услуги, выполнения работы), согласно контракта; Предоставление документов на оплату Закзчику","Фактическая дата поставки товара (оказания услуги, выполнения работы) и (или) предоставление документов на оплату и подписание документов о приемке","Сроки оплаты согласно договора/контракта","Сумма согласно документа об исполнении контракта заказчиком","Фактическая дата оплаты","Изменение контракта (№, дата)","Изменение контракта (увеличение цены контракта в рублях)","Изменение контракта (уменьшение цены контракта в рублях)","Расторжение контракта (№, дата)","Сумма расторжения","Примечание"]
["1","2","3","4","5","6","7","8","9","10","11","12","13","14","15","16","17","18","19","20","21"]
["1","3235301125818100175","9020104 5210000190244","123","2019-12-24","Поставка электрической энергии",100000,90000,2308091759,"АО \"НЭСК\"","Поставка электрической энергии осуществляется постоянно, в течение срока действия контракта","2019-12-02","До 10 числа расчетного месяца в размере 30%, до 25 числа расчетного месяца 40%, до 18 числа месяца, следующего за расчетным",10000,"2019-01-24",null,null,null,null,null,"Пример"]
[1,"3235301526024000012","925 0702 0000000000 247","23070500309 ","2024-12-26","Услуги по передаче электроэнергии",789929.46,{"$f":"IF(V9 = 1, G9 + SUM(Q9:Q39) - SUM(R9:R39) - SUM(N9:N39) - T9,0)","v":687775.51},2308119595,"ПАО \"ТНС энерго Кубань\"","Поставка электрической энергии осуществляется постоянно, в течение срока действия контракта с 01.01.2025г. по 31.12.2025г.","2025-02-12","Предоплата - до 10 и 25 числа месяца, в котором осуществляется потребление электрической энергии; фактически потребленая электрическая энергия до 18 числа месяца, следующего за месяцем, за ктотрый осуществляется оплата ",83141.72,"2025-02-18","№1 от 07.03.2025",106821.54,null,null,null,null,1]
[null,null,null,null,null,null,null,null,null,null,null,"2025-02-01",null,36847.089999999997,"2025-02-24",null,null,null,null,null,null,1]
[null,null,null,null,null,null,null,null,null,null,null,"2025-02-01",null,27103.439999999999,"2025-02-24",null,null,null,null,null,null,1]
[null,null,null,null,null,null,null,null,null,null,null,null,null,null,null,null,null,null,null,null,null,1]
[null,null,null,null,null,null,null,null,null,null,null,null,null,null,null,null,null,null,null,null,null,1]
[null,null,null,null,null,null,null,null,null,null,null,null,null,null,null,null,null,null,null,null,null,1]
[null,null,null,null,null,null,null,null,null,null,null,null,null,null,null,null,null,null,null,null,null,1]
[null,null,null,null,null,null,null,null,null,null,null,null,null,null,null,null,null,null,null,null,null,1]
[null,null,null,null,null,null,null,null,null,null,null,null,null,null,null,null,null,null,null,null,null,1]
[null,null,null,null,null,null,null,null,null,null,null,null,null,null,null,null,null,null,null,null,null,1]
[null,null,null,null,null,null,null,null,null,null,null,null,null,null,null,null,null,null,null,null,null,1]
[null,null,null,null,null,null,null,null,null,null,null,null,null,null,null,null,null,null,null,null,null,1]
[null,null,null,null,null,null,null,null,null,null,null,null,null,null,null,null,null,null,null,null,null,1]
[null,null,null,null,null,null,null,null,null,null,null,null,null,null,null,null,null,null,null,null,null,1]
[null,null,null,null,null,null,null,null,null,null,null,null,null,null,null,null,null,null,null,null,null,1]
[null,null,null,null,null,null,null,null,null,null,null,null,null,null,null,null,null,null,null,null,null,1]
[null,null,null,null,null,null,null,null,null,null,null,null,null,null,null,null,null,null,null,null,null,1]
[null,null,null,null,null,null,null,null,null,null,null,null,null,null,null,null,null,null,null,null,null,1]
[null,null,null,null,null,null,null,null,null,null,null,null,null,null,null,null,null,null,null,null,null,1]
[null,null,null,null,null,null,null,null,null,null,null,null,null,null,null,null,null,null,null,null,null,1]
[null,null,null,null,null,null,null,null,null,null,null,null,null,null,null,null,null,null,null,null,null,1]
[null,null,null,null,null,null,null,null,null,null,null,null,null,null,null,null,null,null,null,null,null,1]
[null,null,null,null,null,null,null,null,null,null,null,null,null,null,null,null,null,null,null,null,null,1]
[null,null,null,null,null,null,null,null,null,null,null,null,null,null,null,null,null,null,null,null,null,1]
[null,null,null,null,null,null,null,null,null,null,null,null,null,null,null,null,null,null,null,null,null,1]
[null,null,null,null,null,null,null,null,null,null,null,null,null,null,null,null,null,null,null,null,null,1]
[null,null,null,null,null,null,null,null,null,null,null,null,null,null,null,null,null,null,null,null,null,1]
[null,null,null,null,null,null,null,null,null,null,null,null,null,null,null,null,null,null,null,null,null,1]
[null,null,null,null,null,null,null,null,null,null,null,"2025-03-01",null,27635.32,"2025-03-03",null,null,null,null,null,null,1]
[null,null,null,null,null,null,null,null,null,null,null,"2025-03-14",null,4175.22,"2025-03-17",null,null,null,null,null,null,1]
[null,null,null,null,null,null,null,null,null,null,null,"2025-03-01",null,30072.7,"2025-03-17",null,null,null,null,null,null,1]
[2,"3235301526024000011","925 0702 0000000000 247","1905","2024-12-26","Энергия тепловая, отпущенная котельными",931369.94,{"$f":"IF(V40 = 2, G40 + SUM(Q40:Q95) - SUM(R40:R95) - SUM(N40:N95) - T40,0)","v":555303.63},2312054894,"АО \"АТЭК\"","Поставка тепловой энергии производится в соответствии с утвержденным потребителю планом и помесячным графиком теплоснабжения, в течение срока действия контракта с 01.01.2025г. по 31.12.2025г.",null,"До 25 числа месяца, следующего за месяцем, за ктотрый осуществляется оплата",null,null,null,null,null,null,null,null,2]
[null,null,null,null,null,null,null,null,null,null,null,null,null,null,null,null,null,null,null,null,null,2]
[null,null,null,null,null,null,null,null,null,null,null,null,null,null,null,null,null,null,null,null,null,2]
[null,null,null,null,null,null,null,null,null,null,null,null,null,null,null,null,null,null,null,null,null,2]
[null,null,null,null,null,null,null,null,null,null,null,null,null,null,null,null,null,null,null,null,null,2]
[null,null,null,null,null,null,null,null,null,null,null,null,null,null,null,null,null,null,null,null,null,2]
[null,null,null,null,null,null,null,null,null,null,null,null,null,null,null,null,null,null,null,null,null,2]
[null,null,null,null,null,null,null,null,null,null,null,null,null,null,null,null,null,null,null,null,null,2]
[null,null,null,null,null,null,null,null,null,null,null,null,null,null,null,null,null,null,null,null,null,2]
[null,null,null,null,null,null,null,null,null,null,null,null,null,null,null,null,null,null,null,null,null,2]
[null,null,null,null,null,null,null,null,null,null,null,null,null,null,null,null,null,null,null,null,null,2]
[null,null,null,null,null,null,null,null,null,null,null,null,null,null,null,null,null,null,null,null,null,2]
[null,null,null,null,null,null,null,null,null,null,null,null,null,null,null,null,null,null,null,null,null,2]
[null,null,null,null,null,null,null,null,null,null,null,null,null,null,null,null,null,null,null,null,null,2]
[null,null,null,null,null,null,null,null,null,null,null,null,null,null,null,null,null,null,null,null,null,2]
[null,null,null,null,null,null,null,null,null,null,null,null,null,null,null,null,null,null,null,null,null,2]
[null,null,null,null,null,null,null,null,null,null,null,null,null,null,null,null,null,null,null,null,null,2]
[null,null,null,null,null,null,null,null,null,null,null,null,null,null,null,null,null,null,null,null,null,2]
[null,null,null,null,null,null,null,null,null,null,null,null,null,null,null,null,null,null,null,null,null,2]
[null,null,null,null,null,null,null,null,null,null,null,null,null,null,null,null,null,null,null,null,null,2]
[null,null,null,null,null,null,null,null,null,null,null,null,null,null,null,null,null,null,null,null,null,2]
[null,null,null,null,null,null,null,null,null,null,null,null,null,null,null,null,null,null,null,null,null,2]
[null,null,null,null,null,null,null,null,null,null,null,null,null,null,null,null,null,null,null,null,null,2]
[null,null,null,null,null,null,null,null,null,null,null,null,null,null,null,null,null,null,null,null,null,2]
[null,null,null,null,null,null,null,null,null,null,null,null,null,null,null,null,null,null,null,null,null,2]
[null,null,null,null,null,null,null,null,null,null,null,null,null,null,null,null,null,null,null,null,null,2]
[null,null,null,null,null,null,null,null,null,null,null,null,null,null,null,null,null,null,null,null,null,2]
[null,null,null,null,null,null,null,null,null,null,null,null,null,null,null,null,null,null,null,null,null,2]
[null,null,null,null,null,null,null,null,null,null,null,null,null,null,null,null,null,null,null,null,null,2]
[null,null,null,null,null,null,null,null,null,null,null,null,null,null,null,null,null,null,null,null,null,2]
[null,null,null,null,null,null,null,null,null,null,null,null,null,null,null,null,null,null,null,null,null,2]
[null,null,null,null,null,null,null,null,null,null,null,null,null,null,null,null,null,null,null,null,null,2]
[null,null,null,null,null,null,null,null,null,null,null,null,null,null,null,null,null,null,null,null,null,2]
[null,null,null,null,null,null,null,null,null,null,null,null,null,null,null,null,null,null,null,null,null,2]
[null,null,null,null,null,null,null,null,null,null,null,null,null,null,null,null,null,null,null,null,null,2]
[null,null,null,null,null,null,null,null,null,null,null,null,null,null,null,null,null,null,null,null,null,2]
[null,null,null,null,null,null,null,null,null,null,null,null,null,null,null,null,null,null,null,null,null,2]
[null,null,null,null,null,null,null,null,null,null,null,null,null,null,null,null,null,null,null,null,null,2]
[null,null,null,null,null,null,null,null,null,null,null,null,null,null,null,null,null,null,null,null,null,2]
[null,null,null,null,null,null,null,null,null,null,null,null,null,null,null,null,null,null,null,null,null,2]
[null,null,null,null,null,null,null,null,null,null,null,null,null,null,null,null,null,null,null,null,null,2]
[null,null,null,null,null,null,null,null,null,null,null,null,null,null,null,null,null,null,null,null,null,2]
[null,null,null,null,null,null,null,null,null,null,null,null,null,null,null,null,null,null,null,null,null,2]
[null,null,null,null,null,null,null,null,null,null,null,null,null,null,null,null,null,null,null,null,null,2]
[null,null,null,null,null,null,null,null,null,null,null,null,null,null,null,null,null,null,null,null,null,2]
[null,null,null,null,null,null,null,null,null,null,null,null,null,null,null,null,null,null,null,null,null,2]
[null,null,null,null,null,null,null,null,null,null,null,null,null,null,null,null,null,null,null,null,null,2]
[null,null,null,null,null,null,null,null,null,null,null,null,null,null,null,null,null,null,null,null,null,2]
[null,null,null,null,null,null,null,null,null,null,null,null,null,null,null,null,null,null,null,null,null,2]
[null,null,null,null,null,null,null,null,null,null,null,null,null,null,null,null,null,null,null,null,null,2]
[null,null,null,null,null,null,null,null,null,null,null,null,null,null,null,null,null,null,null,null,null,2]
[null,null,null,null,null,null,null,null,null,null,null,null,null,null,null,null,null,null,null,null,null,2]
[null,null,null,null,null,null,null,null,null,null,null,null,null,null,null,null,null,null,null,null,null,2]
[null,null,null,null,null,null,null,null,null,null,null,null,null,null,null,null,null,null,null,null,null,2]
[null,null,null,null,null,null,null,null,null,null,null,"2025-02-17",null,205397.95,"2025-02-19","№1 от 13.02.2025",74408.06,null,null,null,null,2]
[null,null,null,null,null,null,null,null,null,null,null,"2025-03-19",null,245076.42,"2025-03-24",null,null,null,null,null,null,2]
[3,"3235301526025000001","925 0702 0000000000 244","АО172180","2025-02-20","Поставка учебной литературы для муниципальных нужд МБОУ СОШ № 13 муниципального образования Тимашевский район\n",1829550.36,{"$f":"IF(V96 = 11, G96 + SUM(Q96:Q101) - SUM(R96:R101) - SUM(N96:N101) - T96,0)","v":1829550.36},7715995942,"АО \"ИЗДАТЕЛЬСТВО \"ПРОСВЕЩЕНИЕ\"","До 30 июня 2025 г. ",null,"В течение 10 рабочих дней со дня подписания Заказчиком УПД",null,null,null,null,null,null,null,null,11]
[null,null,null,null,null,null,null,null,null,null,null,null,null,null,null,null,null,null,null,null,null,11]
[null,null,null,null,null,null,null,null,null,null,null,null,null,null,null,null,null,null,null,null,null,11]
[null,null,null,null,null,null,null,null,null,null,null,null,null,null,null,null,null,null,null,null,null,11]
[null,null,null,null,null,null,null,null,null,null,null,null,null,null,null,null,null,null,null,null,null,11]
[null,null,null,null,null,null,null,null,null,null,null,null,null,null,null,null,null,null,null,null,null,11]
[4,"3235301526025000002","925 0702 0000000000 244","АО174439","2025-02-21","Поставка учебной литературы для муниципальных нужд МБОУ СОШ № 13 муниципального образования Тимашевский район",294045.28999999998,{"$f":"IF(V102 = 12, G102 + SUM(Q102:Q104) - SUM(R102:R104) - SUM(N102:N104) - T102,0)","v":294045.28999999998},7715995942,"АО \"ИЗДАТЕЛЬСТВО \"ПРОСВЕЩЕНИЕ\"","До 30 июня 2025 г. ",null,"В течение 10 рабочих дней со дня подписания Заказчиком УПД",null,null,null,null,null,null,null,null,12]
[null,null,null,null,null,null,null,null,null,null,null,null,null,null,null,null,null,null,null,null,null,12]
[null,null,null,null,null,null,null,null,null,null,null,null,null,null,null,null,null,null,null,null,null,12]
[5,null,null,null,null,null,null,{"$f":"IF(V105 = 13, G105 + SUM(Q105:Q108) - SUM(R105:R108) - SUM(N105:N108) - T105,0)","v":0},null,null,null,null,null,null,null,null,null,null,null,null,null,13]
[null,null,null,null,null,null,null,null,null,null,null,null,null,null,null,null,null,null,null,null,null,13]
[null,null,null,null,null,null,null,null,null,null,null,null,null,null,null,null,null,null,null,null,null,13]
[null,null,null,null,null,null,null,null,null,null,null,null,null,null,null,null,null,null,null,null,null,13]
[6,null,null,null,null,null,null,{"$f":"IF(V109 = 14, G109 + SUM(Q109:Q109) - SUM(R109:R109) - SUM(N109:N109) - T109,0)","v":0},null,null,null,null,null,null,null,null,null,null,null,null,null,14]
[null,null,null,null,null,null,null,null,null,null,null,null,null,null,null,null,null,null,null,null,null,15]

{"sheet":"Состоявшиеся аукционы","index":4,"n_rows":48,"n_cols":30,"rows_kept":48,"cut":false,"hidden":false,"merged":[[29,28,46,28],[29,3,46,3],[29,4,46,4],[29,5,46,5],[29,6,46,6],[29,7,46,7],[29,8,46,8],[29,9,46,9],[29,10,46,10],[29,11,46,11],[29,12,46,12],[29,13,46,13],[29,14,46,14],[29,15,46,15],[29,16,46,16],[29,17,46,17],[29,0,46,0],[29,20,46,20],[29,26,46,26],[29,1,46,1],[29,27,46,27],[29,2,46,2],[29,18,46,18],[25,28,28,28],[25,3,28,3],[25,4,28,4],[25,5,28,5],[25,6,28,6],[25,7,28,7],[25,8,28,8],[25,9,28,9],[25,10,28,10],[25,11,28,11],[25,12,28,12],[25,13,28,13],[25,14,28,14],[25,15,28,15],[25,16,28,16],[25,17,28,17],[1,4,1,5],[1,14,1,15],[1,24,1,26],[1,19,1,20],[8,14,22,14],[8,15,22,15],[8,0,22,0],[8,20,22,20],[8,26,22,26],[8,1,22,1],[8,16,22,16],[8,17,22,17],[8,18,22,18],[8,27,22,27],[8,2,22,2],[8,28,22,28],[8,3,22,3],[8,4,22,4],[8,5,22,5],[8,6,22,6],[8,7,22,7],[8,8,22,8],[8,9,22,9],[8,10,22,10],[8,11,22,11],[8,12,22,12],[8,13,22,13],[25,0,28,0],[25,20,28,20],[25,26,28,26],[25,1,28,1],[25,27,28,27],[25,2,28,2],[25,18,28,18]]}
[]
[null,null,null,null,"Сумма начальных (максимальных) цен контрактов",null,{"$f":"SUM(G9:G9999)","v":740880},null,null,null,null,null,null,null,"Сумма заключенных контрактов",null,{"$f":"SUM(Q9:Q9999)","v":674200.8},null,null,"Сумма средств выплаченных по контрактам",null,{"$f":"SUM(V9:V9999)","v":270597.59999999998},null,null,"Общая сумма расторжений по контрактам/договорам",null,null,{"$f":"SUM(AB9:AB9999)","v":0}]
[]
[]
[]
["№ п/п","Наименование муниципальной программы, национального или регионального проекта","ИКЗ (Идентификационный код закупки)","Код бюджетной классификации","№ извещения","Объект закупки","Н(М)ЦК","Экономия","Количество поданных заявок","Количество заявок признанные несоответствующими","СМП и СОНО","№ в реестре контрактов","№ контракта","Дата заключения","ИНН поставщика (подрядчика, исполнителя) ","Поставщик (подрядчик, исполнитель)","Цена контракта","Остаток по контракту","Сроки поставки товара (оказания услуги, выполнения работы), согласно контракта","Фактическая дата поставки товара (оказания услуги, выполнения работы) и (или) предоставление документов на оплату и подписание документов о приемке","Сроки оплаты согласно контракта","Сумма согласно документа об исполнении контракта заказчиком","Фактическая дата оплаты","Изменение контракта (№, дата)","Изменение контракта (увеличение цены контракта в рублях)","Изменение контракта (уменьшение цены контракта в рублях)","Расторжение контракта (№, дата)","Сумма расторжения","Примечание"]
["1","2","3","4","5","6","7","8","9","10","11","12","13","14","15","16","17","18","19","20","21","22","23","24","25","26","27","28","29"]
["1",null,"193235301125823530100103000010000244 ","902 0113 1210310010 244","0818300019919000194","Поставка картриджа и тонер-картриджей ",15500.01,{"$f":"G8-Q8","v":6725},6,0,"Нет","3235301125819000079","Ф.2019.412162","2019-07-09","3443923035"," ООО \"АНАЛИТИК ЦЕНТР\" ",8775.01,{"$f":"Q8-V8","v":0},"В течение 20 рабочих дней со дня заключения сторонами муниципального контракта","2019-07-31","Не позднее 30 календарных дней с момента подписания Заказчиком документа о приемке выполненных работ и представленного Подрядчиком документа на оплату",8775.01,"2019-08-19",null,null,null,null,null,"Пример"]
[1,"Муниципальная программа \"Развитие образования\"","243235301526023530100100340018010244","925 0702 0000000000 244","0818300019924000328","Услуги частной охраны (Выставление поста охраны)",740880,{"$f":"IF(AD9 = 2, G9 - Q9,0)","v":66679.199999999953},2,0,"Да","\n3235301526024000010","08183000199240003280018","2024-12-23","2304067057","ООО ЧОО \"ЛЕГИОН\"",674200.8,{"$f":"IF(AD9 = 2, Q9 + SUM(Y9:Y23) - SUM(Z9:Z23) - SUM(V9:V23) - AB9,0)","v":403603.20000000007},"С 00:00 МВК 1 января 2025 года по 23:59 МВК 27 мая 2025 года включительно.","2025-02-11","В срок не более 7 (семи) рабочих дней с даты подписания Заказчиком документа о приемке",142178.4,"2025-02-13",null,null,null,null,null,null,2]
[null,null,null,null,null,null,null,null,null,null,null,null,null,null,null,null,null,null,null,"2025-03-04",null,128419.2,"2025-03-10",null,null,null,null,null,null,2]
[null,null,null,null,null,null,null,null,null,null,null,null,null,null,null,null,null,null,null,null,null,null,null,null,null,null,null,null,null,2]
[null,null,null,null,null,null,null,null,null,null,null,null,null,null,null,null,null,null,null,null,null,null,null,null,null,null,null,null,null,2]
[null,null,null,null,null,null,null,null,null,null,null,null,null,null,null,null,null,null,null,null,null,null,null,null,null,null,null,null,null,2]
[null,null,null,null,null,null,null,null,null,null,null,null,null,null,null,null,null,null,null,null,null,null,null,null,null,null,null,null,null,2]
[null,null,null,null,null,null,null,null,null,null,null,null,null,null,null,null,null,null,null,null,null,null,null,null,null,null,null,null,null,2]
[null,null,null,null,null,null,null,null,null,null,null,null,null,null,null,null,null,null,null,null,null,null,null,null,null,null,null,null,null,2]
[null,null,null,null,null,null,null,null,null,null,null,null,null,null,null,null,null,null,null,null,null,null,null,null,null,null,null,null,null,2]
[null,null,null,null,null,null,null,null,null,null,null,null,null,null,null,null,null,null,null,null,null,null,null,null,null,null,null,null,null,2]
[null,null,null,null,null,null,null,null,null,null,null,null,null,null,null,null,null,null,null,null,null,null,null,null,null,null,null,null,null,2]
[null,null,null,null,null,null,null,null,null,null,null,null,null,null,null,null,null,null,null,null,null,null,null,null,null,null,null,null,null,2]
[null,null,null,null,null,null,null,null,null,null,null,null,null,null,null,null,null,null,null,null,null,null,null,null,null,null,null,null,null,2]
[null,null,null,null,null,null,null,null,null,null,null,null,null,null,null,null,null,null,null,null,null,null,null,null,null,null,null,null,null,2]
[null,null,null,null,null,null,null,null,null,null,null,null,null,null,null,null,null,null,null,null,null,null,null,null,null,null,null,null,null,2]
[2,null,null,null,null,null,null,{"$f":"IF(AD24 = 3, G24 - Q24,0)","v":0},null,null,null,null,null,null,null,null,null,{"$f":"IF(AD24 = 3, Q24 + SUM(Y24:Y24) - SUM(Z24:Z24) - SUM(V24:V24) - AB24,0)","v":0},null,null,null,null,null,null,null,null,null,null,null,3]
[3,null,null,null,null,null,null,{"$f":"IF(AD25 = 4, G25 - Q25,0)","v":0},null,null,null,null,null,null,null,null,null,{"$f":"IF(AD25 = 4, Q25 + SUM(Y25:Y25) - SUM(Z25:Z25) - SUM(V25:V25) - AB25,0)","v":0},null,null,null,null,null,null,null,null,null,null,null,4]
[4,null,null,null,null,null,null,{"$f":"IF(AD26 = 5, G26 - Q26,0)","v":0},null,null,null,null,null,null,null,null,null,{"$f":"IF(AD26 = 5, Q26 + SUM(Y26:Y29) - SUM(Z26:Z29) - SUM(V26:V29) - AB26,0)","v":0},null,null,null,null,null,null,null,null,null,null,null,5]
[null,null,null,null,null,null,null,null,null,null,null,null,null,null,null,null,null,null,null,null,null,null,null,null,null,null,null,null,null,5]
[null,null,null,null,null,null,null,null,null,null,null,null,null,null,null,null,null,null,null,null,null,null,null,null,null,null,null,null,null,5]
[null,null,null,null,null,null,null,null,null,null,null,null,null,null,null,null,null,null,null,null,null,null,null,null,null,null,null,null,null,5]
[5,null,null,null,null,null,null,{"$f":"IF(AD30 = 6, G30 - Q30,0)","v":0},null,null,null,null,null,null,null,null,null,{"$f":"IF(AD30 = 6, Q30 + SUM(Y30:Y47) - SUM(Z30:Z47) - SUM(V30:V47) - AB30,0)","v":0},null,null,null,null,null,null,null,null,null,null,null,6]
[null,null,null,null,null,null,null,null,null,null,null,null,null,null,null,null,null,null,null,null,null,null,null,null,null,null,null,null,null,6]
[null,null,null,null,null,null,null,null,null,null,null,null,null,null,null,null,null,null,null,null,null,null,null,null,null,null,null,null,null,6]
[null,null,null,null,null,null,null,null,null,null,null,null,null,null,null,null,null,null,null,null,null,null,null,null,null,null,null,null,null,6]
[null,null,null,null,null,null,null,null,null,null,null,null,null,null,null,null,null,null,null,null,null,null,null,null,null,null,null,null,null,6]
[null,null,null,null,null,null,null,null,null,null,null,null,null,null,null,null,null,null,null,null,null,null,null,null,null,null,null,null,null,6]
[null,null,null,null,null,null,null,null,null,null,null,null,null,null,null,null,null,null,null,null,null,null,null,null,null,null,null,null,null,6]
[null,null,null,null,null,null,null,null,null,null,null,null,null,null,null,null,null,null,null,null,null,null,null,null,null,null,null,null,null,6]
[null,null,null,null,null,null,null,null,null,null,null,null,null,null,null,null,null,null,null,null,null,null,null,null,null,null,null,null,null,6]
[null,null,null,null,null,null,null,null,null,null,null,null,null,null,null,null,null,null,null,null,null,null,null,null,null,null,null,null,null,6]
[null,null,null,null,null,null,null,null,null,null,null,null,null,null,null,null,null,null,null,null,null,null,null,null,null,null,null,null,null,6]
[null,null,null,null,null,null,null,null,null,null,null,null,null,null,null,null,null,null,null,null,null,null,null,null,null,null,null,null,null,6]
[null,null,null,null,null,null,null,null,null,null,null,null,null,null,null,null,null,null,null,null,null,null,null,null,null,null,null,null,null,6]
[null,null,null,null,null,null,null,null,null,null,null,null,null,null,null,null,null,null,null,null,null,null,null,null,null,null,null,null,null,6]
[null,null,null,null,null,null,null,null,null,null,null,null,null,null,null,null,null,null,null,null,null,null,null,null,null,null,null,null,null,6]
[null,null,null,null,null,null,null,null,null,null,null,null,null,null,null,null,null,null,null,null,null,null,null,null,null,null,null,null,null,6]
[null,null,null,null,null,null,null,null,null,null,null,null,null,null,null,null,null,null,null,null,null,null,null,null,null,null,null,null,null,6]
[null,null,null,null,null,null,null,null,null,null,null,null,null,null,null,null,null,null,null,null,null,null,null,null,null,null,null,null,null,6]
[null,null,null,null,null,null,null,null,null,null,null,null,null,null,null,null,null,null,null,null,null,null,null,null,null,null,null,null,null,7]

{"sheet":"Несостоявшиеся аукционы","index":5,"n_rows":37,"n_cols":30,"rows_kept":37,"cut":false,"hidden":false,"merged":[[34,27,35,27],[34,2,35,2],[34,18,35,18],[34,28,35,28],[34,3,35,3],[34,4,35,4],[34,5,35,5],[34,6,35,6],[34,7,35,7],[34,8,35,8],[34,9,35,9],[34,10,35,10],[34,11,35,11],[34,12,35,12],[34,13,35,13],[34,14,35,14],[1,4,1,5],[1,14,1,15],[1,24,1,26],[1,19,1,20],[34,0,35,0],[34,20,35,20],[34,26,35,26],[34,1,35,1],[34,15,35,15],[34,16,35,16],[34,17,35,17],[8,0,33,0],[8,20,33,20],[8,26,33,26],[8,1,33,1],[8,27,33,27],[8,2,33,2],[8,18,33,18],[8,28,33,28],[8,3,33,3],[8,4,33,4],[8,5,33,5],[8,6,33,6],[8,7,33,7],[8,8,33,8],[8,9,33,9],[8,10,33,10],[8,11,33,11],[8,12,33,12],[8,13,33,13],[8,14,33,14],[8,15,33,15],[8,16,33,16],[8,17,33,17]]}
[]
[null,null,null,null,"Сумма начальных (максимальных) цен контрактов",null,{"$f":"SUM(G9:G10004)","v":3314740},null,null,null,null,null,null,null,"Сумма заключенных контрактов",null,{"$f":"SUM(Q9:Q10004)","v":3314740},null,null,"Сумма средств выплаченных по контрактам",null,{"$f":"SUM(V9:V10004)","v":1504590.62},null,null,"Общая сумма расторжений по контрактам/договорам",null,null,{"$f":"SUM(AB9:AB10004)","v":0}]
[]
[]
[]
["№ п/п","Наименование муниципальной программы, национального или регионального проекта","ИКЗ (Идентификационный код закупки)","Код бюджетной классификации","№ извещения","Объект закупки","Н(М)ЦК","Экономия","Количество поданных заявок","Количество заявок признанные несоответствующими","СМП и СОНО","№ в реестре контрактов","№ контракта","Дата заключения","ИНН поставщика (подрядчика, исполнителя) ","Поставщик (подрядчик, исполнитель)","Цена контракта (Объем финансового обеспечения подлежащий к оплате в текущем фин. году)","Остаток по контракту","Сроки поставки товара (оказания услуги, выполнения работы), согласно контракта","Фактическая дата поставки товара (оказания услуги, выполнения работы) и (или) предоставление документов на оплату и подписание документов о приемке","Сроки оплаты согласно контракта","Сумма согласно документа об исполнении контракта заказчиком","Фактическая дата оплаты","Изменение контракта (№, дата)","Изменение контракта (увеличение цены контракта в рублях)","Изменение контракта (уменьшение цены контракта в рублях)","Расторжение контракта (№, дата)","Сумма расторжения","Примечание"]
["1","2","3","4","5","6","7","8","9","10","11","12","13","14","15","16","17","18","19","20","21","22","23","24","25","26","27","28","29"]
["1",null,"193235301125823530100103000010000244 ","902 0113 1210310010 244","0818300019919000194","Поставка картриджа и тонер-картриджей ",15500.01,{"$f":"G8-Q8","v":6725},6,0,"Нет","3235301125819000079","Ф.2019.412162","2019-07-09","3443923035"," ООО \"АНАЛИТИК ЦЕНТР\" ",8775.01,{"$f":"Q8-V8","v":0},"В течение 20 рабочих дней со дня заключения сторонами муниципального контракта","2019-07-31","Не позднее 30 календарных дней с момента подписания Заказчиком документа о приемке выполненных работ и представленного Подрядчиком документа на оплату",8775.01,"2019-08-19",null,null,null,null,null,"Пример"]
[1,"Муниципальная программа \"Развитие образования\"","243235301526023530100100330015629244","925 0702 0000000000 244","0818300019924000321","Оказание услуги по организации питания учащихся муниципальных бюджетных общеобразовательных учреждений средних общеобразовательных школ муниципального образования Тимашевский район.",3314740,{"$f":"IF(AD9 = 6, G9 - Q9,0)","v":0},1,0,"Да","3235301526024000009","08183000199240003210016","2024-12-16","2353020735","ООО \"ТИМАШЕВСКОЕ ПРТ РАЙПО\"",3314740,{"$f":"IF(AD9 = 6, Q9 + SUM(Y9:Y34) - SUM(Z9:Z34) - SUM(V9:V34) - AB9,0)","v":1810149.38},"С момента заключения контракта, но не ранее 09 января 2025 г. по 23 мая 2025 г., ежедневно в соответствии с графиком работы образовательной организации, по заявке Заказчика (кроме выходных, каникулярных и праздничных дней)","2025-02-03","В течение 7 (семи) рабочих дней после подписания документа о приемке ",60550,"2025-02-10",null,null,null,null,null,null,6]
[null,null,null,null,null,null,null,null,null,null,null,null,null,null,null,null,null,null,null,"2025-02-03",null,188102.44,"2025-02-10",null,null,null,null,null,null,6]
[null,null,null,null,null,null,null,null,null,null,null,null,null,null,null,null,null,null,null,"2025-02-03",null,12006.66,"2025-02-10",null,null,null,null,null,null,6]
[null,null,null,null,null,null,null,null,null,null,null,null,null,null,null,null,null,null,null,"2025-02-14",null,83965,"2025-02-19",null,null,null,null,null,null,6]
[null,null,null,null,null,null,null,null,null,null,null,null,null,null,null,null,null,null,null,"2025-02-14",null,260842.63,"2025-02-21",null,null,null,null,null,null,6]
[null,null,null,null,null,null,null,null,null,null,null,null,null,null,null,null,null,null,null,"2025-02-14",null,16649.7,"2025-02-21",null,null,null,null,null,null,6]
[null,null,null,null,null,null,null,null,null,null,null,null,null,null,null,null,null,null,null,"2025-02-24",null,228876.09,"2025-02-26",null,null,null,null,null,null,6]
[null,null,null,null,null,null,null,null,null,null,null,null,null,null,null,null,null,null,null,"2025-02-24",null,14609.26,"2025-02-26",null,null,null,null,null,null,6]
[null,null,null,null,null,null,null,null,null,null,null,null,null,null,null,null,null,null,null,"2025-02-24",null,73675,"2025-02-26",null,null,null,null,null,null,6]
[null,null,null,null,null,null,null,null,null,null,null,null,null,null,null,null,null,null,null,null,null,null,null,null,null,null,null,null,null,6]
[null,null,null,null,null,null,null,null,null,null,null,null,null,null,null,null,null,null,null,null,null,null,null,null,null,null,null,null,null,6]
[null,null,null,null,null,null,null,null,null,null,null,null,null,null,null,null,null,null,null,null,null,null,null,null,null,null,null,null,null,6]
[null,null,null,null,null,null,null,null,null,null,null,null,null,null,null,null,null,null,null,null,null,null,null,null,null,null,null,null,null,6]
[null,null,null,null,null,null,null,null,null,null,null,null,null,null,null,null,null,null,null,null,null,null,null,null,null,null,null,null,null,6]
[null,null,null,null,null,null,null,null,null,null,null,null,null,null,null,null,null,null,null,null,null,null,null,null,null,null,null,null,null,6]
[null,null,null,null,null,null,null,null,null,null,null,null,null,null,null,null,null,null,null,null,null,null,null,null,null,null,null,null,null,6]
[null,null,null,null,null,null,null,null,null,null,null,null,null,null,null,null,null,null,null,null,null,null,null,null,null,null,null,null,null,6]
[null,null,null,null,null,null,null,null,null,null,null,null,null,null,null,null,null,null,null,null,null,null,null,null,null,null,null,null,null,6]
[null,null,null,null,null,null,null,null,null,null,null,null,null,null,null,null,null,null,null,null,null,null,null,null,null,null,null,null,null,6]
[null,null,null,null,null,null,null,null,null,null,null,null,null,null,null,null,null,null,null,null,null,null,null,null,null,null,null,null,null,6]
[null,null,null,null,null,null,null,null,null,null,null,null,null,null,null,null,null,null,null,"2025-03-10",null,10479.799999999999,"2025-03-12",null,null,null,null,null,null,6]
[null,null,null,null,null,null,null,null,null,null,null,null,null,null,null,null,null,null,null,"2025-03-10",null,164181.9,"2025-03-12",null,null,null,null,null,null,6]
[null,null,null,null,null,null,null,null,null,null,null,null,null,null,null,null,null,null,null,"2025-03-10",null,52850,"2025-03-12",null,null,null,null,null,null,6]
[null,null,null,null,null,null,null,null,null,null,null,null,null,null,null,null,null,null,null,"2025-03-26",null,243772.07,"2025-03-27",null,null,null,null,null,null,6]
[null,null,null,null,null,null,null,null,null,null,null,null,null,null,null,null,null,null,null,"2025-03-26",null,78470,"2025-03-27",null,null,null,null,null,null,6]
[null,null,null,null,null,null,null,null,null,null,null,null,null,null,null,null,null,null,null,"2025-03-26",null,15560.07,"2025-03-27",null,null,null,null,null,null,6]
[2,null,null,null,null,null,null,{"$f":"IF(AD35 = 7, G35 - Q35,0)","v":0},null,null,null,null,null,null,null,null,null,{"$f":"IF(AD35 = 7, Q35 + SUM(Y35:Y36) - SUM(Z35:Z36) - SUM(V35:V36) - AB35,0)","v":0},null,null,null,null,null,null,null,null,null,null,null,7]
[null,null,null,null,null,null,null,null,null,null,null,null,null,null,null,null,null,null,null,null,null,null,null,null,null,null,null,null,null,7]
[null,null,null,null,null,null,null,{"$f":"IF(AD37 = 6, G37 - Q37,0)","v":0},null,null,null,null,null,null,null,null,null,{"$f":"IF(AD37 = 6, Q37 + SUM(Y37:Y37) - SUM(Z37:Z37) - SUM(V37:V37) - AB37,0)","v":0},null,null,null,null,null,null,null,null,null,null,null,8]

{"sheet":"Иные конкурентные закупки","index":6,"n_rows":74,"n_cols":30,"rows_kept":74,"cut":false,"hidden":false,"merged":[[8,26,63,26],[8,1,63,1],[8,27,63,27],[8,2,63,2],[8,28,63,28],[8,3,63,3],[8,4,63,4],[8,5,63,5],[8,6,63,6],[8,7,63,7],[8,8,63,8],[8,9,63,9],[8,10,63,10],[8,11,63,11],[8,12,63,12],[8,13,63,13],[8,15,63,15],[8,16,63,16],[8,17,63,17],[8,18,63,18],[8,0,63,0],[8,20,63,20],[8,14,63,14],[64,28,72,28],[64,3,72,3],[64,4,72,4],[64,5,72,5],[64,6,72,6],[64,7,72,7],[64,8,72,8],[64,9,72,9],[64,10,72,10],[64,11,72,11],[64,12,72,12],[64,13,72,13],[64,18,72,18],[64,16,72,16],[64,17,72,17],[64,27,72,27],[64,20,72,20],[64,26,72,26],[64,0,72,0],[64,15,72,15],[64,14,72,14],[64,2,72,2],[64,1,72,1],[1,4,1,5],[1,14,1,15],[1,24,1,26],[1,19,1,20],[3,15,3,17]]}
[]
[null,null,null,null,"Сумма начальных (максимальных) цен контрактов",null,{"$f":"SUM(G9:G9999)","v":0},null,null,null,null,null,null,null,"Сумма заключенных контрактов",null,{"$f":"SUM(Q9:Q9999)","v":0},null,null,"Сумма средств выплаченных по контрактам",null,{"$f":"SUM(V9:V9999)","v":0},null,null,"Общая сумма расторжений по контрактам/договорам",null,null,{"$f":"SUM(AB9:AB9999)","v":0}]
[]
[]
[]
["№ п/п","Наименование муниципальной программы, национального или регионального проекта","ИКЗ (Идентификационный код закупки)","Код бюджетной классификации","№ извещения","Объект закупки","Н(М)ЦК","Экономия","Количество поданных заявок","Количество заявок признанные несоответствующими","СМП и СОНО","№ в реестре контрактов","№ контракта","Дата заключения","ИНН поставщика (подрядчика, исполнителя) ","Поставщик (подрядчик, исполнитель)","Цена контракта","Остаток по контракту","Сроки поставки товара (оказания услуги, выполнения работы), согласно контракта","Фактическая дата поставки товара (оказания услуги, выполнения работы) и (или) предоставление документов на оплату и подписание документов о приемке","Сроки оплаты согласно контракта","Сумма согласно документа об исполнении контракта заказчиком","Фактическая дата оплаты","Изменение контракта (№, дата)","Изменение контракта (увеличение цены контракта в рублях)","Изменение контракта (уменьшение цены контракта в рублях)","Расторжение контракта (№, дата)","Сумма расторжения","Примечание"]
[1,2,3,4,5,6,7,8,9,10,11,12,13,14,15,16,17,18,19,20,21,22,23,24,25,26,27,28,29]
["1",null,"193235301125823530100103000010000244 ","902 0113 1210310010 244","0818300019919000194","Поставка картриджа и тонер-картриджей ",15500.01,{"$f":"G8-Q8","v":6725},6,0,"Нет","3235301125819000079","Ф.2019.412162","2019-07-09","3443923035"," ООО \"АНАЛИТИК ЦЕНТР\" ",8775.01,{"$f":"Q8-V8","v":0},"В течение 20 рабочих дней со дня заключения сторонами муниципального контракта","2019-07-31","Не позднее 30 календарных дней с момента подписания Заказчиком документа о приемке выполненных работ и представленного Подрядчиком документа на оплату",8775.01,"2019-08-19",null,null,null,null,null,"Пример"]
[1,null,null,null,null,null,null,{"$f":"IF(AD9 = 1, G9 - Q9,0)","v":0},null,null,null,null,null,null,null,null,null,{"$f":"IF(AD9 = 1, Q9 + SUM(Y9:Y64) - SUM(Z9:Z64) - SUM(V9:V64) - AB9,0)","v":0},null,null,null,null,null,null,null,null,null,null,null,1]
[null,null,null,null,null,null,null,null,null,null,null,null,null,null,null,null,null,null,null,null,null,null,null,null,null,null,null,null,null,1]
[null,null,null,null,null,null,null,null,null,null,null,null,null,null,null,null,null,null,null,null,null,null,null,null,null,null,null,null,null,1]
[null,null,null,null,null,null,null,null,null,null,null,null,null,null,null,null,null,null,null,null,null,null,null,null,null,null,null,null,null,1]
[null,null,null,null,null,null,null,null,null,null,null,null,null,null,null,null,null,null,null,null,null,null,null,null,null,null,null,null,null,1]
[null,null,null,null,null,null,null,null,null,null,null,null,null,null,null,null,null,null,null,null,null,null,null,null,null,null,null,null,null,1]
[null,null,null,null,null,null,null,null,null,null,null,null,null,null,null,null,null,null,null,null,null,null,null,null,null,null,null,null,null,1]
[null,null,null,null,null,null,null,null,null,null,null,null,null,null,null,null,null,null,null,null,null,null,null,null,null,null,null,null,null,1]
[null,null,null,null,null,null,null,null,null,null,null,null,null,null,null,null,null,null,null,null,null,null,null,null,null,null,null,null,null,1]
[null,null,null,null,null,null,null,null,null,null,null,null,null,null,null,null,null,null,null,null,null,null,null,null,null,null,null,null,null,1]
[null,null,null,null,null,null,null,null,null,null,null,null,null,null,null,null,null,null,null,null,null,null,null,null,null,null,null,null,null,1]
[null,null,null,null,null,null,null,null,null,null,null,null,null,null,null,null,null,null,null,null,null,null,null,null,null,null,null,null,null,1]
[null,null,null,null,null,null,null,null,null,null,null,null,null,null,null,null,null,null,null,null,null,null,null,null,null,null,null,null,null,1]
[null,null,null,null,null,null,null,null,null,null,null,null,null,null,null,null,null,null,null,null,null,null,null,null,null,null,null,null,null,1]
[null,null,null,null,null,null,null,null,null,null,null,null,null,null,null,null,null,null,null,null,null,null,null,null,null,null,null,null,null,1]
[null,null,null,null,null,null,null,null,null,null,null,null,null,null,null,null,null,null,null,null,null,null,null,null,null,null,null,null,null,1]
[null,null,null,null,null,null,null,null,null,null,null,null,null,null,null,null,null,null,null,null,null,null,null,null,null,null,null,null,null,1]
[null,null,null,null,null,null,null,null,null,null,null,null,null,null,null,null,null,null,null,null,null,null,null,null,null,null,null,null,null,1]
[null,null,null,null,null,null,null,null,null,null,null,null,null,null,null,null,null,null,null,null,null,null,null,null,null,null,null,null,null,1]
[null,null,null,null,null,null,null,null,null,null,null,null,null,null,null,null,null,null,null,null,null,null,null,null,null,null,null,null,null,1]
[null,null,null,null,null,null,null,null,null,null,null,null,null,null,null,null,null,null,null,null,null,null,null,null,null,null,null,null,null,1]
[null,null,null,null,null,null,null,null,null,null,null,null,null,null,null,null,null,null,null,null,null,null,null,null,null,null,null,null,null,1]
[null,null,null,null,null,null,null,null,null,null,null,null,null,null,null,null,null,null,null,null,null,null,null,null,null,null,null,null,null,1]
[null,null,null,null,null,null,null,null,null,null,null,null,null,null,null,null,null,null,null,null,null,null,null,null,null,null,null,null,null,1]
[null,null,null,null,null,null,null,null,null,null,null,null,null,null,null,null,null,null,null,null,null,null,null,null,null,null,null,null,null,1]
[null,null,null,null,null,null,null,null,null,null,null,null,null,null,null,null,null,null,null,null,null,null,null,null,null,null,null,null,null,1]
[null,null,null,null,null,null,null,null,null,null,null,null,null,null,null,null,null,null,null,null,null,null,null,null,null,null,null,null,null,1]
[null,null,null,null,null,null,null,null,null,null,null,null,null,null,null,null,null,null,null,null,null,null,null,null,null,null,null,null,null,1]
[null,null,null,null,null,null,null,null,null,null,null,null,null,null,null,null,null,null,null,null,null,null,null,null,null,null,null,null,null,1]
[null,null,null,null,null,null,null,null,null,null,null,null,null,null,null,null,null,null,null,null,null,null,null,null,null,null,null,null,null,1]
[null,null,null,null,null,null,null,null,null,null,null,null,null,null,null,null,null,null,null,null,null,null,null,null,null,null,null,null,null,1]
[null,null,null,null,null,null,null,null,null,null,null,null,null,null,null,null,null,null,null,null,null,null,null,null,null,null,null,null,null,1]
[null,null,null,null,null,null,null,null,null,null,null,null,null,null,null,null,null,null,null,null,null,null,null,null,null,null,null,null,null,1]
[null,null,null,null,null,null,null,null,null,null,null,null,null,null,null,null,null,null,null,null,null,null,null,null,null,null,null,null,null,1]
[null,null,null,null,null,null,null,null,null,null,null,null,null,null,null,null,null,null,null,null,null,null,null,null,null,null,null,null,null,1]
[null,null,null,null,null,null,null,null,null,null,null,null,null,null,null,null,null,null,null,null,null,null,null,null,null,null,null,null,null,1]
[null,null,null,null,null,null,null,null,null,null,null,null,null,null,null,null,null,null,null,null,null,null,null,null,null,null,null,null,null,1]
[null,null,null,null,null,null,null,null,null,null,null,null,null,null,null,null,null,null,null,null,null,null,null,null,null,null,null,null,null,1]
[null,null,null,null,null,null,null,null,null,null,null,null,null,null,null,null,null,null,null,null,null,null,null,null,null,null,null,null,null,1]
[null,null,null,null,null,null,null,null,null,null,null,null,null,null,null,null,null,null,null,null,null,null,null,null,null,null,null,null,null,1]
[null,null,null,null,null,null,null,null,null,null,null,null,null,null,null,null,null,null,null,null,null,null,null,null,null,null,null,null,null,1]
[null,null,null,null,null,null,null,null,null,null,null,null,null,null,null,null,null,null,null,null,null,null,null,null,null,null,null,null,null,1]
[null,null,null,null,null,null,null,null,null,null,null,null,null,null,null,null,null,null,null,null,null,null,null,null,null,null,null,null,null,1]
[null,null,null,null,null,null,null,null,null,null,null,null,null,null,null,null,null,null,null,null,null,null,null,null,null,null,null,null,null,1]
[null,null,null,null,null,null,null,null,null,null,null,null,null,null,null,null,null,null,null,null,null,null,null,null,null,null,null,null,null,1]
[null,null,null,null,null,null,null,null,null,null,null,null,null,null,null,null,null,null,null,null,null,null,null,null,null,null,null,null,null,1]
[null,null,null,null,null,null,null,null,null,null,null,null,null,null,null,null,null,null,null,null,null,null,null,null,null,null,null,null,null,1]
[null,null,null,null,null,null,null,null,null,null,null,null,null,null,null,null,null,null,null,null,null,null,null,null,null,null,null,null,null,1]
[null,null,null,null,null,null,null,null,null,null,null,null,null,null,null,null,null,null,null,null,null,null,null,null,null,null,null,null,null,1]
[null,null,null,null,null,null,null,null,null,null,null,null,null,null,null,null,null,null,null,null,null,null,null,null,null,null,null,null,null,1]
[null,null,null,null,null,null,null,null,null,null,null,null,null,null,null,null,null,null,null,null,null,null,null,null,null,null,null,null,null,1]
[null,null,null,null,null,null,null,null,null,null,null,null,null,null,null,null,null,null,null,null,null,null,null,null,null,null,null,null,null,1]
[null,null,null,null,null,null,null,null,null,null,null,null,null,null,null,null,null,null,null,null,null,null,null,null,null,null,null,null,null,1]
[null,null,null,null,null,null,null,null,null,null,null,null,null,null,null,null,null,null,null,null,null,null,null,null,null,null,null,null,null,1]
[null,null,null,null,null,null,null,null,null,null,null,null,null,null,null,null,null,null,null,null,null,null,null,null,null,null,null,null,null,1]
[null,null,null,null,null,null,null,null,null,null,null,null,null,null,null,null,null,null,null,null,null,null,null,null,null,null,null,null,null,1]
[2,null,null,null,null,null,null,{"$f":"IF(AD65 = 2, G65 - Q65,0)","v":0},null,null,null,null,null,null,null,null,null,{"$f":"IF(AD65 = 2, Q65 + SUM(Y65:Y73) - SUM(Z65:Z73) - SUM(V65:V73) - AB65,0)","v":0},null,null,null,null,null,null,null,null,null,null,null,2]
[null,null,null,null,null,null,null,null,null,null,null,null,null,null,null,null,null,null,null,null,null,null,null,null,null,null,null,null,null,2]
[null,null,null,null,null,null,null,null,null,null,null,null,null,null,null,null,null,null,null,null,null,null,null,null,null,null,null,null,null,2]
[null,null,null,null,null,null,null,null,null,null,null,null,null,null,null,null,null,null,null,null,null,null,null,null,null,null,null,null,null,2]
[null,null,null,null,null,null,null,null,null,null,null,null,null,null,null,null,null,null,null,null,null,null,null,null,null,null,null,null,null,2]
[null,null,null,null,null,null,null,null,null,null,null,null,null,null,null,null,null,null,null,null,null,null,null,null,null,null,null,null,null,2]
[null,null,null,null,null,null,null,null,null,null,null,null,null,null,null,null,null,null,null,null,null,null,null,null,null,null,null,null,null,2]
[null,null,null,null,null,null,null,null,null,null,null,null,null,null,null,null,null,null,null,null,null,null,null,null,null,null,null,null,null,2]
[null,null,null,null,null,null,null,null,null,null,null,null,null,null,null,null,null,null,null,null,null,null,null,null,null,null,null,null,null,2]
[null,null,null,null,null,null,null,null,null,null,null,null,null,null,null,null,null,null,null,null,null,null,null,null,null,null,null,null,null,3]

{"sheet":"Настройки","index":7,"n_rows":17,"n_cols":11,"rows_kept":17,"cut":false,"hidden":true,"merged":[[15,3,16,3],[0,3,1,3],[3,3,4,3],[6,3,7,3],[9,3,10,3],[12,3,13,3]]}
[425,122,9,"Ед. поставщик п.4 ч.1 ",null,"Index","Index","Index","Index","Index","Index"]
["TekStrokaP4","TekNomerP4","NachStrokaP4",null,null,206,64,14,6,7,2]
[null,null,null,null,null,"Index+1","Index+1","Index+1","Index+1","Index+1","Index+1"]
[316,47,9,"Ед. поставщик п.5 ч.1 ",null,207,65,15,7,8,3]
["TekStrokaP5","TekNomerP5","NachStrokaP5"]
[]
[109,6,9,"Ед.поставщик за искл. п.4,5 ч.1"]
["TekStrokaSt93","TekNomerSt93","NachStrokaSt93"]
[]
[47,5,9,"Состоявшиеся аукционы"]
["TekStrokaSEA","TekNomerSEA","NachStrokaSEA"]
[]
[36,2,9,"Несостоявшиеся аукционы"]
["TekStrokaNEA","TekNomerNEA","NachStrokaNEA"]
[]
[73,2,9,"Иные конкурентные закупки"]
["TekStrokaIKZ","TekNomerIKZ","NachStrokaIKZ"]